Departmental Family,Entity,Date,Expense Type,Expense Area,Supplier,Transaction Number,Amount,Description,Supplier Postcode
Department for Transport,Department for Transport,01/05/2015,Agency Staff Costs,Local,BROOK STREET (UK) LIMITED,2000002230,987.84,#,AL1 4JB
Department for Transport,Department for Transport,01/05/2015,Agency Staff Costs,Group Finance,Allen Lane,2000002220,2719.38,#,SW1Y 6RJ
Department for Transport,Department for Transport,01/05/2015,Agency Staff Costs,Group Finance,Allen Lane,2000002220,2175.5,#,SW1Y 6RJ
Department for Transport,Department for Transport,01/05/2015,Agency Staff Costs,Group Finance,Allen Lane,2000002220,2719.38,#,SW1Y 6RJ
Department for Transport,Department for Transport,01/05/2015,Agency Staff Costs,Group Finance,Allen Lane,2000002220,2719.38,#,SW1Y 6RJ
Department for Transport,Department for Transport,01/05/2015,Agency Staff Costs,Integrated Delivery,BROOK STREET (UK) LIMITED,2000002230,565.08,#,AL1 4JB
Department for Transport,Department for Transport,01/05/2015,Agency Staff Costs,Group Finance,CAPITA BUSINESS SERVICES LTD,2000002218,1093.5,#,DL1 9HN
Department for Transport,Department for Transport,01/05/2015,Cap Grt Pri Sec-Cos.,"Energy, Technology and International",Baird Electrical,2000002250,4499.9,Baird Electrical Ltd  Nov 2014 #4499.90,BT42 1EL
Department for Transport,Department for Transport,01/05/2015,Cap Grt Pri Sec-Cos.,"Energy, Technology and International",Baird Electrical,2000002250,899.98,Baird Electrical Ltd  Jan 2015 #899.98,BT42 1EL
Department for Transport,Department for Transport,01/05/2015,Cap Grt Pri Sec-Cos.,"Energy, Technology and International",Chargemaster,2000002247,900,Chargemaster Mar 2015 #900,LU1 3LU
Department for Transport,Department for Transport,01/05/2015,Cap Grt Pri Sec-Cos.,"Energy, Technology and International",Energy Jump Ltd,2000002251,1754.64,Energy Jump Feb 2015 #1754.64,S3 8AP
Department for Transport,Department for Transport,01/05/2015,Cap Grt Pri Sec-Cos.,"Energy, Technology and International",Phoenix Renewables Ltd,2000002253,1800,Phoenix Mar 2015 #1800,LS28 5LY
Department for Transport,Department for Transport,01/05/2015,Cap Grt Pri Sec-Cos.,"Energy, Technology and International",Pod Point,2000002246,22864.5,POD POINT #22864.50 Feb 2015,E1 1EE
Department for Transport,Department for Transport,01/05/2015,Cap Grt Pri Sec-Cos.,"Energy, Technology and International",Pod Point,2000002246,3552,POD POINT #3552 Jan 2015,E1 1EE
Department for Transport,Department for Transport,01/05/2015,Cap Grt Pri Sec-Cos.,"Energy, Technology and International",Pod Point,2000002246,24563.25,POD POINT #24563.25 Nov 2014,E1 1EE
Department for Transport,Department for Transport,01/05/2015,Cap Grt Pri Sec-Cos.,"Energy, Technology and International",Pod Point,2000002246,846.75,POD POINT #846.75 MAR 2015,E1 1EE
Department for Transport,Department for Transport,01/05/2015,Cap Grt Pri Sec-Cos.,"Energy, Technology and International",Pod Point,2000002246,876,POD POINT #876 OCT 2014,E1 1EE
Department for Transport,Department for Transport,01/05/2015,Cap Grt Pri Sec-Cos.,"Energy, Technology and International",Pod Point,2000002246,14937.75,"""POD POINT #14,937.75 DEC 2014""",E1 1EE
Department for Transport,Department for Transport,01/05/2015,Cap Grt Pri Sec-Cos.,"Energy, Technology and International",Pod Point,2000002246,14280,"""POD POINT #14,280 Feb 2015""",E1 1EE
Department for Transport,Department for Transport,01/05/2015,Cap Grt Pri Sec-Cos.,"Energy, Technology and International",Pod Point,2000002246,79465.5,POD POINT #79465.50 Mar 2015,E1 1EE
Department for Transport,Department for Transport,01/05/2015,Cap Grt Pri Sec-Cos.,"Energy, Technology and International",Rolec Services Limited,2000002245,26100,ROLEC Jan 2015 #26100,PE20 1Q
Department for Transport,Department for Transport,01/05/2015,Cap Grt Pri Sec-Cos.,"Energy, Technology and International",Rolec Services Limited,2000002245,2700,ROLEC Nov 2014 #2700,PE20 1Q
Department for Transport,Department for Transport,01/05/2015,Cap Grt Pri Sec-Cos.,"Energy, Technology and International",Rolec Services Limited,2000002245,14400,ROLEC Dec 2014 #14400,PE20 1Q
Department for Transport,Department for Transport,01/05/2015,Cap Grt Pri Sec-Cos.,"Energy, Technology and International",Schneider Electric,2000002248,5400,SCHNEIDER ELEC #5400 Sept 2014,W1W 6XX
Department for Transport,Department for Transport,01/05/2015,Cap Grt Pri Sec-Cos.,"Energy, Technology and International",Schneider Electric,2000002248,14400,SCHNEIDER ELEC #14400 OCT 2014,W1W 6XX
Department for Transport,Department for Transport,01/05/2015,Cap Grt Pri Sec-Cos.,"Energy, Technology and International",Schneider Electric,2000002248,900,SCHNEIDER ELEC #900 NOV 2014,W1W 6XX
Department for Transport,Department for Transport,01/05/2015,Cap Grt Pri Sec-Cos.,"Energy, Technology and International",Schneider Electric,2000002248,900,SCHNEIDER ELEC #900 DEC 2014,W1W 6XX
Department for Transport,Department for Transport,01/05/2015,Car Tax & Insurance,Motoring Services,Portmore Insurance Brokers Ltd,2000002249,46150.56,#,SO16 9JX
Department for Transport,Department for Transport,01/05/2015,Car Tax & Insurance,Motoring Services,Portmore Insurance Brokers Ltd,2000002249,-1181.95,#,SO16 9JX
Department for Transport,Department for Transport,01/05/2015,Cars Maintenance,Motoring Services,Professional Auto Centre Ltd,2000002242,914.07,#,SW8 1RY
Department for Transport,Department for Transport,01/05/2015,CurrGrtPriSec-P&NPIS,Local,SUSTRANS Ltd,2000002232,65000,Sustainable Travel Delivery #65k 2015-16 final,BS1 5DD
Department for Transport,Department for Transport,01/05/2015,Electricity,Rail Accident Investigation Branch,BRITISH GAS BUSINESS,2000002222,924.13,"05.03-03.04.2015 Elec Charges,Stores Rd,Derby",GU95 1AW
Department for Transport,Department for Transport,01/05/2015,IT Ser Running Costs,Analysis & Strategy,NETFUNDI LTD,2000002224,810,#,LA1 1SQ
Department for Transport,Department for Transport,01/05/2015,Legal Consultancy,Rail Franchising,Eversheds LLP,2000002237,13577.4,#,EC2V 7WS
Department for Transport,Department for Transport,01/05/2015,Legal Consultancy,"Policy, Legislation and Funding",xxxxxx,2000002241,11400,#,xxxxxx
Department for Transport,Department for Transport,01/05/2015,Legal Consultancy,Aviation,Slaughter and May,2000002226,56626.68,#,EC1Y 8YY
Department for Transport,Department for Transport,01/05/2015,Legal Consultancy,"Policy, Legislation and Funding",WINCKWORTH SHERWOOD,2000002228,71355.96,#,SE1 9BB
Department for Transport,Department for Transport,01/05/2015,Maintenance Other,"Motoring, Freight & London",TDC SYSTEMS LIMITED,2000002227,614,#,BS24 9BP
Department for Transport,Department for Transport,01/05/2015,Maintenance Other,"Motoring, Freight & London",TDC SYSTEMS LIMITED,2000002227,2300,#,BS24 9BP
Department for Transport,Department for Transport,01/05/2015,Maintenance Other,"Motoring, Freight & London",TDC SYSTEMS LIMITED,2000002227,471,#,BS24 9BP
Department for Transport,Department for Transport,01/05/2015,Maintenance Other,"Motoring, Freight & London",TDC SYSTEMS LIMITED,2000002227,2415,#,BS24 9BP
Department for Transport,Department for Transport,01/05/2015,Maintenance Other,"Motoring, Freight & London",TDC SYSTEMS LIMITED,2000002227,1615.56,#,BS24 9BP
Department for Transport,Department for Transport,01/05/2015,Maintenance Other,"Motoring, Freight & London",TDC SYSTEMS LIMITED,2000002227,2705,#,BS24 9BP
Department for Transport,Department for Transport,01/05/2015,Maintenance Other,"Motoring, Freight & London",TDC SYSTEMS LIMITED,2000002227,565,#,BS24 9BP
Department for Transport,Department for Transport,01/05/2015,Other Professional F,"Energy, Technology and International",RICARDO - AEA LIMITED,2000002240,2700,#,OX11 0PQ
Department for Transport,Department for Transport,01/05/2015,Other Professional F,"Energy, Technology and International",RICARDO - AEA LIMITED,2000002240,28324,#,OX11 0PQ
Department for Transport,Department for Transport,01/05/2015,Other Professional F,"Energy, Technology and International",RICARDO - AEA LIMITED,2000002240,3487,#,OX11 0PQ
Department for Transport,Department for Transport,01/05/2015,Prog&ProjMgmt Consul,Group Procurement and Property,MACE Limited,2000002254,13672.8,#,EC2M 6X
Department for Transport,Department for Transport,01/05/2015,Publicity,Group Communications,ABBOTT MEAD VICKERS BBDO LTD,2000002219,5009,#,NW1 5QE
Department for Transport,Department for Transport,01/05/2015,Publicity,Group Communications,CARAT LTD,100003205,10033.52,#,WC2B 5PS
Department for Transport,Department for Transport,01/05/2015,Publicity,Group Communications,CARAT LTD,100003205,-10033.52,#,WC2B 5PS
Department for Transport,Department for Transport,01/05/2015,Rates,Air Accident Investigation Branch,VODAFONE LTD,2000002231,1954.29,#,RG14 5FF
Department for Transport,Department for Transport,01/05/2015,Research,Local,WSP UK Limited,2000002229,58978.52,#,RG21 4HU
Department for Transport,Department for Transport,01/05/2015,Subscriptions to Pro,Group Human Resource,Mayvin Limited,2000002252,1800,#,BN2 1NA
Department for Transport,Department for Transport,01/05/2015,Support Services,Group Finance,RAILWAYS PENSION MANAGEMENT LT,2000002233,950000,#,DL3 6EH
Department for Transport,Department for Transport,01/05/2015,Telephone charges,Air Accident Investigation Branch,VODAFONE LTD,2000002231,1080,#,RG14 5FF
Department for Transport,Department for Transport,01/05/2015,Telephone charges,Air Accident Investigation Branch,VODAFONE LTD,2000002231,-540,#,RG14 5FF
Department for Transport,Department for Transport,01/05/2015,Transport  Consult,Major Projects & Growth,ATKINS LTD (TRANSPORT PLANNING),2000002221,18807.6,#,WR5 1TX
Department for Transport,Department for Transport,01/05/2015,Travel Expenses UK,Rail Accident Investigation Branch,REDFERN TRAVEL LTD,2000002236,8230.46,Redfern March 2015,BD1 3AZ
Department for Transport,Department for Transport,01/05/2015,Treasury Solicitors,General Counsel's Office,Government Legal Department,2000002255,1041.07,#,WC2B 4TS
Department for Transport,Department for Transport,01/05/2015,Treasury Solicitors,General Counsel's Office,Government Legal Department,2000002255,515.16,#,WC2B 4TS
Department for Transport,Department for Transport,05/05/2015,Agency Staff Costs,Group Human Resource,CAPITA BUSINESS SERVICES LTD,2000002318,1179.4,#,DL1 9HN
Department for Transport,Department for Transport,05/05/2015,Agency Staff Costs,Group Finance,CAPITA BUSINESS SERVICES LTD,2000002318,2745.06,#,DL1 9HN
Department for Transport,Department for Transport,05/05/2015,Agency Staff Costs,Major Projects & Growth,Badenoch & Clark c/o Lauren Rogers,100003261,2978.16,#,B37 7YE
Department for Transport,Department for Transport,05/05/2015,Agency Staff Costs,Major Projects & Growth,Badenoch & Clark c/o Lauren Rogers,100003261,-2978.16,#,B37 7YE
Department for Transport,Department for Transport,05/05/2015,Agency Staff Costs,Rail Commercial & Programme Office,CAPITA BUSINESS SERVICES LTD,2000002318,4148.58,#,DL1 9HN
Department for Transport,Department for Transport,05/05/2015,Agency Staff Costs,Rail Commercial & Programme Office,CAPITA BUSINESS SERVICES LTD,2000002318,3260.04,#,DL1 9HN
Department for Transport,Department for Transport,05/05/2015,Agency Staff Costs,Rail Commercial & Programme Office,CAPITA BUSINESS SERVICES LTD,2000002318,4466.16,#,DL1 9HN
Department for Transport,Department for Transport,05/05/2015,Agency Staff Costs,Rail Commercial & Programme Office,CAPITA BUSINESS SERVICES LTD,2000002318,2585.94,#,DL1 9HN
Department for Transport,Department for Transport,05/05/2015,Agency Staff Costs,Rail Commercial & Programme Office,CAPITA BUSINESS SERVICES LTD,2000002318,11351.96,#,DL1 9HN
Department for Transport,Department for Transport,05/05/2015,Agency Staff Costs,Rail Commercial & Programme Office,MORGAN HUNT UK LTD,2000002324,3527.5,#,EC4M 7EG
Department for Transport,Department for Transport,05/05/2015,Agency Staff Costs,Motoring Services,CAPITA BUSINESS SERVICES LTD,2000002318,4385.33,#,DL1 9HN
Department for Transport,Department for Transport,05/05/2015,Agency Staff Costs,Group Finance,CAPITA BUSINESS SERVICES LTD,2000002318,2680.14,#,DL1 9HN
Department for Transport,Department for Transport,05/05/2015,Agency Staff Costs,Group Finance,CAPITA BUSINESS SERVICES LTD,2000002318,2679.3,#,DL1 9HN
Department for Transport,Department for Transport,05/05/2015,Agency Staff Costs,Group Finance,CAPITA BUSINESS SERVICES LTD,2000002318,1985.34,#,DL1 9HN
Department for Transport,Department for Transport,05/05/2015,Agency Staff Costs,Rail Franchising,CAPITA BUSINESS SERVICES LTD,2000002318,3826.14,#,DL1 9HN
Department for Transport,Department for Transport,05/05/2015,Agency Staff Costs,Integrated Delivery,CAPITA BUSINESS SERVICES LTD,2000002318,4833.9,#,DL1 9HN
Department for Transport,Department for Transport,05/05/2015,Agency Staff Costs,Integrated Delivery,CAPITA BUSINESS SERVICES LTD,2000002318,4459.26,#,DL1 9HN
Department for Transport,Department for Transport,05/05/2015,Agency Staff Costs,Group Finance,CAPITA BUSINESS SERVICES LTD,2000002318,3831.46,#,DL1 9HN
Department for Transport,Department for Transport,05/05/2015,Agency Staff Costs,Integrated Delivery,CAPITA BUSINESS SERVICES LTD,2000002318,5226.06,#,DL1 9HN
Department for Transport,Department for Transport,05/05/2015,Agency Staff Costs,Integrated Delivery,CAPITA BUSINESS SERVICES LTD,2000002318,4874.64,#,DL1 9HN
Department for Transport,Department for Transport,05/05/2015,Agency Staff Costs,Rail Franchising,CAPITA BUSINESS SERVICES LTD,2000002318,4187.4,#,DL1 9HN
Department for Transport,Department for Transport,05/05/2015,Agency Staff Costs,Rail Franchising,CAPITA BUSINESS SERVICES LTD,2000002318,3418.88,#,DL1 9HN
Department for Transport,Department for Transport,05/05/2015,Agency Staff Costs,Integrated Delivery,CAPITA BUSINESS SERVICES LTD,2000002318,2680.14,#,DL1 9HN
Department for Transport,Department for Transport,05/05/2015,Agency Staff Costs,Integrated Delivery,CAPITA BUSINESS SERVICES LTD,2000002318,4459.26,#,DL1 9HN
Department for Transport,Department for Transport,05/05/2015,Agency Staff Costs,Integrated Delivery,CAPITA BUSINESS SERVICES LTD,2000002318,4874.64,#,DL1 9HN
Department for Transport,Department for Transport,05/05/2015,Agency Staff Costs,Integrated Delivery,CAPITA BUSINESS SERVICES LTD,2000002318,2160.54,#,DL1 9HN
Department for Transport,Department for Transport,05/05/2015,Agency Staff Costs,Rail Franchising,LEND LEASE CONSULTING (EMEA) LTD,2000002330,20832,#,NW1 3BF
Department for Transport,Department for Transport,05/05/2015,Agents Fees,Motoring Services,Driver & Vehicle Licensing Agency,2000002321,18052.34,#,SA6 7JL
Department for Transport,Department for Transport,05/05/2015,Agents Fees,Motoring Services,Driver & Vehicle Licensing Agency,2000002321,8020.55,#,SA6 7JL
Department for Transport,Department for Transport,05/05/2015,Agents Fees,Motoring Services,Driver & Vehicle Licensing Agency,2000002321,7667.45,#,SA6 7JL
Department for Transport,Department for Transport,05/05/2015,Agents Fees,Motoring Services,Driver & Vehicle Licensing Agency,2000002321,1577.6,#,SA6 7JL
Department for Transport,Department for Transport,05/05/2015,Cap Grt Pri Sec-Cos.,"Energy, Technology and International",Audi UK,2000002351,455000,"""PiCG Audi March 2015 #455,000""",MK14 5AN
Department for Transport,Department for Transport,05/05/2015,Cap Grt Pri Sec-Cos.,"Energy, Technology and International",BMW UK Ltd,2000002346,2175000,"""PiCG BMW March 2015 2,175,000 """,RG12 8TA
Department for Transport,Department for Transport,05/05/2015,Cap Grt Pri Sec-Cos.,"Policy, Legislation and Funding",EVERSHEDS LLP,2000002353,5000000,Payment to UK Mail Group - purchase of land,LS11 5DR
Department for Transport,Department for Transport,05/05/2015,Cap Grt Pri Sec-Cos.,"Energy, Technology and International",Malones Group,2000002349,2700,Malones Group #2700 Apr 2015,NE11 0BQ
Department for Transport,Department for Transport,05/05/2015,Cap Grt Pri Sec-Cos.,"Energy, Technology and International",MERCEDES BENZ UK LTD,2000002336,101980.01,"""PiCG Mercedes March 2015 #101,980.01""",MK15 8BA
Department for Transport,Department for Transport,05/05/2015,Cap Grt Pri Sec-Cos.,"Energy, Technology and International",MERCEDES BENZ UK LTD,2000002336,8000,"""PiCG Mercedes Van March 2015 #8,000""",MK15 8BA
Department for Transport,Department for Transport,05/05/2015,Cap Grt Pri Sec-Cos.,"Energy, Technology and International",PEUGEOT MOTOR COMPANY,2000002337,10901,"""PiCG Peugeot April 2015 #10,901""",CV3 1ND
Department for Transport,Department for Transport,05/05/2015,Cap Grt Pri Sec-Cos.,"Energy, Technology and International",Porsche,2000002347,145000,"""PiCG Porsche March 2015 #145,000""",RG31 7SE
Department for Transport,Department for Transport,05/05/2015,Cap Grt Pri Sec-Cos.,"Energy, Technology and International",RENAULT,2000002338,507101,"""PiCG Renault April 2015 #507,101""",WD3 9YS
Department for Transport,Department for Transport,05/05/2015,Cap Grt Pri Sec-Cos.,"Energy, Technology and International",RENAULT,2000002338,507101,"""PiCG Renault March 2015 #507,101""",WD3 9YS
Department for Transport,Department for Transport,05/05/2015,Cap Grt Pri Sec-Cos.,"Energy, Technology and International",Schneider Electric,2000002342,6300,SCHNEIDER ELEC #6300 JAN 2015,W1W 6XX
Department for Transport,Department for Transport,05/05/2015,Cap Grt Pri Sec-Cos.,"Energy, Technology and International",Schneider Electric,2000002342,16200,SCHNEIDER ELEC #16200 Feb 2015,W1W 6XX
Department for Transport,Department for Transport,05/05/2015,Cap Grt Pri Sec-Cos.,"Energy, Technology and International",Schneider Electric,2000002342,51300,SCHNEIDER ELEC #51300 Mar 2015,W1W 6XX
Department for Transport,Department for Transport,05/05/2015,Cap Grt Pri Sec-Cos.,"Energy, Technology and International",Tesla Motors Limited GBP,2000002350,345000,"""PiCG TESLA March 2015 #345,000""",UB7 8JD
Department for Transport,Department for Transport,05/05/2015,Cap Grt Pri Sec-Cos.,"Energy, Technology and International",THE COLT CAR COMPANY LTD,2000002334,9851098,"""PiCG Mitsubishi March 2015 #9,851,098""",GL7 1LF
Department for Transport,Department for Transport,05/05/2015,Cap Grt Pri Sec-Cos.,"Energy, Technology and International",TOYOTA (GB) PLC,2000002339,65000,"""PiCG Toyota March 2015 #65,000""",KT18 5XS
Department for Transport,Department for Transport,05/05/2015,Cap Grt Pri Sec-Cos.,"Energy, Technology and International",Volkswagen UK,2000002348,54690,"""PiCG VW April 2015 54,690 """,MK14 5AN
Department for Transport,Department for Transport,05/05/2015,Cap Grt Pri Sec-Cos.,"Energy, Technology and International",Volkswagen UK,2000002348,54690,PiCG VW March 2015 #54k,MK14 5AN
Department for Transport,Department for Transport,05/05/2015,Cap Grt Pri Sec-Cos.,"Energy, Technology and International",Volvo Car UK Limited,2000002344,85000,"""PiCG Volvo April 2015 #85,000""",SL6 4FJ
Department for Transport,Department for Transport,05/05/2015,Cap Grt Pri Sec-Cos.,"Energy, Technology and International",Volvo Car UK Limited,2000002344,85000,"""PiCG Volvo March 2015 #85,000""",SL6 4FJ
Department for Transport,Department for Transport,05/05/2015,CurrGrtPriSec-P&NPIS,"Energy, Technology and International",LOW CARBON VEHICLE PARTNERSHIP,2000002333,34000,"""LowCVP Apr 15 #34,000 DfT payment""",SW1H 9JJ
Department for Transport,Department for Transport,05/05/2015,IT Equip Cap Cost,Motoring Services,SPECIALIST COMPUTER CENTRES PLC,2000002331,15944.62,#,B11 2LE
Department for Transport,Department for Transport,05/05/2015,L&B Excl Dwellings,Maritime,Guideline Lift Services Ltd,2000002352,13632.77,#,BR8 7AG
Department for Transport,Department for Transport,05/05/2015,Medical Advisory Ser,Rail Accident Investigation Branch,HEALTHCARE CONNECTIONS LTD,2000002332,482.16,#,HP5 3EN
Department for Transport,Department for Transport,05/05/2015,Research,Local,NATIONAL CENTRE FOR SOCIAL RESEARCH,2000002325,137794.12,#,EC1V 0AX
Department for Transport,Department for Transport,05/05/2015,Research,Local,NATIONAL CENTRE FOR SOCIAL RESEARCH,2000002325,17204,#,EC1V 0AX
Department for Transport,Department for Transport,05/05/2015,Research,Local,NATIONAL CENTRE FOR SOCIAL RESEARCH,2000002325,7440,#,EC1V 0AX
Department for Transport,Department for Transport,05/05/2015,Research,Transport Security Co-ordination and Response,HEALTH & SAFETY LABORATORIES,2000002322,9336,#,SK17 9JN
Department for Transport,Department for Transport,05/05/2015,Research,"Motoring, Freight & London",TWI Ltd,2000002343,45540,#,CB21 6AL
Department for Transport,Department for Transport,05/05/2015,Small Software,Aviation,CONNECT INTERNET SOLUTIONS LTD,2000002320,900,#,L2 6SG
Department for Transport,Department for Transport,05/05/2015,Support Services,"Motoring, Freight & London",Environmental Scientifics Group,2000002319,5505.6,#,OX9 3SZ
Department for Transport,Department for Transport,05/05/2015,Support Services,"Motoring, Freight & London",Environmental Scientifics Group,2000002319,3943.2,#,OX9 3SZ
Department for Transport,Department for Transport,05/05/2015,Support Services,Aviation,OECD,2000002326,58500,#,SG6 1HN
Department for Transport,Department for Transport,06/05/2015,Agency Staff Costs,Integrated Delivery,MICHAEL PAGE INTERNATIONAL,2000002444,3420,#,SL1 3SA
Department for Transport,Department for Transport,06/05/2015,Agency Staff Costs,Integrated Delivery,MICHAEL PAGE INTERNATIONAL,2000002444,6420,#,SL1 3SA
Department for Transport,Department for Transport,06/05/2015,Agency Staff Costs,Integrated Delivery,NETWORKERS INTERNATIONAL (UK) PLC,2000002445,3391.26,#,BR1 1HP
Department for Transport,Department for Transport,06/05/2015,Agency Staff Costs,Environment & International Transport Analysis,CAPITA BUSINESS SERVICES LTD,2000002433,2858.59,#,DL1 9HN
Department for Transport,Department for Transport,06/05/2015,Agency Staff Costs,Local,CAPITA BUSINESS SERVICES LTD,2000002433,2698.06,#,DL1 9HN
Department for Transport,Department for Transport,06/05/2015,Agency Staff Costs,Group Finance,NETWORKERS INTERNATIONAL (UK) PLC,2000002445,861,#,BR1 1HP
Department for Transport,Department for Transport,06/05/2015,Agency Staff Costs,Rail Franchising,CAPITA BUSINESS SERVICES LTD,2000002433,10951.91,#,DL1 9HN
Department for Transport,Department for Transport,06/05/2015,Agency Staff Costs,Rail Franchising,CAPITA BUSINESS SERVICES LTD,2000002433,2008.14,#,DL1 9HN
Department for Transport,Department for Transport,06/05/2015,Agency Staff Costs,Group Finance,Experis Ltd,2000002436,1540.13,#,EC2M 2RB
Department for Transport,Department for Transport,06/05/2015,Agency Staff Costs,HS2 Phase 2,NETWORKERS INTERNATIONAL (UK) PLC,2000002445,3454.06,#,BR1 1HP
Department for Transport,Department for Transport,06/05/2015,Agency Staff Costs,Project Sponsorship,SPRING TECHNOLOGY LTD  ALSO T/A,2000002447,4650,#,B37 7YE
Department for Transport,Department for Transport,06/05/2015,Agency Staff Costs,Project Sponsorship,SPRING TECHNOLOGY LTD  ALSO T/A,2000002447,4200,#,B37 7YE
Department for Transport,Department for Transport,06/05/2015,CurrGrt Las in AEF/A,Local,Sheffield City Region,2000002443,2200000,NTS - TransNorth development workstream,S1 4PL
Department for Transport,Department for Transport,06/05/2015,CurrGrt Las in AEF/A,Local,Sheffield City Region,2000002443,2015000,NTS - Transport for the North core funding,S1 4PL
Department for Transport,Department for Transport,06/05/2015,Data Supply - TD,Motoring Services,LANDMARK INFORMATION GROUP LTD,2000002437,15050.6,#,EX2 7HY
Department for Transport,Department for Transport,06/05/2015,Eurotunnel Admin Pay,Rail Commercial & Programme Office,SNCF Caisse Generale,2000002370,5914282.96,SNCF Funds April 2015 - GBP Exchange plus TVA,93633
Department for Transport,Department for Transport,06/05/2015,Eurotunnel Admin Pay,Rail Commercial & Programme Office,SNCF TRESORERIE ENC RHT VFE,2000002371,5143134.03,SNCF Funds April 2015 - Euro Exchange plus TVA,75014
Department for Transport,Department for Transport,06/05/2015,Home Phone Charges,Rail Accident Investigation Branch,MAIN-TEL,2000002438,629.11,#,TS17 0AQ
Department for Transport,Department for Transport,06/05/2015,Legal Consultancy,Major Projects & Growth,HOGAN LOVELLS,2000002450,41698.8,#,EC1A 2FG
Department for Transport,Department for Transport,06/05/2015,Legal Consultancy,Major Projects & Growth,HOGAN LOVELLS,2000002450,38062.8,#,EC1A 2FG
Department for Transport,Department for Transport,06/05/2015,Maintenance Other,"Motoring, Freight & London",TDC SYSTEMS LIMITED,2000002442,1140,#,BS24 9BP
Department for Transport,Department for Transport,06/05/2015,Maintenance Other,"Motoring, Freight & London",TDC SYSTEMS LIMITED,2000002442,565,#,BS24 9BP
Department for Transport,Department for Transport,06/05/2015,Maintenance Other,"Motoring, Freight & London",TDC SYSTEMS LIMITED,2000002442,515,#,BS24 9BP
Department for Transport,Department for Transport,06/05/2015,Maintenance Other,"Motoring, Freight & London",TDC SYSTEMS LIMITED,2000002442,1365,#,BS24 9BP
Department for Transport,Department for Transport,06/05/2015,Maintenance Other,"Motoring, Freight & London",TDC SYSTEMS LIMITED,2000002442,1140,#,BS24 9BP
Department for Transport,Department for Transport,06/05/2015,Maintenance Other,"Motoring, Freight & London",TDC SYSTEMS LIMITED,2000002442,11310,#,BS24 9BP
Department for Transport,Department for Transport,06/05/2015,Maintenance Other,"Motoring, Freight & London",TDC SYSTEMS LIMITED,2000002442,2460,#,BS24 9BP
Department for Transport,Department for Transport,06/05/2015,Other Professional F,"Energy, Technology and International",RICARDO - AEA LIMITED,2000002452,7968,#,OX11 0PQ
Department for Transport,Department for Transport,06/05/2015,Prog&ProjMgmt Consul,Project Sponsorship,PARSONS BRINCKERHOFF LTD,2000002441,5478.34,#,NE4 7YQ
Department for Transport,Department for Transport,06/05/2015,Prog&ProjMgmt Consul,Project Sponsorship,PARSONS BRINCKERHOFF LTD,2000002441,3232.87,#,NE4 7YQ
Department for Transport,Department for Transport,06/05/2015,Prog&ProjMgmt Consul,Project Sponsorship,PARSONS BRINCKERHOFF LTD,2000002441,9933.66,#,NE4 7YQ
Department for Transport,Department for Transport,06/05/2015,Prog&ProjMgmt Consul,Project Sponsorship,PARSONS BRINCKERHOFF LTD,2000002441,3866.34,#,NE4 7YQ
Department for Transport,Department for Transport,06/05/2015,Prog&ProjMgmt Consul,Project Sponsorship,PARSONS BRINCKERHOFF LTD,2000002441,5966.5,#,NE4 7YQ
Department for Transport,Department for Transport,06/05/2015,Prog&ProjMgmt Consul,Project Sponsorship,PARSONS BRINCKERHOFF LTD,2000002441,6976.26,#,NE4 7YQ
Department for Transport,Department for Transport,06/05/2015,Publications for Res,Group Communications,CREATIVE CHOICE CIC,2000002451,12630,#,SW1H 0DJ
Department for Transport,Department for Transport,06/05/2015,Publicity,"Motoring, Freight & London",ATKINS LTD (TRANSPORT PLANNING),2000002434,36000,#,WR5 1TX
Department for Transport,Department for Transport,06/05/2015,Purchasing Card Char,RTL DG's Office,BARCLAYS BANK PLC,2000002435,4812.79,Barclays - DFT/RT&L - May 2015,NN4 7SG
Department for Transport,Department for Transport,06/05/2015,Purchasing Card Char,RTL DG's Office,BARCLAYS BANK PLC,2000002435,14208.96,Barclays - DFT/RT&L - May 2015,NN4 7SG
Department for Transport,Department for Transport,06/05/2015,Purchasing Card Char,ISE - DG's Office,BARCLAYS BANK PLC,2000002435,17910.81,Barclays - DFT/ISE - May 2015,NN4 7SG
Department for Transport,Department for Transport,06/05/2015,Purchasing Card Char,ISE - DG's Office,BARCLAYS BANK PLC,2000002435,26797.49,Barclays - DFT/ISE - May 2015,NN4 7SG
Department for Transport,Department for Transport,06/05/2015,Purchasing Card Char,Group Finance,BARCLAYS BANK PLC,2000002435,62892.32,Barclays - DFT/R&S - May 2015,NN4 7SG
Department for Transport,Department for Transport,06/05/2015,Purchasing Card Char,Group Finance,BARCLAYS BANK PLC,2000002435,864.31,Barclays - DFT/Rail - May 2015,NN4 7SG
Department for Transport,Department for Transport,06/05/2015,Purchasing Card Char,Group Finance,BARCLAYS BANK PLC,2000002435,12300.64,Barclays - DFT/Rail - May 2015,NN4 7SG
Department for Transport,Department for Transport,06/05/2015,Purchasing Card Char,Pre Re-Organisation,BARCLAYS BANK PLC,1700000009,-2513.71,Barclays - DFT/HS2 - May 2015,NN4 7SG
Department for Transport,Department for Transport,06/05/2015,Purchasing Card Char,Pre Re-Organisation,BARCLAYS BANK PLC,1700000009,2513.71,Barclays - DFT/HS2 - May 2015,NN4 7SG
Department for Transport,Department for Transport,06/05/2015,Research,"Motoring, Freight & London",TWI Ltd,2000002457,14700,#,CB21 6AL
Department for Transport,Department for Transport,06/05/2015,Research,Local,OVE ARUP & PARTNERS,2000002440,22877.41,#,NE1 3PL
Department for Transport,Department for Transport,06/05/2015,Storage & Distributi,General Counsel's Office,COMMUNITIES AND LOCAL GOVERNMENT,2000002428,106136.62,#,HP2 4XN
Department for Transport,Department for Transport,06/05/2015,Subsidies Private Se,Local,CUMBRIA CLASSIC COACHES,2000002432,542.94,CUMBRIA CLASSIC COACHES,CA17 4NL
Department for Transport,Department for Transport,06/05/2015,Support Services,Aviation,LONDON SOUTHEND AIRPORT CO LTD,2000002446,24819.6,#,SS2 6YF
Department for Transport,Department for Transport,06/05/2015,Support Services,Group Procurement and Property,Crawford & Co Adjusters (UK) Ltd,2000002458,509688.02,#,B2 2PF
Department for Transport,Department for Transport,06/05/2015,Training,Motoring Services,HMG 2157,2000002427,1020,Annual Licence & use of Air Field@ Carver Barracks,CB10 2YA
Department for Transport,Department for Transport,06/05/2015,Training,Environment & International Transport Analysis,The Baltic Exchange Ltd,2000002471,4800,#,EC3A 8BH
Department for Transport,Department for Transport,06/05/2015,Transport  Consult,Rail Commercial & Programme Office,Directly Operated Railways Ltd,2000002449,45480.52,#,EC4A 1BL
Department for Transport,Department for Transport,06/05/2015,Transport  Consult,Rail Commercial & Programme Office,Directly Operated Railways Ltd,2000002449,16937.51,#,EC4A 1BL
Department for Transport,Department for Transport,06/05/2015,Transport  Consult,Rail Commercial & Programme Office,Directly Operated Railways Ltd,2000002449,129035.89,#,EC4A 1BL
Department for Transport,Department for Transport,06/05/2015,YR-Dental,Human Resources,National Dental Plan Limited,2000002378,578.5,3rd Party Payment Apr 2015,EC3N 1DY
Department for Transport,Department for Transport,07/05/2015,Agency Staff Costs,Air Accident Investigation Branch,BROOK STREET (UK) LIMITED,2000002528,636.25,#,AL1 4JB
Department for Transport,Department for Transport,07/05/2015,Agency Staff Costs,Rail Commercial & Programme Office,CAPITA BUSINESS SERVICES LTD,2000002514,-3341.04,#,DL1 9HN
Department for Transport,Department for Transport,07/05/2015,Agency Staff Costs,Rail Franchising,Badenoch & Clark c/o Lauren Rogers,2000002517,2437.2,#,B37 7YE
Department for Transport,Department for Transport,07/05/2015,Agency Staff Costs,HS2 Finance and Commercial,BROOK STREET (UK) LIMITED,2000002528,592.2,#,AL1 4JB
Department for Transport,Department for Transport,07/05/2015,Agency Staff Costs,HS2 Finance and Commercial,BROOK STREET (UK) LIMITED,2000002528,575.28,#,AL1 4JB
Department for Transport,Department for Transport,07/05/2015,Agency Staff Costs,HS2 Finance and Commercial,BROOK STREET (UK) LIMITED,2000002528,592.2,#,AL1 4JB
Department for Transport,Department for Transport,07/05/2015,Agency Staff Costs,Integrated Delivery,BROOK STREET (UK) LIMITED,2000002528,526.68,#,AL1 4JB
Department for Transport,Department for Transport,07/05/2015,Agency Staff Costs,Network Rail Sponsorship,CAPITA BUSINESS SERVICES LTD,2000002514,3230.17,#,DL1 9HN
Department for Transport,Department for Transport,07/05/2015,Agency Staff Costs,Integrated Delivery,CAPITA BUSINESS SERVICES LTD,2000002514,6903.2,#,DL1 9HN
Department for Transport,Department for Transport,07/05/2015,Agency Staff Costs,Rail Franchising,CAPITA BUSINESS SERVICES LTD,2000002514,4999.54,#,DL1 9HN
Department for Transport,Department for Transport,07/05/2015,Agency Staff Costs,Rail Franchising,CAPITA BUSINESS SERVICES LTD,2000002514,4450.14,#,DL1 9HN
Department for Transport,Department for Transport,07/05/2015,Agency Staff Costs,Rail Commercial & Programme Office,CAPITA BUSINESS SERVICES LTD,2000002514,2650.14,#,DL1 9HN
Department for Transport,Department for Transport,07/05/2015,Agency Staff Costs,Rail Franchising,CAPITA BUSINESS SERVICES LTD,2000002514,6594.14,#,DL1 9HN
Department for Transport,Department for Transport,07/05/2015,Agency Staff Costs,Rail Commercial & Programme Office,CAPITA BUSINESS SERVICES LTD,2000002514,2452.8,#,DL1 9HN
Department for Transport,Department for Transport,07/05/2015,Agency Staff Costs,Rail Franchising,Capita Resourcing Limited,2000002531,24780,#,EC4A 1EN
Department for Transport,Department for Transport,07/05/2015,Agency Staff Costs,Network Rail Sponsorship,Experis Ltd,2000002520,1805.82,#,EC2M 2RB
Department for Transport,Department for Transport,07/05/2015,Agency Staff Costs,Project Sponsorship,Experis Ltd,2000002520,7932.54,#,EC2M 2RB
Department for Transport,Department for Transport,07/05/2015,Cap Grt Pri Sec-Cos.,Network Rail Sponsorship,Network Rail Infstrcture (Treasury),2000002490,275000000,Network Rail Loan Payment,NW1 2DN
Department for Transport,Department for Transport,07/05/2015,Cap Grt Pri Sec-Cos.,"Energy, Technology and International",VAUXHALL MOTORS,2000002536,100000,Vauxhall PICG March #100k,LU1 3YT
Department for Transport,Department for Transport,07/05/2015,Car Hire and Leasing,Group Finance,Enterprise Rent-A-Car,2000002535,5550,Enterprise - Car Hire - Feb 2015,TW20 9FB
Department for Transport,Department for Transport,07/05/2015,CurrGrtPriSec-P&NPIS,"Energy, Technology and International",ENERGY SAVING TRUST,2000002530,819838,"""EST Mar 2014-15 #819,838 (DfT)""",SW1H 9BP
Department for Transport,Department for Transport,07/05/2015,Eurotunnel Admin Pay,Rail Commercial & Programme Office,Eurotunnel,2000002488,4507584.77,#,CT18 8XX
Department for Transport,Department for Transport,07/05/2015,Eurotunnel Admin Pay,Rail Commercial & Programme Office,EUROTUNNEL,2000002489,5139194.13,#,CT18 8XY
Department for Transport,Department for Transport,07/05/2015,Financial Consultanc,Major Projects & Growth,Pricewaterhouse Coopers LLP,2000002524,52656,#,SE1 2RD
Department for Transport,Department for Transport,07/05/2015,Hospitality,Group Procurement and Property,AMEY COMMUNITY LIMITED,2000002515,5279.27,Amey - Hospitality Charges - Feb 2015,OX4 4DQ
Department for Transport,Department for Transport,07/05/2015,Investigation Servic,Analysis & Strategy,ATKINS LTD (TRANSPORT PLANNING),2000002516,49603.2,#,WR5 1TX
Department for Transport,Department for Transport,07/05/2015,Legal Consultancy,"Policy, Legislation and Funding",LANDMARK CHAMBERS,2000002521,540,#,EC4A 2HG
Department for Transport,Department for Transport,07/05/2015,Legal Consultancy,Rail Franchising,NORTON ROSE LLP,2000002532,5651.52,#,SE1 2AQ
Department for Transport,Department for Transport,07/05/2015,Maintenance Other,"Motoring, Freight & London",TDC SYSTEMS LIMITED,2000002525,515,#,BS24 9BP
Department for Transport,Department for Transport,07/05/2015,Maintenance Other,"Motoring, Freight & London",TDC SYSTEMS LIMITED,2000002525,50994,#,BS24 9BP
Department for Transport,Department for Transport,07/05/2015,Maintenance Other,"Motoring, Freight & London",TDC SYSTEMS LIMITED,2000002525,515,#,BS24 9BP
Department for Transport,Department for Transport,07/05/2015,Manual Handling Equi,Motoring Services,Gemco Services Limited,100005088,-432.39,#,HX2 6JB
Department for Transport,Department for Transport,07/05/2015,Manual Handling Equi,Motoring Services,Gemco Services Limited,100005088,432.39,#,HX2 6JB
Department for Transport,Department for Transport,07/05/2015,Mobile Phone charges,RTL DG's Office,VODAFONE LTD,2000002529,1923.7,Vodafone - various  april 2015,RG14 5FF
Department for Transport,Department for Transport,07/05/2015,Mobile Phone charges,Group Finance,VODAFONE LTD,1700000010,-7000,Good will credit for inv - UK10/042015/6820,RG14 5FF
Department for Transport,Department for Transport,07/05/2015,Mobile Phone charges,Group Finance,VODAFONE LTD,1700000010,7000,Good will credit for inv - UK10/042015/6820,RG14 5FF
Department for Transport,Department for Transport,07/05/2015,Mobile Phone charges,Group Finance,VODAFONE LTD,2000002529,1080,Vodafone Samsung GS4 Mini Blk Corp SP,RG14 5FF
Department for Transport,Department for Transport,07/05/2015,Mobile Phone charges,Group Finance,VODAFONE LTD,2000002529,6780.25,Vodafone - 384 mobiles - 14.04.2015,RG14 5FF
Department for Transport,Department for Transport,07/05/2015,Other Advertising,Local,PENNA COMMUNICATIONS,2000002533,9846.91,#,EC4M 7RD
Department for Transport,Department for Transport,07/05/2015,Property Consultancy,Group Procurement and Property,Carter Jonas LLP,2000002540,8032.5,#,W1G 0BG
Department for Transport,Department for Transport,07/05/2015,Property Consultancy,Group Procurement and Property,Carter Jonas LLP,2000002540,2930,#,W1G 0BG
Department for Transport,Department for Transport,07/05/2015,Property Consultancy,Group Procurement and Property,Carter Jonas LLP,2000002540,13360,#,W1G 0BG
Department for Transport,Department for Transport,07/05/2015,Purchasing Card Char,Group Finance,BARCLAYS BANK PLC,2000002518,793.84,Barclays - [DFT Rail Group] - [April 2015],NN4 7SG
Department for Transport,Department for Transport,07/05/2015,Purchasing Card Char,Pre Re-Organisation,BARCLAYS BANK PLC,2000002518,4518.92,Barclays - [DFT HS2] - [April 2015],NN4 7SG
Department for Transport,Department for Transport,07/05/2015,Recruitment Fees,"Group Services, Change and Capability",Regus UK Limited,2000002522,1606.16,#,SL1 4DX
Department for Transport,Department for Transport,07/05/2015,Research,Local,WSP UK Limited,2000002527,25229.8,#,RG21 4HU
Department for Transport,Department for Transport,07/05/2015,Research,Local,OVE ARUP & PARTNERS,2000002523,22877.41,#,NE1 3PL
Department for Transport,Department for Transport,07/05/2015,Support Services,"Motoring, Freight & London",VEHICLE CERTIFICATION AGENCY,2000002526,4250.85,#,BS5 6XX
Department for Transport,Department for Transport,07/05/2015,Support Services,"Motoring, Freight & London",VEHICLE CERTIFICATION AGENCY,2000002526,17500,#,BS5 6XX
Department for Transport,Department for Transport,07/05/2015,Support Services,"Motoring, Freight & London",VEHICLE CERTIFICATION AGENCY,2000002526,9000,#,BS5 6XX
Department for Transport,Department for Transport,07/05/2015,Transport  Consult,Local,ATKINS LTD (TRANSPORT PLANNING),2000002516,27752.6,#,WR5 1TX
Department for Transport,Department for Transport,07/05/2015,Travel Expenses UK,Air Accident Investigation Branch,REDFERN TRAVEL LTD,2000002534,15156.05,Redfern - April 2015,BD1 3AZ
Department for Transport,Department for Transport,08/05/2015,Agency Staff Costs,Local,BROOK STREET (UK) LIMITED,2000002598,662.04,#,AL1 4JB
Department for Transport,Department for Transport,08/05/2015,Agency Staff Costs,Rail Commercial & Programme Office,Badenoch & Clark c/o Lauren Rogers,2000002582,3180,#,B37 7YE
Department for Transport,Department for Transport,08/05/2015,Agency Staff Costs,Rail Commercial & Programme Office,Badenoch & Clark c/o Lauren Rogers,2000002582,2544,#,B37 7YE
Department for Transport,Department for Transport,08/05/2015,Agency Staff Costs,Rail Commercial & Programme Office,Badenoch & Clark c/o Lauren Rogers,2000002582,3180,#,B37 7YE
Department for Transport,Department for Transport,08/05/2015,Agency Staff Costs,Rail Commercial & Programme Office,Badenoch & Clark c/o Lauren Rogers,2000002582,1272,#,B37 7YE
Department for Transport,Department for Transport,08/05/2015,Agency Staff Costs,Rail Commercial & Programme Office,MORGAN HUNT UK LTD,2000002589,3527.5,#,EC4M 7EG
Department for Transport,Department for Transport,08/05/2015,Agency Staff Costs,Motoring Services,Badenoch & Clark c/o Lauren Rogers,2000002582,3100.8,#,B37 7YE
Department for Transport,Department for Transport,08/05/2015,Agency Staff Costs,Motoring Services,Badenoch & Clark c/o Lauren Rogers,2000002582,3100.8,#,B37 7YE
Department for Transport,Department for Transport,08/05/2015,Agency Staff Costs,Rail Franchising,Badenoch & Clark c/o Lauren Rogers,2000002582,1336.8,#,B37 7YE
Department for Transport,Department for Transport,08/05/2015,Agency Staff Costs,Rail Franchising,Badenoch & Clark c/o Lauren Rogers,2000002582,1336.8,#,B37 7YE
Department for Transport,Department for Transport,08/05/2015,Agency Staff Costs,Rail Franchising,BROOK STREET (UK) LIMITED,2000002598,823.2,#,AL1 4JB
Department for Transport,Department for Transport,08/05/2015,Agency Staff Costs,Rail Franchising,Capita Resourcing Limited,2000002542,2673.91,#,EC4A 1EN
Department for Transport,Department for Transport,08/05/2015,Car Hire and Leasing,Group Finance,Enterprise Rent-A-Car,2000002603,5857.52,Enterprise - Car Hire -April 2015,TW20 9FB
Department for Transport,Department for Transport,08/05/2015,Car Tax & Insurance,Motoring Services,Independent Mercedes & BMW Ltd,2000002612,433.14,#,EH54 5DE
Department for Transport,Department for Transport,08/05/2015,Cars Maintenance,Motoring Services,CAMBRIA AUTOMOBILES SOUTH EAST LTD,2000002615,702.52,#,CR2 6EE
Department for Transport,Department for Transport,08/05/2015,Cars Maintenance,Motoring Services,Goodyear Dunlop Tyres UK Ltd,2000002611,492.5,#,B24 9HY
Department for Transport,Department for Transport,08/05/2015,Conferences / Semina,Maritime,CORPORATION OF TRINITY HOUSE,2000002585,960,#,EC3N 4DH
Department for Transport,Department for Transport,08/05/2015,Conferences / Semina,Maritime,CORPORATION OF TRINITY HOUSE,2000002585,1540,#,EC3N 4DH
Department for Transport,Department for Transport,08/05/2015,IT Ser Running Costs,Group Communications,RACKSPACE LTD,2000002593,1049.08,#,UB3 4AZ
Department for Transport,Department for Transport,08/05/2015,Maintenance Other,Motoring Services,ARVAL,2000002579,543.78,#,SN5 6PE
Department for Transport,Department for Transport,08/05/2015,Maintenance Other,Motoring Services,ARVAL,2000002579,3847.07,#,SN5 6PE
Department for Transport,Department for Transport,08/05/2015,Management Consultan,Strategic Roads & Smart Ticketing,Rail Settlement Plan,2000002594,288951.6,#,EC1A 4HD
Department for Transport,Department for Transport,08/05/2015,Manual Handling Equi,Motoring Services,Gemco Services Limited,2000002610,1411.87,#,HX2 6JB
Department for Transport,Department for Transport,08/05/2015,Manual Handling Equi,Motoring Services,Gemco Services Limited,2000002610,450,#,HX2 6JB
Department for Transport,Department for Transport,08/05/2015,Manual Handling Equi,Motoring Services,Gemco Services Limited,2000002610,-432.39,#,HX2 6JB
Department for Transport,Department for Transport,08/05/2015,Marketing,Analysis & Strategy,OVE ARUP & PARTNERS,2000002592,94703.2,#,NE1 3PL
Department for Transport,Department for Transport,08/05/2015,Media & Press,Group Communications,"GORKANA GROUP LTD (""GCL"")",2000002604,3978.54,#,EC1Y 8QE
Department for Transport,Department for Transport,08/05/2015,Mobile Phone charges,Group Finance,VODAFONE LTD,2000002599,669.5,Vodafone - CRG  - April 2015,RG14 5FF
Department for Transport,Department for Transport,08/05/2015,Other Professional F,Group Human Resource,Arvato Ltd,2000002618,5490,#,HU10 6FE
Department for Transport,Department for Transport,08/05/2015,Other Professional F,Group Human Resource,Arvato Ltd,2000002618,7370,#,HU10 6FE
Department for Transport,Department for Transport,08/05/2015,Other Professional F,Group Human Resource,Arvato Ltd,2000002618,116550,#,HU10 6FE
Department for Transport,Department for Transport,08/05/2015,Other Professional F,Group Human Resource,Arvato Ltd,2000002618,4310,#,HU10 6FE
Department for Transport,Department for Transport,08/05/2015,Other Professional F,Group Human Resource,Arvato Ltd,2000002618,1080,#,HU10 6FE
Department for Transport,Department for Transport,08/05/2015,Other Professional F,Group Human Resource,Arvato Ltd,2000002618,4310,#,HU10 6FE
Department for Transport,Department for Transport,08/05/2015,Purchasing Card Char,Pre Re-Organisation,BARCLAYS BANK PLC,2000002583,2094.76,Barclays DFT/HS2 May 2015,NN4 7SG
Department for Transport,Department for Transport,08/05/2015,Research,Rail Strategy & Funding,ATKINS LTD (TRANSPORT PLANNING),2000002581,17124,#,WR5 1TX
Department for Transport,Department for Transport,08/05/2015,Services prov by OGD,Local,PLANNING INSPECTORATE,2000002577,4969.29,#,BS1 6PN
Department for Transport,Department for Transport,08/05/2015,Support Services,Maritime,PLANNING INSPECTORATE,2000002577,31298.1,#,BS1 6PN
Department for Transport,Department for Transport,08/05/2015,Support Services,"Policy, Legislation and Funding",High Speed Two (HS2) Ltd,2000002606,82957.45,#,E14 5AB
Department for Transport,Department for Transport,08/05/2015,Telephone charges,Air Accident Investigation Branch,BT Payment SVCS Ltd (T/phone Bills),2000002597,4294.6,#,DH98 1BT
Department for Transport,Department for Transport,08/05/2015,Training,Air Accident Investigation Branch,HELI AIR LIMITED,2000002605,625,#,CV35 9EU
Department for Transport,Department for Transport,08/05/2015,Training,Group Communications,Angela Coles Training Ltd,2000002590,1496,#,N19 4PT
Department for Transport,Department for Transport,08/05/2015,Training,Group Human Resource,Leadership Works Limited,2000002619,11340,#,CO11 2HB
Department for Transport,Department for Transport,08/05/2015,Transport  Consult,Aviation,JACOBS UK LTD,2000002587,115558.1,#,G2 7HX
Department for Transport,Department for Transport,08/05/2015,Transport  Consult,Aviation,Systra Ltd,2000002591,95782.8,#,GU21 5BH
Department for Transport,Department for Transport,08/05/2015,Travel Expenses UK,Group Finance,REDFERN TRAVEL LTD,2000002602,114497.87,Redfern Travel April 2015,BD1 3AZ
Department for Transport,Department for Transport,08/05/2015,Travel Expenses UK,Marine Accident Investigation Branch,Clyde Travel Management,2000002584,516.03,Clyde - 30.04.2015,G52 4JQ
Department for Transport,Department for Transport,08/05/2015,Travel Expenses UK,Marine Accident Investigation Branch,Clyde Travel Management,2000002584,516.03,Clyde - 30.04.2015,G52 4JQ
Department for Transport,Department for Transport,08/05/2015,Travel Expenses UK,Marine Accident Investigation Branch,Rainbow Executive Cars Limited,2000002617,1161.6,#,SP10 2HP
Department for Transport,Department for Transport,11/05/2015,Agency Staff Costs,Integrated Delivery,MICHAEL PAGE INTERNATIONAL,2000002669,3594,#,SL1 3SA
Department for Transport,Department for Transport,11/05/2015,Agency Staff Costs,Integrated Delivery,MICHAEL PAGE INTERNATIONAL,2000002669,3594,#,SL1 3SA
Department for Transport,Department for Transport,11/05/2015,Agency Staff Costs,Integrated Delivery,MICHAEL PAGE INTERNATIONAL,2000002669,3420,#,SL1 3SA
Department for Transport,Department for Transport,11/05/2015,Agency Staff Costs,Integrated Delivery,MICHAEL PAGE INTERNATIONAL,2000002669,3240,#,SL1 3SA
Department for Transport,Department for Transport,11/05/2015,Agency Staff Costs,Programme Office,High Speed Two (HS2) Ltd,2000002676,20520,#,E14 5AB
Department for Transport,Department for Transport,11/05/2015,Agency Staff Costs,Programme Office,High Speed Two (HS2) Ltd,2000002676,25992,#,E14 5AB
Department for Transport,Department for Transport,11/05/2015,Agency Staff Costs,Programme Office,High Speed Two (HS2) Ltd,2000002676,28038,#,E14 5AB
Department for Transport,Department for Transport,11/05/2015,Agency Staff Costs,Group Finance,NETWORKERS INTERNATIONAL (UK) PLC,2000002670,688.8,#,BR1 1HP
Department for Transport,Department for Transport,11/05/2015,Agency Staff Costs,Rail Franchising,Experis Ltd,2000002666,5526.72,#,EC2M 2RB
Department for Transport,Department for Transport,11/05/2015,Building Service Cha,Group Procurement and Property,Amey Community Ltd,2000002680,211880.88,#,OX4 4DQ
Department for Transport,Department for Transport,11/05/2015,Computer equipment,Motoring Services,Konica Minolta Bus. Solutions (UK),2000002662,564,#,SS14 3AR
Department for Transport,Department for Transport,11/05/2015,Contract Cleaning,Rail Accident Investigation Branch,OFFICE CARE LTD,2000002673,1333.82,#,DE24 8AN
Department for Transport,Department for Transport,11/05/2015,Data Supply - TD,Motoring Services,BASEMAP LIMITED,2000002674,2936.8,#,GU2 7YG
Department for Transport,Department for Transport,11/05/2015,Investigation Servic,Motoring Services,CH&I Associates Ltd,2000002677,979.68,#,SK11 8AA
Department for Transport,Department for Transport,11/05/2015,Investigation Servic,Motoring Services,CH&I Associates Ltd,2000002677,3221.4,#,SK11 8AA
Department for Transport,Department for Transport,11/05/2015,IT Ser Running Costs,Group Communications,Intelogy Limited,2000002679,1554,#,TW16 7DY
Department for Transport,Department for Transport,11/05/2015,Media & Press,Group Communications,CABINET OFFICE,2000002681,20000,#,CF14 3UW
Department for Transport,Department for Transport,11/05/2015,Other Professional F,"Energy, Technology and International",RICARDO - AEA LIMITED,2000002675,18371,#,OX11 0PQ
Department for Transport,Department for Transport,11/05/2015,Publicity,Aviation,Ministry of Justice,2000002678,3600,#,SW1H 9AJ
Department for Transport,Department for Transport,11/05/2015,Research,"Motoring, Freight & London",MARKET & OPINION RESEARCH,2000002663,53205.47,#,SE1 1FY
Department for Transport,Department for Transport,11/05/2015,Research,Transport Security Co-ordination and Response,HOME OFFICE SHARED SERVICE CENTRE,2000002683,84183.54,#,NP20 9BB
Department for Transport,Department for Transport,11/05/2015,Research,Local,TRANSPORT RESEARCH LABORATORY,2000002667,2671.93,#,RG40 3GA
Department for Transport,Department for Transport,11/05/2015,Small Software,Group Communications,THE PRESS ASSOCIATION LTD,2000002671,916.55,#,SW1V 1A
Department for Transport,Department for Transport,11/05/2015,Subscriptions to Pro,Analysis & Strategy,HM REVENUE & CUSTOMS,2000002682,8856,#,BN12 4XH
Department for Transport,Department for Transport,11/05/2015,Travel Expenses UK,Air Accident Investigation Branch,REDFERN TRAVEL LTD,1700000013,-15156.05,Redfern Travel April 2015,BD1 3AZ
Department for Transport,Department for Transport,11/05/2015,Travel Expenses UK,Air Accident Investigation Branch,REDFERN TRAVEL LTD,1700000013,15156.05,Redfern Travel April 2015,BD1 3AZ
Department for Transport,Department for Transport,12/05/2015,Agency Staff Costs,Local,BROOK STREET (UK) LIMITED,2000002749,642.02,#,AL1 4JB
Department for Transport,Department for Transport,12/05/2015,Agency Staff Costs,Integrated Delivery,Allen Lane,2000002734,4036.38,#,SW1Y 6RJ
Department for Transport,Department for Transport,12/05/2015,Agency Staff Costs,Major Projects & Growth,Experis Ltd,2000002740,12080.04,#,EC2M 2RB
Department for Transport,Department for Transport,12/05/2015,Agency Staff Costs,Major Projects & Growth,Experis Ltd,2000002740,958.69,#,EC2M 2RB
Department for Transport,Department for Transport,12/05/2015,Agency Staff Costs,Group Finance,Allen Lane,2000002734,2463.84,#,SW1Y 6RJ
Department for Transport,Department for Transport,12/05/2015,Agency Staff Costs,Group Finance,CAPITA BUSINESS SERVICES LTD,2000002732,2680.14,#,DL1 9HN
Department for Transport,Department for Transport,12/05/2015,Agency Staff Costs,Motoring Services,Badenoch & Clark c/o Lauren Rogers,100005234,3705,SG  - Timesheet 16/05/2014 - CR with 2113964,B37 7YE
Department for Transport,Department for Transport,12/05/2015,Agency Staff Costs,Motoring Services,Badenoch & Clark c/o Lauren Rogers,100005234,-3705,CR for Invoice 5106015198,B37 7YE
Department for Transport,Department for Transport,12/05/2015,Agency Staff Costs,HS2 Finance and Commercial,BROOK STREET (UK) LIMITED,2000002749,600.66,#,AL1 4JB
Department for Transport,Department for Transport,12/05/2015,Agency Staff Costs,HS2 Finance and Commercial,BROOK STREET (UK) LIMITED,2000002749,802.67,#,AL1 4JB
Department for Transport,Department for Transport,12/05/2015,Agency Staff Costs,Rail Franchising,CAPITA BUSINESS SERVICES LTD,2000002732,3826.14,#,DL1 9HN
Department for Transport,Department for Transport,12/05/2015,Agency Staff Costs,Integrated Delivery,CAPITA BUSINESS SERVICES LTD,2000002732,4874.64,#,DL1 9HN
Department for Transport,Department for Transport,12/05/2015,Agency Staff Costs,Project Sponsorship,Experis Ltd,2000002740,3697.81,#,EC2M 2RB
Department for Transport,Department for Transport,12/05/2015,Agency Staff Costs,Rail Franchising,Experis Ltd,2000002740,8902.08,#,EC2M 2RB
Department for Transport,Department for Transport,12/05/2015,Agency Staff Costs,Rail Franchising,Experis Ltd,2000002740,5526.72,#,EC2M 2RB
Department for Transport,Department for Transport,12/05/2015,Agency Staff Costs,Strategic Roads & Smart Ticketing,Experis Ltd,2000002740,9065.76,#,EC2M 2RB
Department for Transport,Department for Transport,12/05/2015,Agency Staff Costs,Project Sponsorship,SPRING TECHNOLOGY LTD  ALSO T/A,2000002751,4650,#,B37 7YE
Department for Transport,Department for Transport,12/05/2015,Agency Staff Costs,Project Sponsorship,SPRING TECHNOLOGY LTD  ALSO T/A,2000002751,4200,#,B37 7YE
Department for Transport,Department for Transport,12/05/2015,Agents Fees,Strategic Roads & Smart Ticketing,NORTHGATE INFORMATION SOLUTIONS,2000002761,179100,#,HP2 4NW
Department for Transport,Department for Transport,12/05/2015,Building Service Cha,Rail Accident Investigation Branch,INNES ENGLAND LTD,2000002742,1625,Innes - Clarke St - 25.03. to 23.06.2015,DE1 1BT
Department for Transport,Department for Transport,12/05/2015,Cap Grt Pri Sec-Cos.,"Policy, Legislation and Funding",Eversheds LLP,2000002757,620000,#,CF10 5BT
Department for Transport,Department for Transport,12/05/2015,Cap Grt Pri Sec-Cos.,"Policy, Legislation and Funding",Eversheds LLP,2000002757,597500,#,CF10 5BT
Department for Transport,Department for Transport,12/05/2015,Cars Maintenance,Motoring Services,Bodyshop Repair Network Ltd,2000002755,630.58,#,TN16 3BW
Department for Transport,Department for Transport,12/05/2015,Computer equipment,Motoring Services,TORPEDO FACTORY LIMITED,2000002760,1020,#,NW10 6ST
Department for Transport,Department for Transport,12/05/2015,IT Equip Cap Cost,Air Accident Investigation Branch,BASSOM COMPUTER CONSULTANCY,2000002737,19604.58,#,GU9 8LS
Department for Transport,Department for Transport,12/05/2015,IT Equip Cap Cost,Motoring Services,SOFTWARE BOX LTD,2000002730,288.3,Wyse Terminals - Kboards,YO61 1ET
Department for Transport,Department for Transport,12/05/2015,IT Equip Cap Cost,Motoring Services,SOFTWARE BOX LTD,2000002730,5659.8,#,YO61 1ET
Department for Transport,Department for Transport,12/05/2015,Legal Consultancy,Aviation,LANDMARK CHAMBERS,2000002743,900,#,EC4A 2HG
Department for Transport,Department for Transport,12/05/2015,Maintenance Other,Motoring Services,ARVAL,2000002733,857.4,#,SN5 6PE
Department for Transport,Department for Transport,12/05/2015,Mobile Phone charges,Group Finance,Vodafone Ltd (ex C&W W'wide Div.),2000002729,-7000,Goodwill credit re UK10/042015/6820,MK3 5JP
Department for Transport,Department for Transport,12/05/2015,Printing,Rail Franchising,WILLIAMS LEA LIMITED,2000002753,938.65,#,NR3 1PD
Department for Transport,Department for Transport,12/05/2015,Prog&ProjMgmt Consul,Local,ATKINS LTD (TRANSPORT PLANNING),2000002736,13333.33,#,WR5 1TX
Department for Transport,Department for Transport,12/05/2015,Research,Environment & International Transport Analysis,Civil Aviation Authority,2000002739,2000,#,RH6 0YR
Department for Transport,Department for Transport,12/05/2015,Research,Transport Security Co-ordination and Response,DEFENCE SCIENCE & TECHNOLOGY,100005235,-55363.2,#,PO14 9HL
Department for Transport,Department for Transport,12/05/2015,Research,Transport Security Co-ordination and Response,DEFENCE SCIENCE & TECHNOLOGY,100005235,55363.2,#,PO14 9HL
Department for Transport,Department for Transport,12/05/2015,Research,Major Projects & Growth,TRANSPORT RESEARCH LABORATORY,2000002747,19862.45,#,RG40 3GA
Department for Transport,Department for Transport,12/05/2015,Research,"Energy, Technology and International",Ricardo UK Ltd,2000002758,43554,#,BN43 5FG
Department for Transport,Department for Transport,12/05/2015,Support Services,Aviation,Civil Aviation Authority,2000002739,47456,#,RH6 0YR
Department for Transport,Department for Transport,12/05/2015,Support Services,Aviation,Civil Aviation Authority,2000002739,126733.8,#,RH6 0YR
Department for Transport,Department for Transport,12/05/2015,Telephone charges,Air Accident Investigation Branch,VODAFONE LTD,2000002750,1278,#,RG14 5FF
Department for Transport,Department for Transport,12/05/2015,Telephone Line Rent,Motoring Services,Vodafone Ltd (ex C&W W'wide Div.),2000002729,18159.91,Rental Chages UK13009716 01.05.15-31.05.15,MK3 5JP
Department for Transport,Department for Transport,12/05/2015,Traffic Survey & Cou,"Motoring, Freight & London",PARSONS BRINCKERHOFF LTD,2000002745,186321.11,#,NE4 7YQ
Department for Transport,Department for Transport,12/05/2015,Training,Air Accident Investigation Branch,xxxxxx,2000002756,500,#,xxxxxx
Department for Transport,Department for Transport,12/05/2015,Transport  Consult,Rail Commercial & Programme Office,NSARE Limited,2000002759,72000,#,SW1H 9DJ
Department for Transport,Department for Transport,12/05/2015,Transport  Consult,"Energy, Technology and International",OVE ARUP & PARTNERS,2000002744,79594.68,#,NE1 3PL
Department for Transport,Department for Transport,12/05/2015,Treasury Solicitors,"Policy, Legislation and Funding",Government Legal Department,2000002762,12715.72,#,WC2B 4TS
Department for Transport,Department for Transport,13/05/2015,Agency Staff Costs,Air Accident Investigation Branch,BROOK STREET (UK) LIMITED,2000002823,636.25,#,AL1 4JB
Department for Transport,Department for Transport,13/05/2015,Agency Staff Costs,Local,BROOK STREET (UK) LIMITED,2000002823,642.02,#,AL1 4JB
Department for Transport,Department for Transport,13/05/2015,Agency Staff Costs,Group Human Resource,CAPITA BUSINESS SERVICES LTD,2000002810,1965.66,#,DL1 9HN
Department for Transport,Department for Transport,13/05/2015,Agency Staff Costs,Local,BROOK STREET (UK) LIMITED,2000002823,787.92,#,AL1 4JB
Department for Transport,Department for Transport,13/05/2015,Agency Staff Costs,Group Finance,CAPITA BUSINESS SERVICES LTD,2000002810,2745.06,#,DL1 9HN
Department for Transport,Department for Transport,13/05/2015,Agency Staff Costs,Integrated Delivery,Badenoch & Clark c/o Lauren Rogers,2000002814,4032,#,B37 7YE
Department for Transport,Department for Transport,13/05/2015,Agency Staff Costs,Integrated Delivery,MICHAEL PAGE INTERNATIONAL,2000002826,3210,#,SL1 3SA
Department for Transport,Department for Transport,13/05/2015,Agency Staff Costs,Integrated Delivery,MICHAEL PAGE INTERNATIONAL,2000002826,2568,#,SL1 3SA
Department for Transport,Department for Transport,13/05/2015,Agency Staff Costs,Rail Strategy & Funding,Experis Ltd,2000002818,2999.7,#,EC2M 2RB
Department for Transport,Department for Transport,13/05/2015,Agency Staff Costs,Major Projects & Growth,CAPITA BUSINESS SERVICES LTD,2000002810,7922.28,#,DL1 9HN
Department for Transport,Department for Transport,13/05/2015,Agency Staff Costs,Group Finance,Allen Lane,2000002813,2719.38,#,SW1Y 6RJ
Department for Transport,Department for Transport,13/05/2015,Agency Staff Costs,Group Finance,CAPITA BUSINESS SERVICES LTD,2000002810,2679.3,#,DL1 9HN
Department for Transport,Department for Transport,13/05/2015,Agency Staff Costs,Group Finance,CAPITA BUSINESS SERVICES LTD,2000002810,1985.34,#,DL1 9HN
Department for Transport,Department for Transport,13/05/2015,Agency Staff Costs,Group Finance,CAPITA BUSINESS SERVICES LTD,2000002810,2650.14,#,DL1 9HN
Department for Transport,Department for Transport,13/05/2015,Agency Staff Costs,Integrated Delivery,BROOK STREET (UK) LIMITED,2000002823,512.82,#,AL1 4JB
Department for Transport,Department for Transport,13/05/2015,Agency Staff Costs,Rail Franchising,BROOK STREET (UK) LIMITED,2000002823,823.2,#,AL1 4JB
Department for Transport,Department for Transport,13/05/2015,Agency Staff Costs,Rail Franchising,CAPITA BUSINESS SERVICES LTD,2000002810,4762.14,#,DL1 9HN
Department for Transport,Department for Transport,13/05/2015,Agency Staff Costs,Rail Commercial & Programme Office,CAPITA BUSINESS SERVICES LTD,2000002810,2452.8,#,DL1 9HN
Department for Transport,Department for Transport,13/05/2015,Agency Staff Costs,Rail Franchising,CAPITA BUSINESS SERVICES LTD,2000002810,3826.14,#,DL1 9HN
Department for Transport,Department for Transport,13/05/2015,Agency Staff Costs,Integrated Delivery,CAPITA BUSINESS SERVICES LTD,2000002810,15600,#,DL1 9HN
Department for Transport,Department for Transport,13/05/2015,Agency Staff Costs,Network Rail Sponsorship,CAPITA BUSINESS SERVICES LTD,2000002810,-587.3,#,DL1 9HN
Department for Transport,Department for Transport,13/05/2015,Agency Staff Costs,Network Rail Sponsorship,CAPITA BUSINESS SERVICES LTD,2000002810,-1174.61,#,DL1 9HN
Department for Transport,Department for Transport,13/05/2015,Cap Grt Loc Auth,Local,Stoke-On-Trent City Council,2000002825,595000,Highway Maintenance Block - 2015/16 Quarter 1,ST4 4TS
Department for Transport,Department for Transport,13/05/2015,Cap Grt Loc Auth,Local,Stoke-On-Trent City Council,2000002825,416500,IT Block - first quarterly payment - 2015/16,ST4 4TS
Department for Transport,Department for Transport,13/05/2015,Cap Grt Loc Auth,"Energy, Technology and International",BRISTOL CITY COUNCIL,2000002805,21750,1415 Bristol CC #21750 Public Sector Chargepoints,BS99 7BL
Department for Transport,Department for Transport,13/05/2015,Cap Grt Loc Auth,"Energy, Technology and International",MILTON KEYNES BC,2000002806,1352394,14/15 Milton Keyens BC #1352394 Rapid Chargepoints,MK9 3EE
Department for Transport,Department for Transport,13/05/2015,Cap Grt Loc Auth,"Energy, Technology and International",Oxford City Council,2000002811,5082.66,1415 Oxford CC #5082.66 Public Sector Chargepoints,OX1 1EN
Department for Transport,Department for Transport,13/05/2015,Cap Grt Loc Auth,"Energy, Technology and International",POOLE BC,2000002807,50000,14/15 Poole BC #50000 Rapid Chargepoints,BH15 2RZ
Department for Transport,Department for Transport,13/05/2015,Cap Grt Loc Auth,"Energy, Technology and International",WORCESTERSHIRE COUNTY COUNCIL,2000002808,149799,"""14/15 Worcestershire #149,799 Rapid Chargepoints""",WR5 2NP
Department for Transport,Department for Transport,13/05/2015,Cap Grt Pri Sec-Cos.,"Energy, Technology and International",Audi UK,2000002871,675000,"""PiCG Audi April 2015 #675,000""",MK14 5AN
Department for Transport,Department for Transport,13/05/2015,Cap Grt Pri Sec-Cos.,"Energy, Technology and International",Baird Electrical,2000002863,2699.91,Baird Electrical Ltd  Apr 15 #2699.91,BT42 1EL
Department for Transport,Department for Transport,13/05/2015,Cap Grt Pri Sec-Cos.,"Energy, Technology and International",Baird Electrical,2000002863,16199.46,Baird Electrical Ltd  Mar 15 #16199.46,BT42 1EL
Department for Transport,Department for Transport,13/05/2015,Cap Grt Pri Sec-Cos.,"Energy, Technology and International",Baird Electrical,2000002863,3599.88,Baird Electrical Ltd Feb 15 #3599.88,BT42 1EL
Department for Transport,Department for Transport,13/05/2015,Cap Grt Pri Sec-Cos.,"Energy, Technology and International",Baird Electrical,2000002863,899.98,Baird Electrical Ltd DEC 2014 #899.98,BT42 1EL
Department for Transport,Department for Transport,13/05/2015,Cap Grt Pri Sec-Cos.,"Energy, Technology and International",Baird Electrical,2000002863,899.97,Baird Electrical Ltd  OCT 2014 #899.97,BT42 1EL
Department for Transport,Department for Transport,13/05/2015,Cap Grt Pri Sec-Cos.,"Energy, Technology and International",CITROEN AUTOMOBILES UK LTD,2000002837,5000,PiCG Citroen April 2015 #5000,CV3 1ND
Department for Transport,Department for Transport,13/05/2015,Cap Grt Pri Sec-Cos.,"Energy, Technology and International",EV Charging Solutions Ltd,2000002861,11700,"""EV Charging Solutions Ltd Mar 15 #11,700""",NG14 7ES
Department for Transport,Department for Transport,13/05/2015,Cap Grt Pri Sec-Cos.,"Policy, Legislation and Funding",Eversheds LLP,2000002860,370907,#,CF10 5BT
Department for Transport,Department for Transport,13/05/2015,Cap Grt Pri Sec-Cos.,"Policy, Legislation and Funding",Eversheds LLP,2000002860,871881.01,#,CF10 5BT
Department for Transport,Department for Transport,13/05/2015,Cap Grt Pri Sec-Cos.,"Energy, Technology and International",MERCEDES BENZ UK LTD,2000002838,378736.66,"""19 PiCG Mercedes April 2015 #378,736.66""",MK15 8BA
Department for Transport,Department for Transport,13/05/2015,Cap Grt Pri Sec-Cos.,"Energy, Technology and International",Phoenix Renewables Ltd,2000002870,2700,Phoenix Apr 2015 #2700,LS28 5LY
Department for Transport,Department for Transport,13/05/2015,Cap Grt Pri Sec-Cos.,"Energy, Technology and International",Pod Point,2000002857,8850.75,POD POINT #8850.75 Apr 15,E1 1EE
Department for Transport,Department for Transport,13/05/2015,Cap Grt Pri Sec-Cos.,"Energy, Technology and International",Pod Point,2000002857,29955,POD POINT #29955 Mar 15,E1 1EE
Department for Transport,Department for Transport,13/05/2015,Cap Grt Pri Sec-Cos.,"Energy, Technology and International",Pod Point,2000002857,1776,POD POINT #1776 Jan 15,E1 1EE
Department for Transport,Department for Transport,13/05/2015,Cap Grt Pri Sec-Cos.,"Energy, Technology and International",Pod Point,2000002857,5187,POD POINT #5187 Feb 15,E1 1EE
Department for Transport,Department for Transport,13/05/2015,Cap Grt Pri Sec-Cos.,"Energy, Technology and International",Porsche,2000002862,110000,"""PiCG Porsche April 2015 #110,000""",RG31 7SE
Department for Transport,Department for Transport,13/05/2015,Cap Grt Pri Sec-Cos.,"Energy, Technology and International",R S Merriman Ltd,2000002866,900,RS MERRIMAN MAR 2015 #900,KW16 3JS
Department for Transport,Department for Transport,13/05/2015,Cap Grt Pri Sec-Cos.,"Energy, Technology and International",Rolec Services Limited,2000002855,35100,ROLEC Mar 2015 #35100,PE20 1Q
Department for Transport,Department for Transport,13/05/2015,Cap Grt Pri Sec-Cos.,"Energy, Technology and International",Rolec Services Limited,2000002855,36900,ROLEC FEB 2015 #36900,PE20 1Q
Department for Transport,Department for Transport,13/05/2015,Cap Grt Pri Sec-Cos.,"Energy, Technology and International",Rolec Services Limited,2000002855,33300,ROLEC JAN 2015 #33300,PE20 1Q
Department for Transport,Department for Transport,13/05/2015,Cap Grt Pri Sec-Cos.,"Energy, Technology and International",Rolec Services Limited,2000002855,19800,ROLEC Dec 2014 #19800,PE20 1Q
Department for Transport,Department for Transport,13/05/2015,Cap Grt Pri Sec-Cos.,"Energy, Technology and International",Rolec Services Limited,2000002855,4500,ROLEC OCT 2014 #4500,PE20 1Q
Department for Transport,Department for Transport,13/05/2015,Cap Grt Pri Sec-Cos.,"Energy, Technology and International",Rolec Services Limited,2000002855,14400,ROLEC Nov 2014 #14400,PE20 1Q
Department for Transport,Department for Transport,13/05/2015,Cap Grt Pri Sec-Cos.,"Energy, Technology and International",Rolec Services Limited,2000002855,1800,ROLEC SEPT 2014 #1800,PE20 1Q
Department for Transport,Department for Transport,13/05/2015,Cap Grt Pri Sec-Cos.,"Energy, Technology and International",Solway Renewable Energy Ltd,2000002865,900,Solway Renewable Mar 15 #900,CA7 5BH
Department for Transport,Department for Transport,13/05/2015,Cap Grt Pri Sec-Cos.,"Energy, Technology and International",Stratford Energy Solutions Limited,2000002867,1800,STRATFORD EN MAR 15 #1800,CV37 0HR
Department for Transport,Department for Transport,13/05/2015,Cap Grt Pri Sec-Cos.,"Energy, Technology and International",THE COLT CAR COMPANY LTD,2000002835,7043051.55,"""PiCG Mitsubishi April 2015 #7,043,051.55""",GL7 1LF
Department for Transport,Department for Transport,13/05/2015,Cap Grt Pri Sec-Cos.,"Energy, Technology and International",The Mikhno Group Ltd,2000002864,6300,Mikhno Apr 2015 #6300,NE10 0EW
Department for Transport,Department for Transport,13/05/2015,Cars Maintenance,Motoring Services,Goodyear Dunlop Tyres UK Ltd,2000002845,1302.7,#,B24 9HY
Department for Transport,Department for Transport,13/05/2015,Cars Maintenance,Motoring Services,Inchcape Retail Ltd,2000002846,625.48,#,NG8 9LN
Department for Transport,Department for Transport,13/05/2015,Cars Maintenance,Motoring Services,Quarterman Windscreen Ltd,2000002848,419,#,DA1 1JZ
Department for Transport,Department for Transport,13/05/2015,Cars Maintenance,Motoring Services,Stapletons Tyre Services,2000002849,468.9,#,SG6 2HU
Department for Transport,Department for Transport,13/05/2015,Computer equipment,Motoring Services,BT PLC,1500000000,-2051.69,#,NE82 6AA
Department for Transport,Department for Transport,13/05/2015,Computer equipment,Motoring Services,BT PLC,1500000000,-2633.38,#,NE82 6AA
Department for Transport,Department for Transport,13/05/2015,Computer equipment,Motoring Services,BT PLC,1500000000,1853.1,#,NE82 6AA
Department for Transport,Department for Transport,13/05/2015,Computer equipment,Motoring Services,Probrand Limited,2000002812,679.2,#,B1 3BP
Department for Transport,Department for Transport,13/05/2015,Home Phone Charges,Rail Accident Investigation Branch,MAIN-TEL,2000002819,630.74,#,TS17 0AQ
Department for Transport,Department for Transport,13/05/2015,Investigation Servic,Motoring Services,Procordia Ltd,2000002858,1148.06,#,TN39 4SR
Department for Transport,Department for Transport,13/05/2015,Investigation Servic,Motoring Services,Procordia Ltd,2000002858,962,#,TN39 4SR
Department for Transport,Department for Transport,13/05/2015,IT Ser Running Costs,Motoring Services,SOFTWARE BOX LTD,2000002821,39574.8,#,YO61 1ET
Department for Transport,Department for Transport,13/05/2015,Legal Consultancy,Rail Franchising,ADDLESHAW GODDARD LIMITED,2000002830,1246.2,#,M2 3AB
Department for Transport,Department for Transport,13/05/2015,Legal Consultancy,Aviation,Dentons UKMEA LLP,2000002829,6816.72,#,EC4M 7WS
Department for Transport,Department for Transport,13/05/2015,Legal Consultancy,Rail Franchising,Eversheds LLP,2000002834,4674.6,#,EC2V 7WS
Department for Transport,Department for Transport,13/05/2015,Legal Consultancy,Rail Franchising,Eversheds LLP,2000002834,5695.2,#,EC2V 7WS
Department for Transport,Department for Transport,13/05/2015,Legal Consultancy,Rail Franchising,Field Fisher Waterhouse LLP,2000002859,13552.88,#,EC3N 2AA
Department for Transport,Department for Transport,13/05/2015,Occup Health Scheme,Air Accident Investigation Branch,xxxxxx,2000002833,520,#,xxxxxx
Department for Transport,Department for Transport,13/05/2015,Office Fur & Equip,Maritime,CAPITA PROPERTY & INFRASTRUCTURE,2000002815,1440,#,DL1 9HN
Department for Transport,Department for Transport,13/05/2015,Prog&ProjMgmt Consul,Motoring Services,Grange Car Wash,2000002868,990,#,SE1 3AD
Department for Transport,Department for Transport,13/05/2015,Research,Local,OFFICE FOR NATIONAL STATISTICS,2000002854,11364,#,NP10 8XG
Department for Transport,Department for Transport,13/05/2015,Research,Local,OFFICE FOR NATIONAL STATISTICS,2000002854,14069,#,NP10 8XG
Department for Transport,Department for Transport,13/05/2015,Research,Rail Strategy & Funding,OFFICE FOR NATIONAL STATISTICS,2000002854,70086,#,NP10 8XG
Department for Transport,Department for Transport,13/05/2015,Subsidies Private Se,"Motoring, Freight & London",xxxxxx,2000002839,14776.02,MSRS Grant,xxxxxx
Department for Transport,Department for Transport,13/05/2015,Subsidies Private Se,"Motoring, Freight & London",xxxxxx,2000002824,852827.68,MSRS Grant,xxxxxx
Department for Transport,Department for Transport,13/05/2015,Support Services,Aviation,Civil Aviation Authority,2000002816,113000,#,RH6 0YR
Department for Transport,Department for Transport,13/05/2015,Training,Group Assurance,Association for Project Management,2000002809,1378,#,HP27 9LE
Department for Transport,Department for Transport,13/05/2015,Travel Expenses UK,Integrated Delivery,RAIL STAFF TRAVEL LTD,2000002827,2818.85,#,WC1N 1BY
Department for Transport,Department for Transport,13/05/2015,Travel Expenses UK,Marine Accident Investigation Branch,REDFERN TRAVEL LTD,2000002832,1108.14,Redfern - April 2015,BD1 3AZ
Department for Transport,Department for Transport,14/05/2015,Agency Staff Costs,Major Projects & Growth,Experis Ltd,2000003088,4832.02,#,EC2M 2RB
Department for Transport,Department for Transport,14/05/2015,Agency Staff Costs,Major Projects & Growth,Experis Ltd,2000003088,2876.08,#,EC2M 2RB
Department for Transport,Department for Transport,14/05/2015,Agency Staff Costs,Rail Commercial & Programme Office,CAPITA BUSINESS SERVICES LTD,2000003077,3260.04,#,DL1 9HN
Department for Transport,Department for Transport,14/05/2015,Agency Staff Costs,Rail Commercial & Programme Office,Experis Ltd,2000003088,10271.7,#,EC2M 2RB
Department for Transport,Department for Transport,14/05/2015,Agency Staff Costs,Rail Strategy & Funding,Experis Ltd,2000003088,2999.7,#,EC2M 2RB
Department for Transport,Department for Transport,14/05/2015,Agency Staff Costs,"Policy, Legislation and Funding",ADVANTAGE RESOURCING UK LTD,2000003115,4320,#,RG21 4FF
Department for Transport,Department for Transport,14/05/2015,Agency Staff Costs,"Policy, Legislation and Funding",ADVANTAGE RESOURCING UK LTD,2000003115,5400,#,RG21 4FF
Department for Transport,Department for Transport,14/05/2015,Agency Staff Costs,HS2 Finance and Commercial,BROOK STREET (UK) LIMITED,2000003100,619.61,#,AL1 4JB
Department for Transport,Department for Transport,14/05/2015,Agency Staff Costs,HS2 Finance and Commercial,BROOK STREET (UK) LIMITED,2000003100,788.59,#,AL1 4JB
Department for Transport,Department for Transport,14/05/2015,Agency Staff Costs,HS2 Finance and Commercial,BROOK STREET (UK) LIMITED,2000003100,1013.9,#,AL1 4JB
Department for Transport,Department for Transport,14/05/2015,Agency Staff Costs,HS2 Finance and Commercial,BROOK STREET (UK) LIMITED,2000003100,999.82,#,AL1 4JB
Department for Transport,Department for Transport,14/05/2015,Agency Staff Costs,Rail Franchising,CAPITA BUSINESS SERVICES LTD,2000003077,5555.04,#,DL1 9HN
Department for Transport,Department for Transport,14/05/2015,Agency Staff Costs,Rail Franchising,CAPITA BUSINESS SERVICES LTD,2000003077,4187.4,#,DL1 9HN
Department for Transport,Department for Transport,14/05/2015,Agency Staff Costs,Integrated Delivery,CAPITA BUSINESS SERVICES LTD,2000003077,4510.62,#,DL1 9HN
Department for Transport,Department for Transport,14/05/2015,Agency Staff Costs,Rail Commercial & Programme Office,CAPITA BUSINESS SERVICES LTD,2000003077,7308.72,#,DL1 9HN
Department for Transport,Department for Transport,14/05/2015,Agency Staff Costs,Rail Franchising,CAPITA BUSINESS SERVICES LTD,2000003077,2008.14,#,DL1 9HN
Department for Transport,Department for Transport,14/05/2015,Agency Staff Costs,Rail Franchising,Capita Resourcing Limited,2000003103,82987.13,#,EC4A 1EN
Department for Transport,Department for Transport,14/05/2015,Agency Staff Costs,Rail Commercial & Programme Office,Experis Ltd,2000003088,5399.46,#,EC2M 2RB
Department for Transport,Department for Transport,14/05/2015,Cap Grt Pri Sec-Cos.,"Policy, Legislation and Funding",Eversheds LLP,2000002882,536512.18,#,CF10 5BT
Department for Transport,Department for Transport,14/05/2015,Cap Grt Pri Sec-Cos.,"Policy, Legislation and Funding",Eversheds LLP,2000002882,631903.32,#,CF10 5BT
Department for Transport,Department for Transport,14/05/2015,Cap Grt Pri Sec-Cos.,"Energy, Technology and International",Malones Group,2000003124,9900,Malones Group #9900 Mar 2015,NE11 0BQ
Department for Transport,Department for Transport,14/05/2015,Cap Grt Pri Sec-Cos.,Network Rail Sponsorship,Network Rail Infstrcture (Treasury),2000003072,355000000,#,NW1 2DN
Department for Transport,Department for Transport,14/05/2015,Cap Grt Pri Sec-Cos.,"Energy, Technology and International",Phoenix Renewables Ltd,2000003127,1800,Phoenix Mar 2015 #1800,LS28 5LY
Department for Transport,Department for Transport,14/05/2015,Cap Grt Pri Sec-Cos.,"Energy, Technology and International",Puragen,2000003125,900,Puragen Mar 2015 #900,DT1 3AR
Department for Transport,Department for Transport,14/05/2015,Cap Grt Pri Sec-Cos.,"Energy, Technology and International",The Mikhno Group Ltd,2000003123,3600,Mikhno Mar 2015 #3600,NE10 0EW
Department for Transport,Department for Transport,14/05/2015,Cars Fuel,Air Accident Investigation Branch,ALLSTAR BUSINESS SOLUTIONS LIMITED,2000003082,872.14,#,SN5 6PS
Department for Transport,Department for Transport,14/05/2015,Cars Fuel,Motoring Services,ALLSTAR BUSINESS SOLUTIONS LIMITED,2000003082,9571.58,#,SN5 6PS
Department for Transport,Department for Transport,14/05/2015,Cars Maintenance,Motoring Services,ATS Euromaster Ltd,2000003078,2142.04,#,EN11 1HH
Department for Transport,Department for Transport,14/05/2015,Cars Maintenance,Motoring Services,Jule Motors,2000003117,651.19,#,WV9 5DA
Department for Transport,Department for Transport,14/05/2015,Cars Maintenance,Motoring Services,Stapletons Tyre Services,2000003118,488.4,#,SG6 2HU
Department for Transport,Department for Transport,14/05/2015,Copyright Fees,Group Communications,NLA Media Access,2000003076,66639,#,TN1 1NL
Department for Transport,Department for Transport,14/05/2015,CurrGrt Las in AEF/A,Local,BUCKINGHAMSHIRE CC (REVENUE),2000003130,5529.4,Transport Delivery Excellence Programme TopUp Fees,HP20 1UD
Department for Transport,Department for Transport,14/05/2015,Financial Consultanc,Motoring Services,AON LTD,2000003081,2199.6,#,RM1 3EL
Department for Transport,Department for Transport,14/05/2015,Gas,Group Procurement and Property,CORONA ENERGY RETAIL 4 LTD,2000003086,3940.69,Corona - Dec 14 to Jan 15,WD17 1JW
Department for Transport,Department for Transport,14/05/2015,Grt Aid to NDPBs,DG's Office,High Speed Two (HS2) Ltd,2000003104,13000000,HS2 May 2015 2ndTranche,E14 5AB
Department for Transport,Department for Transport,14/05/2015,IT Consultancy,Major Projects & Growth,TRANSPORT RESEARCH LABORATORY,2000003098,12192.5,#,RG40 3GA
Department for Transport,Department for Transport,14/05/2015,IT Ser Running Costs,Analysis & Strategy,NETFUNDI LTD,2000003093,810,#,LA1 1SQ
Department for Transport,Department for Transport,14/05/2015,Legal Consultancy,Rail Commercial & Programme Office,Eversheds LLP,2000003110,985.8,#,EC2V 7WS
Department for Transport,Department for Transport,14/05/2015,Other Advertising,Local,PENNA COMMUNICATIONS,2000003105,11420.37,#,EC4M 7RD
Department for Transport,Department for Transport,14/05/2015,Printing,Air Accident Investigation Branch,WILLIAMS LEA LIMITED,2000003113,3930.12,#,NR3 1PD
Department for Transport,Department for Transport,14/05/2015,Printing,Air Accident Investigation Branch,WILLIAMS LEA LIMITED,2000003113,1573.4,#,NR3 1PD
Department for Transport,Department for Transport,14/05/2015,Printing,Aviation,WILLIAMS LEA LIMITED,2000003113,1065.96,#,NR3 1PD
Department for Transport,Department for Transport,14/05/2015,Printing,Marine Accident Investigation Branch,WILLIAMS LEA LIMITED,2000003113,6365.52,#,NR3 1PD
Department for Transport,Department for Transport,14/05/2015,Prog&ProjMgmt Consul,Group Procurement and Property,MACE Limited,2000003129,12631.58,#,EC2M 6X
Department for Transport,Department for Transport,14/05/2015,Recruitment,"Group Services, Change and Capability",PENNA PLC,2000003095,2050,#,EC4M 7RD
Department for Transport,Department for Transport,14/05/2015,Research,Strategic Roads & Smart Ticketing,OFFICE OF RAIL REGULATION,2000003071,41913.68,#,WC2B 4AN
Department for Transport,Department for Transport,14/05/2015,Research,Transport Security Co-ordination and Response,HOME OFFICE SHARED SERVICE CENTRE,2000003070,176197.89,#,NP20 9BB
Department for Transport,Department for Transport,14/05/2015,Research,Analysis & Strategy,Brook Lyndhurst Ltd,2000003126,21000,#,W6 0LE
Department for Transport,Department for Transport,14/05/2015,Small Software,"Motoring, Freight & London",BUCHANAN COMPUTING LTD,2000003084,914.4,#,W6 7AS
Department for Transport,Department for Transport,14/05/2015,Storage & Distributi,Group Communications,WILLIAMS LEA LIMITED,2000003113,19606.93,#,NR3 1PD
Department for Transport,Department for Transport,14/05/2015,Storage & Distributi,Marine Accident Investigation Branch,WILLIAMS LEA LIMITED,2000003113,5539.4,#,NR3 1PD
Department for Transport,Department for Transport,14/05/2015,Subscriptions to Pro,Major Projects & Growth,BRITISH STANDARDS INSTITUTION,2000003083,3318,#,W4 4AL
Department for Transport,Department for Transport,14/05/2015,Subsidies Private Se,Local,A C Williams Coaches,2000003047,3629.44,A C Williams Coaches,NG32 3QY
Department for Transport,Department for Transport,14/05/2015,Subsidies Private Se,Local,A P L TRAVEL,2000002883,5733.36,APL TRAVEL LTD,SN16 9ES
Department for Transport,Department for Transport,14/05/2015,Subsidies Private Se,Local,ABUS LTD,2000002884,14444.88,ABUS Ltd,BS4 3NL
Department for Transport,Department for Transport,14/05/2015,Subsidies Private Se,Local,AMBASSADOR TRAVEL,2000002885,1618.89,AMBASSADOR TRAVEL (ANGLIA) LTD,NR31 0NX
Department for Transport,Department for Transport,14/05/2015,Subsidies Private Se,Local,ANGLIAN BUS LTD,2000002886,77036.23,ANGLIAN BUS LTD,NR34 7TH
Department for Transport,Department for Transport,14/05/2015,Subsidies Private Se,Local,ANTHONYS TRAVEL,2000002887,4077.88,ANTHONY'S TRAVEL,WA7 5BH
Department for Transport,Department for Transport,14/05/2015,Subsidies Private Se,Local,ARRIVA CYMRU LTD,2000002888,47140.61,Arriva Buses Wales (Cross Border),L9 5AE
Department for Transport,Department for Transport,14/05/2015,Subsidies Private Se,Local,Arriva Durham County,2000002889,757817.1,ARRIVA DURHAM COUNTY,SR3 3XP
Department for Transport,Department for Transport,14/05/2015,Subsidies Private Se,Local,Arriva Durham County,2000002889,451296.21,ARRIVA NORTHUMBRIA LTD,SR3 3XP
Department for Transport,Department for Transport,14/05/2015,Subsidies Private Se,Local,Arriva Kent & Sussex,2000003034,598206.82,ARRIVA KENT & SUSSEX,ME15 6TX
Department for Transport,Department for Transport,14/05/2015,Subsidies Private Se,Local,ARRIVA MERSEYSIDE LTD,2000002890,1355209.15,ARRIVA MERSEYSIDE LIMITED,L9 5AE
Department for Transport,Department for Transport,14/05/2015,Subsidies Private Se,Local,ARRIVA NORTH WEST LTD,2000002892,391654.23,ARRIVA NORTH WEST LTD,L9 5AE
Department for Transport,Department for Transport,14/05/2015,Subsidies Private Se,Local,Arriva Thameside,2000002986,323902.11,ARRIVA THAMESIDE,ME15 6TX
Department for Transport,Department for Transport,14/05/2015,Subsidies Private Se,Local,Arriva The Shires,2000002893,1051822.97,ARRIVA THE SHIRES,LU4 8DS
Department for Transport,Department for Transport,14/05/2015,Subsidies Private Se,Local,ARRIVA YORKSHIRE LTD,2000002894,735848.33,ARRIVA YORKSHIRE LTD,WF1 5JX
Department for Transport,Department for Transport,14/05/2015,Subsidies Private Se,Local,B L TRAVEL,2000002896,11994.7,B L TRAVEL,WF9 5JB
Department for Transport,Department for Transport,14/05/2015,Subsidies Private Se,Local,BANGA BUSES,2000003026,22114.94,BANGA BUSES,WV2 1DT
Department for Transport,Department for Transport,14/05/2015,Subsidies Private Se,Local,BARTON BUSES,2000002897,190202.51,BARTON BUSES LTD,DE75 7BG
Department for Transport,Department for Transport,14/05/2015,Subsidies Private Se,Local,BARTON BUSES,2000002897,29348,BARTON BUSES LTD - BBA,DE75 7BG
Department for Transport,Department for Transport,14/05/2015,Subsidies Private Se,Local,BATH BUS COMPANY LTD,2000002898,17508.6,BATH BUS COMPANY LTD,BA1 1LF
Department for Transport,Department for Transport,14/05/2015,Subsidies Private Se,Local,Berry's Coaches (Taunton) Ltd,2000002899,8638.4,Berry's Coaches (Taunton) Ltd,TA2 6BX
Department for Transport,Department for Transport,14/05/2015,Subsidies Private Se,Local,Borderbus Ltd,2000003045,16166.58,BORDERBUS LTD,NR34 7TQ
Department for Transport,Department for Transport,14/05/2015,Subsidies Private Se,Local,BRECKS INTERNATIONAL,2000002902,973.03,BRECKS INTERNATIONAL,S65 3BS
Department for Transport,Department for Transport,14/05/2015,Subsidies Private Se,Local,Brighton & Hove Bus & Coach Co Ltd,2000002903,749533.87,BRIGHTON AND HOVE BUS AND COACH CO LTD,RH10 9UA
Department for Transport,Department for Transport,14/05/2015,Subsidies Private Se,Local,BUGLERS COACHES LTD,2000002905,783.6,Buglers,BS4 4NF
Department for Transport,Department for Transport,14/05/2015,Subsidies Private Se,Local,BURNLEY & PENDLE TRAVEL LTD,2000002906,190985.02,Burnley & Pendle Travel Limited,BD21 2JX
Department for Transport,Department for Transport,14/05/2015,Subsidies Private Se,Local,CEN GROUP T/A CENTRAL BUSES,2000002907,24419.1,CEN Group T/A Central Buses,B42 2TX
Department for Transport,Department for Transport,14/05/2015,Subsidies Private Se,Local,Centaur Overland Travel Ltd,2000003036,14876.94,Centaur Overland Travel Ltd,DA1 4AL
Department for Transport,Department for Transport,14/05/2015,Subsidies Private Se,Local,CENTREBUS EAST LTD,2000002974,29995.09,Centrebus East Ltd,LE4 9HR
Department for Transport,Department for Transport,14/05/2015,Subsidies Private Se,Local,CENTREBUS EAST LTD,2000002974,126807.08,CENTREBUS LTD,LE4 9HR
Department for Transport,Department for Transport,14/05/2015,Subsidies Private Se,Local,CHALKWELL COACH HIRE,2000002908,28012.13,Chalkwell Garage & Coach Hire Ltd,ME10 1BJ
Department for Transport,Department for Transport,14/05/2015,Subsidies Private Se,Local,CHELTENHAM & GLOUCESTER OMNIBUS,2000002909,505543.62,Cheltenham & Gloucester Omnibus Co Ltd,SK3 0DU
Department for Transport,Department for Transport,14/05/2015,Subsidies Private Se,Local,CITY OF CHICHESTER COACHES LTD,2000003038,50626.16,City of Chichester Coaches Ltd,RH12 4TB
Department for Transport,Department for Transport,14/05/2015,Subsidies Private Se,Local,COACH SERVICES LTD,2000002910,16352.28,Coach Services Ltd,IP24 1HZ
Department for Transport,Department for Transport,14/05/2015,Subsidies Private Se,Local,COASTAL & COUNTRY COACHES,2000002911,2582.31,Coastal and Country Coaches Ltd,YO22 4PU
Department for Transport,Department for Transport,14/05/2015,Subsidies Private Se,Local,Coastal Red Ltd T/A Lynx,2000003049,11644.23,Coastal Red Ltd t/a Lynx,PE34 3HN
Department for Transport,Department for Transport,14/05/2015,Subsidies Private Se,Local,COMPASS TRAVEL (SUSSEX) LTD,2000002913,24837.75,COMPASS TRAVEL (SUSSEX) LTD,BN13 3RB
Department for Transport,Department for Transport,14/05/2015,Subsidies Private Se,Local,COPELAND'S TOURS,2000002914,1310.56,Copeland's Tours (Stoke On Trent) Ltd,ST3 6HE
Department for Transport,Department for Transport,14/05/2015,Subsidies Private Se,Local,COTSWOLD GREEN LTD,2000003028,2472.91,Cotswold Green,GL6 0BS
Department for Transport,Department for Transport,14/05/2015,Subsidies Private Se,Local,COURTNEY COACHES LTD,2000002915,8191.39,COURTNEY COACHES (BIODIESEL),RG12 1QS
Department for Transport,Department for Transport,14/05/2015,Subsidies Private Se,Local,COURTNEY COACHES LTD,2000002915,24574.34,COURTNEY COACHES LTD,RG12 1QS
Department for Transport,Department for Transport,14/05/2015,Subsidies Private Se,Local,CRUISERS LTD,2000002916,1930.81,Cruisers Ltd,RH1 4DP
Department for Transport,Department for Transport,14/05/2015,Subsidies Private Se,Local,CUCKMERE COMMUNITY BUS,2000002917,2508.05,CUCKMERE COMMUNITY BUS,BN26 5RB
Department for Transport,Department for Transport,14/05/2015,Subsidies Private Se,Local,CUMFYBUS LTD,2000002918,18048.95,CUMFYBUS LTD,PR9 7PL
Department for Transport,Department for Transport,14/05/2015,Subsidies Private Se,Local,D & FD ATKINSON T/A,2000002895,692.26,D & FD ATKINSON t/a ATKINSON COACHES,HG4 3SH
Department for Transport,Department for Transport,14/05/2015,Subsidies Private Se,Local,D & H HARROD (COACHES) LTD,2000002919,1745.36,D & H Harrod (Coaches) Ltd,PE38 9LU
Department for Transport,Department for Transport,14/05/2015,Subsidies Private Se,Local,D JONES & SON,2000002920,2172.76,D Jones & Sons,LL14 1TP
Department for Transport,Department for Transport,14/05/2015,Subsidies Private Se,Local,Diamond Bus Ltd,2000002922,317772.7,DIAMOND BUS LTD,B7 5JJ
Department for Transport,Department for Transport,14/05/2015,Subsidies Private Se,Local,EAST MIDLAND MOTOR SERVICE,2000002923,248211.65,Stagecoach Yorkshire,SK3 0DU
Department for Transport,Department for Transport,14/05/2015,Subsidies Private Se,Local,EAST SURREY RURAL TRANSPORT P'SHIP,2000002924,1858.36,East Surrey Rural Transport Partnership,RM8 0BT
Department for Transport,Department for Transport,14/05/2015,Subsidies Private Se,Local,EAST YORKS MOTOR SERVICES LTD,2000002925,371709.42,EAST YORKS MOTOR SERVICES LTD,HU3 2RS
Department for Transport,Department for Transport,14/05/2015,Subsidies Private Se,Local,F HUNT (COACH HIRE) LTD,2000002926,3403.62,F Hunt Coach Hire Ltd,LN13 9JB
Department for Transport,Department for Transport,14/05/2015,Subsidies Private Se,Local,FARELINE BUSES & COACH SERVICES,2000002927,622.61,Fareline Bus & Coach Services,IP21 5RF
Department for Transport,Department for Transport,14/05/2015,Subsidies Private Se,Local,FARESAVER BUSES,2000002945,55805.06,FARESAVER BUSES,SN14 6NQ
Department for Transport,Department for Transport,14/05/2015,Subsidies Private Se,Local,First Badgerline,2000002929,584901,First Bristol Buses Ltd t/a Badgerline,SA5 7BN
Department for Transport,Department for Transport,14/05/2015,Subsidies Private Se,Local,First Badgerline,2000002929,646849.7,FIRST BRISTOL BUSES LTD T/A CITY LINE,SA5 7BN
Department for Transport,Department for Transport,14/05/2015,Subsidies Private Se,Local,First Beeline Buses Ltd,2000002930,211387.34,FIRST BEELINE BUSES LTD,SA5 7BN
Department for Transport,Department for Transport,14/05/2015,Subsidies Private Se,Local,FIRST COACHES,2000002942,33308.09,First Coaches,LE4 0DA
Department for Transport,Department for Transport,14/05/2015,Subsidies Private Se,Local,First Devon & Cornwall Ltd,2000002931,358820.95,FIRST DEVON & CORNWALL LTD,SA5 7BN
Department for Transport,Department for Transport,14/05/2015,Subsidies Private Se,Local,FIRST EASTERN COUNTIES BUSES LTD,2000002932,631137.17,FIRST EASTERN COUNTIES BUSES LTD,LE4 0DA
Department for Transport,Department for Transport,14/05/2015,Subsidies Private Se,Local,FIRST ESSEX BUSES,2000002933,552123.94,FIRST ESSEX BUSES LTD,LE4 0DA
Department for Transport,Department for Transport,14/05/2015,Subsidies Private Se,Local,First Hampshire & Dorset Ltd,2000002934,170935.46,FIRST HAMPSHIRE & DORSET LTD,SA5 7BN
Department for Transport,Department for Transport,14/05/2015,Subsidies Private Se,Local,First Hampshire & Dorset Ltd,2000002936,185548.63,FIRST SOUTHAMPTON,SA5 7BN
Department for Transport,Department for Transport,14/05/2015,Subsidies Private Se,Local,FIRST MANCHESTER (WIGAN),2000002937,1404069.76,First Manchester Ltd (Oldham),LS10 1PL
Department for Transport,Department for Transport,14/05/2015,Subsidies Private Se,Local,FIRST PMT LTD,2000002939,385367.57,FIRST POTTERIES LIMITED,LE4 0DA
Department for Transport,Department for Transport,14/05/2015,Subsidies Private Se,Local,First Provincial,2000002935,269754.72,FIRST PROVINCIAL,SA5 7BN
Department for Transport,Department for Transport,14/05/2015,Subsidies Private Se,Local,First Somerset & Avon Ltd,2000002940,143325.3,FIRST SOMERSET & AVON,SA5 7BN
Department for Transport,Department for Transport,14/05/2015,Subsidies Private Se,Local,FIRST SOUTH YORKSHIRE LTD,2000002941,875099.02,FIRST SOUTH YORKSHIRE LTD,LS10 1PL
Department for Transport,Department for Transport,14/05/2015,Subsidies Private Se,Local,FIRST WYVERN,2000002938,147903.67,FIRST MIDLAND RED BUSES LTD,LE4 0DA
Department for Transport,Department for Transport,14/05/2015,Subsidies Private Se,Local,FIRST YORK (RIDER YORK) LTD,2000002943,173921.63,FIRST YORK (Rider York) Limited,YO10 3WW
Department for Transport,Department for Transport,14/05/2015,Subsidies Private Se,Local,FLIGHTS COACH TRAVEL,2000002944,80108.6,FLIGHT HALLMARK T/A WESSEX CONNECT,B7 5JJ
Department for Transport,Department for Transport,14/05/2015,Subsidies Private Se,Local,G & J HOLMES (COACHES) LTD,2000002946,3091.47,G & J HOLMES COACHES LTD,S45 9LY
Department for Transport,Department for Transport,14/05/2015,Subsidies Private Se,Local,G ABBOTT & SONS,2000002947,5467.33,G ABBOTT & SONS,DL7 9RZ
Department for Transport,Department for Transport,14/05/2015,Subsidies Private Se,Local,GALLOWAY EUROPEAN COACHLINES LTD,2000002948,7483.86,Galloway European Coachlines Ltd,IP14 5RR
Department for Transport,Department for Transport,14/05/2015,Subsidies Private Se,Local,GELDARDS COACHES LTD,2000002949,36854,GELDARDS COACHES LTD,LS12 5JB
Department for Transport,Department for Transport,14/05/2015,Subsidies Private Se,Local,GO AHEAD NORTHERN,2000002950,714156.46,GO NORTHERN,NE8 2UA
Department for Transport,Department for Transport,14/05/2015,Subsidies Private Se,Local,Go South Coast Ltd,2000003005,792544.09,GO South Coast Ltd,PO30 1RD
Department for Transport,Department for Transport,14/05/2015,Subsidies Private Se,Local,GRAND PRIX SERVICES,2000002951,3662.53,GRAND PRIX SERVICES,CA17 4AY
Department for Transport,Department for Transport,14/05/2015,Subsidies Private Se,Local,H HULLEY & SONS LTD,2000002958,10444.44,H Hulley & Sons LTD T/A Hulleys Of Baslow,DE45 1RP
Department for Transport,Department for Transport,14/05/2015,Subsidies Private Se,Local,HALIFAX BUS CO LTD,2000002952,16399.16,HALIFAX BUS COMPANY LTD,HX6 2SB
Department for Transport,Department for Transport,14/05/2015,Subsidies Private Se,Local,HALTON BOROUGH TRANSPORT LTD,2000002953,82169.81,Halton Borough Transport Ltd,WA8 7AF
Department for Transport,Department for Transport,14/05/2015,Subsidies Private Se,Local,HARROGATE & DISTRICT TRAVEL LTD,2000002954,133303.78,Harrogate & District Travel Ltd,HG2 7NY
Department for Transport,Department for Transport,14/05/2015,Subsidies Private Se,Local,HARROGATE COACH TRAVEL LTD,2000002955,24271.29,HARROGATE COACH TRAVEL,YO26 8BE
Department for Transport,Department for Transport,14/05/2015,Subsidies Private Se,Local,Hedingham Ominibuses Ltd,2000002957,34141.28,Hedingham Omnibuses Ltd,CO9 3LB
Department for Transport,Department for Transport,14/05/2015,Subsidies Private Se,Local,HEYFORDIAN TRAVEL LTD,2000002960,3234.43,HEYFORDIAN TRAVEL LTD,OX26 4PP
Department for Transport,Department for Transport,14/05/2015,Subsidies Private Se,Local,HODSON COACHES LTD,2000002962,1549.56,Hodson Coaches Ltd,LN1 2LR
Department for Transport,Department for Transport,14/05/2015,Subsidies Private Se,Local,HORNSBY TRAVEL SERVICES,2000002963,15537.52,HORNSBY TRAVEL SERVICES LIMITED,DN16 2NB
Department for Transport,Department for Transport,14/05/2015,Subsidies Private Se,Local,HUYTON TRAVEL LTD,2000002964,8991.5,Huyton Travel Ltd,L36 6AN
Department for Transport,Department for Transport,14/05/2015,Subsidies Private Se,Local,Ians Midi Coaches,2000002965,852,IANS MIDI COACHES,CA5 7LA
Department for Transport,Department for Transport,14/05/2015,Subsidies Private Se,Local,INVICTABUS LTD,2000003032,1338.61,Invictabus Limited,ME20 7SP
Department for Transport,Department for Transport,14/05/2015,Subsidies Private Se,Local,Ipswich Buses Ltd,2000002966,99119.21,Ipswich Buses Limited,IP1 2DL
Department for Transport,Department for Transport,14/05/2015,Subsidies Private Se,Local,IRVING OF DALSTON,2000002967,1340.47,IRVING OF DALSTON,CA5 7LB
Department for Transport,Department for Transport,14/05/2015,Subsidies Private Se,Local,J R DENT COACHES,2000002968,588.12,J R DENT (COACHES),LN7 6ET
Department for Transport,Department for Transport,14/05/2015,Subsidies Private Se,Local,JACKIES COACHES,2000002969,997.61,JACKIES COACHES,GL2 7NG
Department for Transport,Department for Transport,14/05/2015,Subsidies Private Se,Local,KEIGHLEY & DISTRICT TRAVEL LTD,2000002970,144237.07,Keighley and District Travel Ltd,BD21 2JX
Department for Transport,Department for Transport,14/05/2015,Subsidies Private Se,Local,KETTLEWELL RETFORD LTD,2000002971,607.03,Kettlewell (Retford) Ltd,DN22 6LA
Department for Transport,Department for Transport,14/05/2015,Subsidies Private Se,Local,Kinchbus Ltd,2000002972,102536.73,KINCHBUS LTD,DE75 7BG
Department for Transport,Department for Transport,14/05/2015,Subsidies Private Se,Local,LANCASHIRE UNITED LTD (TRANSDEV),2000002973,180486.94,Transdev Lancashire United,BD21 2JX
Department for Transport,Department for Transport,14/05/2015,Subsidies Private Se,Local,M & M COACHES LIMITED,2000002975,12902.84,M & M COACHES LIMITED,BB5 0RW
Department for Transport,Department for Transport,14/05/2015,Subsidies Private Se,Local,MARCHANTS COACHES,2000002976,10836.82,MARCHANT'S COACHES LTD,GL50 3LB
Department for Transport,Department for Transport,14/05/2015,Subsidies Private Se,Local,MAS Special Engineering Ltd,2000002977,44715.48,MAS SPECIAL ENGINEERING LTD,S25 4JJ
Department for Transport,Department for Transport,14/05/2015,Subsidies Private Se,Local,METROBUS LTD,2000002979,291913.07,Metrobus Ltd,RH10 9UA
Department for Transport,Department for Transport,14/05/2015,Subsidies Private Se,Local,Midland Bluebird Ltd,2000003046,4321.25,Midland Bluebird Ltd,FK5 3NJ
Department for Transport,Department for Transport,14/05/2015,Subsidies Private Se,Local,Midland Red (North) Ltd,2000002981,657547.26,ARRIVA MIDLANDS NORTH LTD,LE4 8PH
Department for Transport,Department for Transport,14/05/2015,Subsidies Private Se,Local,MINIBUS EXECUTIVE TRAVEL,2000003035,2779.21,Minibus Executive Travel Limited,WD24 7GP
Department for Transport,Department for Transport,14/05/2015,Subsidies Private Se,Local,MINSTERLEY MOTORS SERVICES LTD,2000002983,20986.79,MINSTERLEY MOTORS LTD,SY5 0LZ
Department for Transport,Department for Transport,14/05/2015,Subsidies Private Se,Local,NATIONAL EXPRESS LTD,2000002985,166754.54,NATIONAL EXPRESS LTD (AIRLINKS),B5 6DD
Department for Transport,Department for Transport,14/05/2015,Subsidies Private Se,Local,NATIONAL EXPRESS LTD,2000002985,122495.64,NATIONAL EXPRESS LTD (CAMBRIDGE COACH SERVICES),B5 6DD
Department for Transport,Department for Transport,14/05/2015,Subsidies Private Se,Local,NOTTINGHAM CITY TRANSPORT LTD,2000002987,467346.92,Nottingham City Transport Ltd,N61 1GG
Department for Transport,Department for Transport,14/05/2015,Subsidies Private Se,Local,NOTTS & DERBY TRACTION CO LTD,2000002988,34700.84,Notts & Derby Traction Co Ltd,DE75 7BG
Department for Transport,Department for Transport,14/05/2015,Subsidies Private Se,Local,NU-VENTURE COACHES LTD,2000002989,11184.96,NU-VENTURE COACHES LTD,ME20 7JN
Department for Transport,Department for Transport,14/05/2015,Subsidies Private Se,Local,OXFORD BUS CO,2000002990,286369.39,City of Oxford Motor Sevices Ltd,OX4 6GA
Department for Transport,Department for Transport,14/05/2015,Subsidies Private Se,Local,xxxxxx,2000002991,4072.13,COACH & TRAVEL SERVICES,xxxxxx
Department for Transport,Department for Transport,14/05/2015,Subsidies Private Se,Local,PERRYMANS BUSES,2000002992,10254.95,PERRYMANS BUSES LTD,TD15 1UN
Department for Transport,Department for Transport,14/05/2015,Subsidies Private Se,Local,PLYMOUTH CITYBUS LTD,2000002993,299701.56,Plymouth Citybus Ltd,PL3 4AA
Department for Transport,Department for Transport,14/05/2015,Subsidies Private Se,Local,PONTEFRACT MOTORWAYS,2000003014,3815.73,STRINGERS PONTEFRACT MOTORWAYS,WF8 1PN
Department for Transport,Department for Transport,14/05/2015,Subsidies Private Se,Local,POWELLS BUS CO LTD,2000002994,21878.71,POWELLS BUS CO LTD,S66 8HN
Department for Transport,Department for Transport,14/05/2015,Subsidies Private Se,Local,R BULLOCK & CO TRANSPORT LTD,2000002995,8989.18,RALPH BULLOCK & CO (TRANSPORT) LTD,SK8 2AG
Department for Transport,Department for Transport,14/05/2015,Subsidies Private Se,Local,Reading Transport Ltd,2000002997,248822,READING TRANSPORT LIMITED,RG1 7HH
Department for Transport,Department for Transport,14/05/2015,Subsidies Private Se,Local,Reays Ltd,2000003042,38650.29,Reays Limited,CA7 9NE
Department for Transport,Department for Transport,14/05/2015,Subsidies Private Se,Local,RED EAGLE *DONT USE*,2000003030,1147.78,Red Eagle,HP22 5EZ
Department for Transport,Department for Transport,14/05/2015,Subsidies Private Se,Local,REDROUTE BUSES,2000002998,2878.72,Redroute Buses Ltd,DA11 9AX
Department for Transport,Department for Transport,14/05/2015,Subsidies Private Se,Local,REGAL BUSWAYS LTD,2000002999,14866.38,REGAL BUSWAYS LTD,SS3 9WB
Department for Transport,Department for Transport,14/05/2015,Subsidies Private Se,Local,SANDWELL TRAVEL LTD,2000003027,13891.91,Sandwell Travel Ltd,DY4 7LQ
Department for Transport,Department for Transport,14/05/2015,Subsidies Private Se,Local,SIMONDS,2000003003,7924,Simonds of Botesdale Ltd,IP22 4GX
Department for Transport,Department for Transport,14/05/2015,Subsidies Private Se,Local,SLEAFORDIAN COACHES,2000003004,9577.39,Sleafordian Coaches,NG34 7EH
Department for Transport,Department for Transport,14/05/2015,Subsidies Private Se,Local,STAGECOACH CAMBUS,2000003006,823959.34,Stagecoach CAMBUS- Bio diesel,SK3 0DU
Department for Transport,Department for Transport,14/05/2015,Subsidies Private Se,Local,Stagecoach Devon Ltd,2000002921,680848.72,Stagecoach Devon Ltd,EX1 2LB
Department for Transport,Department for Transport,14/05/2015,Subsidies Private Se,Local,Stagecoach East,2000003018,437082.29,STAGECOACH EAST,NN4 8ES
Department for Transport,Department for Transport,14/05/2015,Subsidies Private Se,Local,STAGECOACH EAST KENT,2000003007,863574.48,STAGECOACH IN EAST KENT,SK3 0DU
Department for Transport,Department for Transport,14/05/2015,Subsidies Private Se,Local,STAGECOACH EAST MIDLANDS,2000003008,989344.11,STAGECOACH IN LINCOLNSHIRE,SK3 0DU
Department for Transport,Department for Transport,14/05/2015,Subsidies Private Se,Local,STAGECOACH IN CUMBRIA,2000003009,548290.49,STAGECOACH IN CUMBRIA,SK3 0DU
Department for Transport,Department for Transport,14/05/2015,Subsidies Private Se,Local,STAGECOACH MANCHESTER,2000003010,1275302.8,STAGECOACH MANCHESTER,SK3 0DU
Department for Transport,Department for Transport,14/05/2015,Subsidies Private Se,Local,Stagecoach Midland Red South Ltd,2000002982,357681.98,STAGECOACH MIDLAND RED (SOUTH) LTD,NN4 8ES
Department for Transport,Department for Transport,14/05/2015,Subsidies Private Se,Local,STAGECOACH S WALES T/A RHONDDA BUSE,2000003011,8254.8,Red & White Services Ltd T/A Stagecoach In S Wales,SK3 0DU
Department for Transport,Department for Transport,14/05/2015,Subsidies Private Se,Local,Stagecoach Services Ltd,2000003041,1194.96,Western Buses Ltd - Stagecoach West Scotland,SK3 0DU
Department for Transport,Department for Transport,14/05/2015,Subsidies Private Se,Local,STAGECOACH SOUTH EAST,2000003012,821806.81,STAGECOACH SOUTH,SK3 0DU
Department for Transport,Department for Transport,14/05/2015,Subsidies Private Se,Local,STAGECOACH WIGAN,2000003039,136081.64,Stagecoach Wigan,SK3 0DU
Department for Transport,Department for Transport,14/05/2015,Subsidies Private Se,Local,STEPHENSONS OF EASINGWOLD LTD,2000003013,39216.68,STEPHENSONS OF EASINGWOLD LTD,YO61 1SR
Department for Transport,Department for Transport,14/05/2015,Subsidies Private Se,Local,STEVENSONS OF UTTOXETER LTD,2000002891,481943.65,ARRIVA MIDLANDS LTD,LE4 8PH
Department for Transport,Department for Transport,14/05/2015,Subsidies Private Se,Local,STEVENSONS OF UTTOXETER LTD,2000002891,56687.8,STEVENSONS OF UTTOXETER LTD,LE4 8PH
Department for Transport,Department for Transport,14/05/2015,Subsidies Private Se,Local,STREAMLINE,2000003037,1739.08,Streamline,HD1 5DX
Department for Transport,Department for Transport,14/05/2015,Subsidies Private Se,Local,SUSSEX COACHES,2000003033,6416.28,Sussex Coaches,RH13 8PB
Department for Transport,Department for Transport,14/05/2015,Subsidies Private Se,Local,TANAT VALLEY COACHES,2000003016,6251.47,R E MORRIS & SONS LTD T/A TANAT VALLEY COACHES,SY10 0AD
Department for Transport,Department for Transport,14/05/2015,Subsidies Private Se,Local,Telfords Coaches Ltd,2000003044,597.96,Telfords Coaches Ltd,TD9 0QP
Department for Transport,Department for Transport,14/05/2015,Subsidies Private Se,Local,The Big Bus Company,2000002901,5214.88,THE BIG BUS COMPANY LTD,SW1W 9SA
Department for Transport,Department for Transport,14/05/2015,Subsidies Private Se,Local,TRENT BUSES,2000003017,435844.85,Trent Buses,DE75 7BG
Department for Transport,Department for Transport,14/05/2015,Subsidies Private Se,Local,TRENT BUSES,2000003017,23361.13,Trent Buses - BBA,DE75 7BG
Department for Transport,Department for Transport,14/05/2015,Subsidies Private Se,Local,UTOPIA COACHES LTD,2000003019,2750.81,UTOPIA COACHES LTD,LS25 6EZ
Department for Transport,Department for Transport,14/05/2015,Subsidies Private Se,Local,WARRINGTON BOROUGH TRANS LTD,2000003020,130593.06,Warrington Borough Transport Ltd,WA4 6PT
Department for Transport,Department for Transport,14/05/2015,Subsidies Private Se,Local,WEST MIDLANDS TRAVEL LTD,2000003021,4020153.65,West Midlands Travel Ltd,B9 4BZ
Department for Transport,Department for Transport,14/05/2015,Subsidies Private Se,Local,Wheelers Travel Ltd,2000003043,7590.24,Wheelers Travel Ltd,SO16 7JU
Department for Transport,Department for Transport,14/05/2015,Subsidies Private Se,Local,WHIPPET COACHES LTD,2000003022,66275.56,Whippet Coaches Ltd,CB24 4UG
Department for Transport,Department for Transport,14/05/2015,Subsidies Private Se,Local,WHITE BUS SERVICES,2000003023,4462.39,White Bus Services,SL4 4TF
Department for Transport,Department for Transport,14/05/2015,Subsidies Private Se,Local,YORKSHIRE COASTLINER LTD,2000003024,89806.4,Yorkshire Coastliner Ltd,HG2 7NY
Department for Transport,Department for Transport,14/05/2015,Subsidies Private Se,Local,YORKSHIRE TRACTION CO LTD,2000003025,658256.22,STAGECOACH YORKSHIRE,SK3 0DU
Department for Transport,Department for Transport,14/05/2015,Subsidies Private Se,Local,Your Bus Dunn Motor Traction,2000003029,106918.16,YourBus (Dunn Motor Traction Ltd),DE75 7RJ
Department for Transport,Department for Transport,14/05/2015,Subsidies Private Se,"Motoring, Freight & London",xxxxxx,2000003101,94092.82,MSRS Grant,xxxxxx
Department for Transport,Department for Transport,14/05/2015,Support Services,Air Accident Investigation Branch,SOFTWARE BOX LTD,2000003074,1700.1,#,YO61 1ET
Department for Transport,Department for Transport,14/05/2015,Support Services,Aviation,CARIBBEAN METEOROLOGICAL ORGANISATI,2000003085,24148.61,DFT Contributions for 2014/15,SM1 1EL
Department for Transport,Department for Transport,14/05/2015,Telecom Equipment,Motoring Services,Azzuri Communications Ltd,2000003112,8900.4,Azzurri - Professional Services-Bill Date 24.04.15,BB11 5FH
Department for Transport,Department for Transport,14/05/2015,Telecom Equipment,Motoring Services,Azzuri Communications Ltd,2000003112,600,Azzurri - Professional Services-Bill Date 24.04.15,BB11 5FH
Department for Transport,Department for Transport,14/05/2015,Telephone charges,Air Accident Investigation Branch,ALTERNATIVE NETWORKS PLC,2000003108,2438.94,#,SW11 3UL
Department for Transport,Department for Transport,14/05/2015,Training,Air Accident Investigation Branch,TRANSAIR (UK) LTD,2000003097,850,TRANSAIR HEADSET G-BNDE 27/04/15,BN43 5PA
Department for Transport,Department for Transport,14/05/2015,Training,Air Accident Investigation Branch,WESTERN AIR (THRUXTON) LTD,2000003114,58.99,WESTERN AIR NGB TRAINING BOOKS RJV APR15,SP11 8PW
Department for Transport,Department for Transport,14/05/2015,Training,Air Accident Investigation Branch,WESTERN AIR (THRUXTON) LTD,2000003114,1124.39,#,SP11 8PW
Department for Transport,Department for Transport,14/05/2015,Training,Group Human Resource,Capita Business Services Ltd,2000003073,2201.22,#,B1 3RB
Department for Transport,Department for Transport,14/05/2015,Training,Group Human Resource,Capita Business Services Ltd,2000003073,3711.13,#,B1 3RB
Department for Transport,Department for Transport,14/05/2015,Training Aids,Motoring Services,SOFTWARE BOX LTD,2000003074,1152,Heat Enterprise 2 3 E Manuals,YO61 1ET
Department for Transport,Department for Transport,14/05/2015,Transport  Consult,Major Projects & Growth,MOTT MACDONALD,2000003091,72393.74,#,CR9 2UL
Department for Transport,Department for Transport,14/05/2015,Transport  Consult,Rail Commercial & Programme Office,Directly Operated Railways Ltd,2000003106,2854.8,#,EC4A 1BL
Department for Transport,Department for Transport,14/05/2015,Transport  Consult,Strategy and Engagement,KPMG,2000003090,128629.2,#,WD17 1DE
Department for Transport,Department for Transport,14/05/2015,Transport  Consult,Rail Commercial & Programme Office,PARSONS BRINCKERHOFF LTD,2000003094,2954.95,#,NE4 7YQ
Department for Transport,Department for Transport,14/05/2015,Transport  Consult,Aviation,Systra Ltd,2000003092,24095.15,#,GU21 5BH
Department for Transport,Department for Transport,14/05/2015,Transport  Consult,Rail Franchising,TRANSPORT RESEARCH LABORATORY,2000003098,4402.37,#,RG40 3GA
Department for Transport,Department for Transport,14/05/2015,Travel Expenses UK,Rail Accident Investigation Branch,REDFERN TRAVEL LTD,2000003107,6602.04,Redfern Travel April 2015,BD1 3AZ
Department for Transport,Department for Transport,15/05/2015,Agency Staff Costs,Air Accident Investigation Branch,BROOK STREET (UK) LIMITED,2000003195,770.39,#,AL1 4JB
Department for Transport,Department for Transport,15/05/2015,Agency Staff Costs,Rail Commercial & Programme Office,CAPITA BUSINESS SERVICES LTD,2000003181,3341.04,#,DL1 9HN
Department for Transport,Department for Transport,15/05/2015,Agency Staff Costs,Rail Commercial & Programme Office,CAPITA BUSINESS SERVICES LTD,2000003181,3341.04,#,DL1 9HN
Department for Transport,Department for Transport,15/05/2015,Agency Staff Costs,Local,CAPITA BUSINESS SERVICES LTD,2000003181,1498.92,#,DL1 9HN
Department for Transport,Department for Transport,15/05/2015,Agency Staff Costs,Project Sponsorship,Experis Ltd,2000003187,4666.2,#,EC2M 2RB
Department for Transport,Department for Transport,15/05/2015,Agency Staff Costs,Rail Franchising,Experis Ltd,2000003187,4421.38,#,EC2M 2RB
Department for Transport,Department for Transport,15/05/2015,CurrGrtPriSec-P&NPIS,Local,Chartered Institution of Highways,2000003197,49827.6,DfT 2015/16 Subscription to CIHT for UKRLG,N1 7JE
Department for Transport,Department for Transport,15/05/2015,Financial Consultanc,Corporate Finance,Lazard & Co Ltd,2000003208,250000,#,W1J 8LL
Department for Transport,Department for Transport,15/05/2015,Furniture & Fittings,Air Accident Investigation Branch,SENATOR INTERNATIONAL LTD,2000003193,906.67,#,BB5 5YE
Department for Transport,Department for Transport,15/05/2015,Investigation Servic,Motoring Services,CH&I Associates Ltd,2000003205,1694.16,#,SK11 8AA
Department for Transport,Department for Transport,15/05/2015,IT Equip Cap Cost,Motoring Services,INSIGHT DIRECT (UK) LTD,2000003180,15928.99,#,UB8 1PH
Department for Transport,Department for Transport,15/05/2015,Legal Consultancy,Group Procurement and Property,CRIPPS HARRIES HALL LLP,2000003200,706.8,#,TN1 1EG
Department for Transport,Department for Transport,15/05/2015,Legal Consultancy,Major Projects & Growth,DLA PIPER UK LLP,2000003185,8313.17,#,M2 3DL
Department for Transport,Department for Transport,15/05/2015,Legal Consultancy,Rail Franchising,Eversheds LLP,2000003199,5964,#,EC2V 7WS
Department for Transport,Department for Transport,15/05/2015,Medical Examinations,Air Accident Investigation Branch,DEFENCE SCIENCE & TECHNOLOGY,2000003186,1519.64,#,PO14 9HL
Department for Transport,Department for Transport,15/05/2015,Rent - L&B (non-PFI),Group Procurement and Property,ENVIRONMENT AGENCY,1500000001,-7650,#,PE2 8YD
Department for Transport,Department for Transport,15/05/2015,Rent - L&B (non-PFI),Group Procurement and Property,ENVIRONMENT AGENCY,1500000001,4460.29,#,PE2 8YD
Department for Transport,Department for Transport,15/05/2015,Rent - L&B (non-PFI),Group Procurement and Property,ENVIRONMENT AGENCY,1500000001,707.42,#,PE2 8YD
Department for Transport,Department for Transport,15/05/2015,Rent - L&B (non-PFI),Group Procurement and Property,ENVIRONMENT AGENCY,1500000001,994,#,PE2 8YD
Department for Transport,Department for Transport,15/05/2015,Rent - L&B (non-PFI),Group Procurement and Property,ENVIRONMENT AGENCY,1500000001,610.68,#,PE2 8YD
Department for Transport,Department for Transport,15/05/2015,Research,"Motoring, Freight & London",OVE ARUP & PARTNERS,2000003190,31110.95,#,NE1 3PL
Department for Transport,Department for Transport,15/05/2015,Research,"Motoring, Freight & London",OVE ARUP & PARTNERS,2000003190,32893,#,NE1 3PL
Department for Transport,Department for Transport,15/05/2015,Research,Rail Strategy & Funding,PARSONS BRINCKERHOFF LTD,2000003191,7370.61,#,NE4 7YQ
Department for Transport,Department for Transport,15/05/2015,Support Services,Aviation,EXETER & DEVON AIRPORT LIMITED,2000003188,30864,#,EX5 2BD
Department for Transport,Department for Transport,15/05/2015,Telephone charges,Motoring Services,BT Payment SVCS Ltd (T/phone Bills),2000003194,2403.86,BT Call Charges 10.05.2015,DH98 1BT
Department for Transport,Department for Transport,15/05/2015,Telephone charges,Motoring Services,BT Payment SVCS Ltd (T/phone Bills),2000003194,1089.07,BT CAll Charges 10.05.2015,DH98 1BT
Department for Transport,Department for Transport,15/05/2015,Telephone Line Rent,Motoring Services,Vodafone Ltd (ex C&W W'wide Div.),2000003177,1198.8,C&W - One Off Charges - 01.04.2015 to 31.03.2016,MK3 5JP
Department for Transport,Department for Transport,15/05/2015,Training,Strategic Roads & Smart Ticketing,THE FARADAY PARTNERSHIP,2000003189,2200,#,NW1 2SD
Department for Transport,Department for Transport,15/05/2015,Transport  Consult,Rail Commercial & Programme Office,PARSONS BRINCKERHOFF LTD,2000003191,27697.16,#,NE4 7YQ
Department for Transport,Department for Transport,15/05/2015,Transport  Consult,Rail Commercial & Programme Office,Directly Operated Railways Ltd,2000003198,153286.43,#,EC4A 1BL
Department for Transport,Department for Transport,15/05/2015,Transport  Consult,Rail Franchising,PARSONS BRINCKERHOFF LTD,2000003191,17442.32,#,NE4 7YQ
Department for Transport,Department for Transport,15/05/2015,Travel Expenses UK,Marine Accident Investigation Branch,Clyde Travel Management,2000003183,533.44,Clyde -6.5.15,G52 4JQ
Department for Transport,Department for Transport,15/05/2015,Travel Expenses UK,Motoring Services,"Transport For London,",2000003206,6798,#,SE10 1AP
Department for Transport,Department for Transport,18/05/2015,Agency Staff Costs,Integrated Delivery,Allen Lane,2000003264,4036.38,#,SW1Y 6RJ
Department for Transport,Department for Transport,18/05/2015,Agency Staff Costs,Integrated Delivery,Allen Lane,2000003264,3229.1,#,SW1Y 6RJ
Department for Transport,Department for Transport,18/05/2015,Agency Staff Costs,Integrated Delivery,MICHAEL PAGE INTERNATIONAL,2000003275,2736,#,SL1 3SA
Department for Transport,Department for Transport,18/05/2015,Agency Staff Costs,Major Projects & Growth,NETWORKERS INTERNATIONAL (UK) PLC,2000003278,3839.62,#,BR1 1HP
Department for Transport,Department for Transport,18/05/2015,Agency Staff Costs,Rail Commercial & Programme Office,Experis Ltd,2000003266,3423.9,#,EC2M 2RB
Department for Transport,Department for Transport,18/05/2015,Agency Staff Costs,Integrated Delivery,BROOK STREET (UK) LIMITED,2000003273,929.04,#,AL1 4JB
Department for Transport,Department for Transport,18/05/2015,Agency Staff Costs,Integrated Delivery,BROOK STREET (UK) LIMITED,2000003273,929.04,#,AL1 4JB
Department for Transport,Department for Transport,18/05/2015,Agency Staff Costs,Rail Commercial & Programme Office,CAPITA BUSINESS SERVICES LTD,2000003262,4624.22,#,DL1 9HN
Department for Transport,Department for Transport,18/05/2015,Agency Staff Costs,Group Finance,Experis Ltd,2000003266,6930.58,#,EC2M 2RB
Department for Transport,Department for Transport,18/05/2015,Agency Staff Costs,Rail Commercial & Programme Office,MICHAEL PAGE INTERNATIONAL,2000003275,579.12,#,SL1 3SA
Department for Transport,Department for Transport,18/05/2015,Cap Grt Pri Sec-Cos.,Major Projects & Growth,LONDON OVERGROUND RAIL,2000003283,254190.32,London Underground Rail Operations Ltd SSF14/15,NW1
Department for Transport,Department for Transport,18/05/2015,Cap Grt Pri Sec-Cos.,Network Rail Sponsorship,Network Rail Infstrcture (Treasury),2000003258,275000000,Network Rail Loan Payment,NW1 2DN
Department for Transport,Department for Transport,18/05/2015,Cars Maintenance,Motoring Services,Stapletons Tyre Services,2000003292,694.8,#,SG6 2HU
Department for Transport,Department for Transport,18/05/2015,Catering,DG's Office,UNIVERSITY OF LONDON,2000003277,1788.6,Delegate Package,WC1B 5DN
Department for Transport,Department for Transport,18/05/2015,Computer equipment,Motoring Services,Konica Minolta Bus. Solutions (UK),2000003259,705.77,#,SS14 3AR
Department for Transport,Department for Transport,18/05/2015,Courier Charges,Group Procurement and Property,DX NETWORK SERVICES LTD,2000003261,1691.22,#,NN3 6YG
Department for Transport,Department for Transport,18/05/2015,CurrGrt Las in AEF/A,Local,GREATER MANCHESTER,2000003281,350000,Stockport Bypass Study,M60 2JR
Department for Transport,Department for Transport,18/05/2015,Financial Consultanc,Rail Franchising,GRANT THORNTON UK LLP,2000003276,12175.2,#,NN4 7YE
Department for Transport,Department for Transport,18/05/2015,Grt Aid to NDPBs,Network Rail Sponsorship,NETWORK RAIL INFRASTRUCTURE LTD,2000003279,210012.92,WP3/5 -April#14,M60 7WY
Department for Transport,Department for Transport,18/05/2015,Legal Consultancy,"Policy, Legislation and Funding",xxxxxx,2000003288,2232,#,xxxxxx
Department for Transport,Department for Transport,18/05/2015,Legal Consultancy,Aviation,LANDMARK CHAMBERS,2000003267,1764,#,EC4A 2HG
Department for Transport,Department for Transport,18/05/2015,Legal Consultancy,"Policy, Legislation and Funding",xxxxxx,2000003286,1548,#,xxxxxx
Department for Transport,Department for Transport,18/05/2015,Legal Consultancy,"Policy, Legislation and Funding",xxxxxx,2000003286,8856,#,xxxxxx
Department for Transport,Department for Transport,18/05/2015,Legal Consultancy,"Policy, Legislation and Funding",xxxxxx,2000003287,1920,#,EC4A 2HG
Department for Transport,Department for Transport,18/05/2015,Other Professional F,Motoring Services,GOVERNMENT ACTUARY'S DEPARTMENT,2000003301,1994.04,#,EC4A 1AB
Department for Transport,Department for Transport,18/05/2015,Services prov by OGD,Local,VEHICLE & OPERATOR SERVICES AGENCY,2000003303,292127.9,#,SA1 8AN
Department for Transport,Department for Transport,18/05/2015,Services prov by OGD,Local,VEHICLE & OPERATOR SERVICES AGENCY,2000003303,19974.75,#,SA1 8AN
Department for Transport,Department for Transport,18/05/2015,Small Software,Motoring Services,SOFTWARE BOX LTD,2000003260,3420,#,YO61 1ET
Department for Transport,Department for Transport,18/05/2015,Small Software,Motoring Services,SOFTWARE BOX LTD,2000003260,1003.2,#,YO61 1ET
Department for Transport,Department for Transport,18/05/2015,Telephone charges,Motoring Services,VERIZON BUSINESS,2000003272,22863.48,Verizon Internet Charges 02.05.2015,RG2 6DA
Department for Transport,Department for Transport,18/05/2015,Training,Air Accident Investigation Branch,HELI AIR LIMITED,2000003284,632.5,#,CV35 9EU
Department for Transport,Department for Transport,18/05/2015,Training,Group Communications,DWP SHARED SERVICES,2000003299,3500,#,CF14 3UW
Department for Transport,Department for Transport,18/05/2015,Training,DG's Office,UNIVERSITY OF LONDON,2000003277,1195,Room Hire Charges,WC1B 5DN
Department for Transport,Department for Transport,18/05/2015,Training,Motoring Services,SOFTWARE BOX LTD,2000003260,1782,#,YO61 1ET
Department for Transport,Department for Transport,18/05/2015,Transport  Consult,Rail Commercial & Programme Office,PARSONS BRINCKERHOFF LTD,2000003268,3681.44,#,NE4 7YQ
Department for Transport,Department for Transport,18/05/2015,Transport  Consult,Aviation,Pricewaterhouse Coopers LLP,2000003269,86325.6,#,SE1 2RD
Department for Transport,Department for Transport,19/05/2015,Agency Staff Costs,Group Human Resource,CAPITA BUSINESS SERVICES LTD,2000003354,1572.53,#,DL1 9HN
Department for Transport,Department for Transport,19/05/2015,Agency Staff Costs,Integrated Delivery,MICHAEL PAGE INTERNATIONAL,2000003367,2592,#,SL1 3SA
Department for Transport,Department for Transport,19/05/2015,Agency Staff Costs,Rail Commercial & Programme Office,CAPITA BUSINESS SERVICES LTD,2000003354,2585.94,#,DL1 9HN
Department for Transport,Department for Transport,19/05/2015,Agency Staff Costs,Rail Commercial & Programme Office,CAPITA BUSINESS SERVICES LTD,2000003354,-2585.94,#,DL1 9HN
Department for Transport,Department for Transport,19/05/2015,Agency Staff Costs,Rail Commercial & Programme Office,MORGAN HUNT UK LTD,2000003362,1567.78,#,EC4M 7EG
Department for Transport,Department for Transport,19/05/2015,Agency Staff Costs,Group Finance,CAPITA BUSINESS SERVICES LTD,2000003354,1588.27,#,DL1 9HN
Department for Transport,Department for Transport,19/05/2015,Agency Staff Costs,Integrated Delivery,CAPITA BUSINESS SERVICES LTD,2000003354,8875.55,#,DL1 9HN
Department for Transport,Department for Transport,19/05/2015,Agency Staff Costs,Rail Franchising,CAPITA BUSINESS SERVICES LTD,2000003354,8010.25,#,DL1 9HN
Department for Transport,Department for Transport,19/05/2015,Agency Staff Costs,Rail Commercial & Programme Office,CAPITA BUSINESS SERVICES LTD,2000003354,2192.62,#,DL1 9HN
Department for Transport,Department for Transport,19/05/2015,Agency Staff Costs,Integrated Delivery,CAPITA BUSINESS SERVICES LTD,2000003354,4824.25,#,DL1 9HN
Department for Transport,Department for Transport,19/05/2015,Agency Staff Costs,Group Finance,CAPITA BUSINESS SERVICES LTD,2000003354,5473.5,#,DL1 9HN
Department for Transport,Department for Transport,19/05/2015,Agency Staff Costs,Rail Commercial & Programme Office,CAPITA BUSINESS SERVICES LTD,2000003354,1962.24,#,DL1 9HN
Department for Transport,Department for Transport,19/05/2015,Agency Staff Costs,Integrated Delivery,CAPITA BUSINESS SERVICES LTD,2000003354,3899.71,#,DL1 9HN
Department for Transport,Department for Transport,19/05/2015,Agency Staff Costs,Rail Franchising,CAPITA BUSINESS SERVICES LTD,2000003354,8242.68,#,DL1 9HN
Department for Transport,Department for Transport,19/05/2015,Agency Staff Costs,Integrated Delivery,CAPITA BUSINESS SERVICES LTD,2000003354,8701.02,#,DL1 9HN
Department for Transport,Department for Transport,19/05/2015,Agency Staff Costs,Rail Franchising,CAPITA BUSINESS SERVICES LTD,2000003354,3181.93,#,DL1 9HN
Department for Transport,Department for Transport,19/05/2015,Agency Staff Costs,Integrated Delivery,CAPITA BUSINESS SERVICES LTD,2000003354,8026.67,#,DL1 9HN
Department for Transport,Department for Transport,19/05/2015,Agency Staff Costs,Integrated Delivery,CAPITA BUSINESS SERVICES LTD,2000003354,9668.21,#,DL1 9HN
Department for Transport,Department for Transport,19/05/2015,Agency Staff Costs,Integrated Delivery,CAPITA BUSINESS SERVICES LTD,2000003354,1812.91,#,DL1 9HN
Department for Transport,Department for Transport,19/05/2015,Agency Staff Costs,Integrated Delivery,CAPITA BUSINESS SERVICES LTD,2000003354,3899.71,#,DL1 9HN
Department for Transport,Department for Transport,19/05/2015,Agency Staff Costs,Integrated Delivery,CAPITA BUSINESS SERVICES LTD,2000003354,3888.97,#,DL1 9HN
Department for Transport,Department for Transport,19/05/2015,Agency Staff Costs,Network Rail Sponsorship,CAPITA BUSINESS SERVICES LTD,2000003354,1097.33,#,DL1 9HN
Department for Transport,Department for Transport,19/05/2015,Agency Staff Costs,Rail Commercial & Programme Office,CAPITA BUSINESS SERVICES LTD,2000003354,4240.22,#,DL1 9HN
Department for Transport,Department for Transport,19/05/2015,Agency Staff Costs,Group Finance,CAPITA BUSINESS SERVICES LTD,2000003354,1968.3,#,DL1 9HN
Department for Transport,Department for Transport,19/05/2015,Agency Staff Costs,Network Rail Sponsorship,CAPITA BUSINESS SERVICES LTD,2000003354,1165.54,#,DL1 9HN
Department for Transport,Department for Transport,19/05/2015,Agency Staff Costs,Project Sponsorship,Experis Ltd,2000003358,4666.2,#,EC2M 2RB
Department for Transport,Department for Transport,19/05/2015,Agency Staff Costs,Rail Franchising,Field Fisher Waterhouse LLP,2000003369,12480,#,EC4R 3TT
Department for Transport,Department for Transport,19/05/2015,Cap Grt Loc Auth,"Energy, Technology and International",Caplor Energy,2000003381,895.5,Caplor Energy Apr 15 #895.50,HR1 4PT
Department for Transport,Department for Transport,19/05/2015,Cap Grt Loc Auth,"Energy, Technology and International",LEEDS CITY COUNCIL,2000003366,15245.99,1415 Leeds CC #15245.99 Public Sector Chargepoints,LS2 8JR
Department for Transport,Department for Transport,19/05/2015,Cap Grt Pri Sec-Cos.,"Energy, Technology and International",Airco Refrigeration,2000003390,23400,Airco Mar 15 #23400,HU3 4DL
Department for Transport,Department for Transport,19/05/2015,Cap Grt Pri Sec-Cos.,"Energy, Technology and International",Airco Refrigeration,2000003390,19800,Airco Apr 15 #19800,HU3 4DL
Department for Transport,Department for Transport,19/05/2015,Cap Grt Pri Sec-Cos.,"Energy, Technology and International",Armstrong Renewables,2000003383,22500,Armstrong Re Mar 15 #22500,NE37 2SH
Department for Transport,Department for Transport,19/05/2015,Cap Grt Pri Sec-Cos.,"Energy, Technology and International",Blythe Electrical (Warwickshire),2000003387,900,Blythe Elec Apr 15 #900,B46 2JA
Department for Transport,Department for Transport,19/05/2015,Cap Grt Pri Sec-Cos.,"Energy, Technology and International",Blythe Electrical (Warwickshire),2000003387,900,Blythe Elec Mar 15 #900,B46 2JA
Department for Transport,Department for Transport,19/05/2015,Cap Grt Pri Sec-Cos.,"Energy, Technology and International",Bravo Building Services Ltd,2000003386,900,Bravo Apr 2015 #900,IG9 5BS
Department for Transport,Department for Transport,19/05/2015,Cap Grt Pri Sec-Cos.,"Energy, Technology and International",British Gas Ltd,2000003375,37231.74,British Gas sep 2014 #37231.74,S60 1BY
Department for Transport,Department for Transport,19/05/2015,Cap Grt Pri Sec-Cos.,"Energy, Technology and International",British Gas Ltd,2000003375,34710.52,British Gas Oct 2014 #34710.52,S60 1BY
Department for Transport,Department for Transport,19/05/2015,Cap Grt Pri Sec-Cos.,"Energy, Technology and International",British Gas Ltd,2000003375,43490.65,British Gas Nov 2014 #43490.65,S60 1BY
Department for Transport,Department for Transport,19/05/2015,Cap Grt Pri Sec-Cos.,"Energy, Technology and International",British Gas Ltd,2000003375,15811.67,British Gas Dec 2014 #15811.67,S60 1BY
Department for Transport,Department for Transport,19/05/2015,Cap Grt Pri Sec-Cos.,"Energy, Technology and International",British Gas Ltd,2000003375,15871.35,British Gas Jan 15 #15871.35,S60 1BY
Department for Transport,Department for Transport,19/05/2015,Cap Grt Pri Sec-Cos.,"Energy, Technology and International",British Gas Ltd,2000003375,185476.82,British Gas Mar 15 #185476.82,S60 1BY
Department for Transport,Department for Transport,19/05/2015,Cap Grt Pri Sec-Cos.,"Energy, Technology and International",CSS Electrica Ltd,2000003388,10800,CSS Electrical Mar 15 #10800,CF72 9GT
Department for Transport,Department for Transport,19/05/2015,Cap Grt Pri Sec-Cos.,"Energy, Technology and International",Earth Electrical (Southern) Ltd,2000003391,900,Earth Electrical Mar 15 #900,GU14 8DS
Department for Transport,Department for Transport,19/05/2015,Cap Grt Pri Sec-Cos.,"Energy, Technology and International",Earth Electrical (Southern) Ltd,2000003391,12600,Earth Electrical Apr 15 #12600,GU14 8DS
Department for Transport,Department for Transport,19/05/2015,Cap Grt Pri Sec-Cos.,"Energy, Technology and International",Ecoelectrical Ltd,2000003389,877.5,Ecoelectrical Apr 15 #877.50,GL6 9JY
Department for Transport,Department for Transport,19/05/2015,Cap Grt Pri Sec-Cos.,"Energy, Technology and International",EV Charging Solutions Ltd,2000003378,2700,EV Charging Solutions Ltd Feb 15 #2700,NG14 7ES
Department for Transport,Department for Transport,19/05/2015,Cap Grt Pri Sec-Cos.,"Energy, Technology and International",EV Charging Solutions Ltd,2000003378,2700,EV Charging Solutions Ltd Mar 15 #2700,NG14 7ES
Department for Transport,Department for Transport,19/05/2015,Cap Grt Pri Sec-Cos.,"Energy, Technology and International",EV Charging Solutions Ltd,2000003378,22500,EV Charging Solutions Ltd Apr 15 #22500,NG14 7ES
Department for Transport,Department for Transport,19/05/2015,Cap Grt Pri Sec-Cos.,"Policy, Legislation and Funding",Eversheds LLP,2000003377,454000,#,CF10 5BT
Department for Transport,Department for Transport,19/05/2015,Cap Grt Pri Sec-Cos.,"Policy, Legislation and Funding",Eversheds LLP,2000003377,745000,#,CF10 5BT
Department for Transport,Department for Transport,19/05/2015,Cap Grt Pri Sec-Cos.,"Energy, Technology and International",JS Security & Electrical,2000003379,855.52,JS SECURITY Oct 14 #855.52,NE38 8QD
Department for Transport,Department for Transport,19/05/2015,Cap Grt Pri Sec-Cos.,"Energy, Technology and International",Malones Group,2000003382,1800,Malones Group #1800 Apr 15,NE11 0BQ
Department for Transport,Department for Transport,19/05/2015,Cap Grt Pri Sec-Cos.,Network Rail Sponsorship,Network Rail Infstrcture (Treasury),2000003347,400000000,#,NW1 2DN
Department for Transport,Department for Transport,19/05/2015,Cap Grt Pri Sec-Cos.,"Energy, Technology and International",Phoenix Renewables Ltd,2000003385,1800,Phoenix Mar 2015 #1800,LS28 5LY
Department for Transport,Department for Transport,19/05/2015,Cap Grt Pri Sec-Cos.,"Energy, Technology and International",Phoenix Renewables Ltd,2000003385,900,Phoenix Apr 2015 #900,LS28 5LY
Department for Transport,Department for Transport,19/05/2015,Cap Grt Pri Sec-Cos.,"Energy, Technology and International",Puragen,2000003384,900,Puragen Mar 2015 #900,DT1 3AR
Department for Transport,Department for Transport,19/05/2015,Computer equipment,Motoring Services,Konica Minolta Bus. Solutions (UK),2000003351,915.77,#,SS14 3AR
Department for Transport,Department for Transport,19/05/2015,IT Ser Running Costs,Rail Franchising,QinetiQ Commerce Decisions Ltd,2000003368,521640,#,OX14 4RY
Department for Transport,Department for Transport,19/05/2015,Legal Consultancy,Aviation,LANDMARK CHAMBERS,2000003360,675,#,EC4A 2HG
Department for Transport,Department for Transport,19/05/2015,Legal Consultancy,Group Procurement and Property,DFT ONE TIME VENDOR,2000003392,12155.7,Eurotunnel Legacy Issues,SW1P 4DR
Department for Transport,Department for Transport,19/05/2015,Legal Consultancy,Aviation,LANDMARK CHAMBERS,2000003360,2490,#,EC4A 2HG
Department for Transport,Department for Transport,19/05/2015,Legal Consultancy,Rail Franchising,NORTON ROSE LLP,2000003370,26,Professional Services to 25.03.2015,SE1 2AQ
Department for Transport,Department for Transport,19/05/2015,Legal Consultancy,Rail Franchising,NORTON ROSE LLP,2000003370,7854.47,#,SE1 2AQ
Department for Transport,Department for Transport,19/05/2015,Legal Consultancy,Rail Franchising,NORTON ROSE LLP,2000003370,-26,Credit for Invoice 1456969 (5106015404),SE1 2AQ
Department for Transport,Department for Transport,19/05/2015,Legal Consultancy,Rail Franchising,NORTON ROSE LLP,2000003370,-7854.47,#,SE1 2AQ
Department for Transport,Department for Transport,19/05/2015,Legal Consultancy,Rail Franchising,NORTON ROSE LLP,2000003370,7854.47,#,SE1 2AQ
Department for Transport,Department for Transport,19/05/2015,Live Running Non IBM,Motoring Services,Vodafone Ltd (ex C&W W'wide Div.),2000003349,2310.36,Rental Charges Acc UK1306648 01.05.15-31.05.2015,MK3 5JP
Department for Transport,Department for Transport,19/05/2015,Other Professional F,Group Procurement and Property,ITC CONCEPTS LIMITED,2000003393,94375.62,GMH Reception Construction,CR0 4RE
Department for Transport,Department for Transport,19/05/2015,Property Consultancy,Maritime,FAITHFUL & GOULD LTD,2000003352,4143.76,#,CF24 0AD
Department for Transport,Department for Transport,19/05/2015,Rates,Group Procurement and Property,WESTMINSTER CITY COUNCIL,2000003365,3519180,Business Rtaes Great Minster House 2015-16,SW1E 6QP
Department for Transport,Department for Transport,19/05/2015,Research,Analysis & Strategy,SAMI Consulting Ltd,2000003380,1560,#,RG14 1DY
Department for Transport,Department for Transport,19/05/2015,Research,Environment & International Transport Analysis,Civil Aviation Authority,2000003356,20000,#,RH6 0YR
Department for Transport,Department for Transport,19/05/2015,Research,Environment & International Transport Analysis,Civil Aviation Authority,2000003356,55000,#,RH6 0YR
Department for Transport,Department for Transport,19/05/2015,Research,Environment & International Transport Analysis,Civil Aviation Authority,2000003356,12500,#,RH6 0YR
Department for Transport,Department for Transport,19/05/2015,Services prov by OGD,Group Assurance,CABINET OFFICE,2000003371,6000,#,CF14 3UW
Department for Transport,Department for Transport,19/05/2015,Storage & Distributi,Group Procurement and Property,IRON MOUNTAIN,2000003359,2200.72,#,EH54 7DF
Department for Transport,Department for Transport,19/05/2015,Support Services,Group Procurement and Property,DWP SHARED SERVICES,2000003346,19568.68,#,CF14 3UW
Department for Transport,Department for Transport,19/05/2015,Telephone charges,Motoring Services,VERIZON BUSINESS,2000003364,12272.45,Verizon Internet Charges 04.05.2015,RG2 6DA
Department for Transport,Department for Transport,19/05/2015,Training,Group Assurance,Association for Project Management,2000003348,603,#,HP27 9LE
Department for Transport,Department for Transport,19/05/2015,Training,Group Human Resource,Capita Business Services Ltd,2000003350,550,#,B1 3RB
Department for Transport,Department for Transport,19/05/2015,Transport  Consult,Aviation,xxxxxx,2000003376,7700,#,xxxxxx
Department for Transport,Department for Transport,20/05/2015,Agency Staff Costs,Major Projects & Growth,Experis Ltd,2000003447,4793.46,#,EC2M 2RB
Department for Transport,Department for Transport,20/05/2015,Agency Staff Costs,Rail Commercial & Programme Office,CAPITA BUSINESS SERVICES LTD,2000003440,8732.28,#,DL1 9HN
Department for Transport,Department for Transport,20/05/2015,Agency Staff Costs,Rail Commercial & Programme Office,CAPITA BUSINESS SERVICES LTD,2000003440,7308.25,#,DL1 9HN
Department for Transport,Department for Transport,20/05/2015,Agency Staff Costs,Rail Commercial & Programme Office,CAPITA BUSINESS SERVICES LTD,2000003440,4396.1,#,DL1 9HN
Department for Transport,Department for Transport,20/05/2015,Agency Staff Costs,Rail Commercial & Programme Office,MORGAN HUNT UK LTD,2000003451,2351.66,#,EC4M 7EG
Department for Transport,Department for Transport,20/05/2015,Agency Staff Costs,Group Finance,CAPITA BUSINESS SERVICES LTD,2000003440,3091.7,#,DL1 9HN
Department for Transport,Department for Transport,20/05/2015,Agency Staff Costs,Rail Franchising,CAPITA BUSINESS SERVICES LTD,2000003440,3349.92,#,DL1 9HN
Department for Transport,Department for Transport,20/05/2015,Agency Staff Costs,Rail Commercial & Programme Office,CAPITA BUSINESS SERVICES LTD,2000003440,1734.08,#,DL1 9HN
Department for Transport,Department for Transport,20/05/2015,Agency Staff Costs,Rail Franchising,CAPITA BUSINESS SERVICES LTD,2000003440,3826.14,#,DL1 9HN
Department for Transport,Department for Transport,20/05/2015,Cap Grt Pri Sec-Cos.,Network Rail Sponsorship,Network Rail Infstrcture (Treasury),2000003437,150000000,Network Rail Loan Payment,NW1 2DN
Department for Transport,Department for Transport,20/05/2015,Childcare Voucher Co,Group Human Resource,COMPUTERSHARE VOUCHER SERVICES,2000003438,29388,#,WS13 8SX
Department for Transport,Department for Transport,20/05/2015,Electricity,Group Procurement and Property,EDF ENERGY,2000003446,47576.75,EDF Elec Great Minster House 01.04-30.04.2015,DA6 8ET
Department for Transport,Department for Transport,20/05/2015,Financial Consultanc,Rail Commercial & Programme Office,ERNST & YOUNG LLP,2000003448,23859.95,#,SE1 2AF
Department for Transport,Department for Transport,20/05/2015,Gas,Group Procurement and Property,CORONA ENERGY RETAIL 4 LTD,2000003445,1360.67,Corona Meter Read 01.05.2015,WD17 1JW
Department for Transport,Department for Transport,20/05/2015,Home Phone Charges,Rail Accident Investigation Branch,MAIN-TEL,2000003450,672.5,#,TS17 0AQ
Department for Transport,Department for Transport,20/05/2015,Legal Consultancy,Major Projects & Growth,HOGAN LOVELLS,2000003460,15221.64,#,EC1A 2FG
Department for Transport,Department for Transport,20/05/2015,Legal Consultancy,Major Projects & Growth,HOGAN LOVELLS,2000003460,15902.52,#,EC1A 2FG
Department for Transport,Department for Transport,20/05/2015,Legal Consultancy,Major Projects & Growth,HOGAN LOVELLS,2000003460,29136.31,#,EC1A 2FG
Department for Transport,Department for Transport,20/05/2015,Legal Consultancy,Major Projects & Growth,HOGAN LOVELLS,2000003460,18164.65,#,EC1A 2FG
Department for Transport,Department for Transport,20/05/2015,Legal Consultancy,Major Projects & Growth,HOGAN LOVELLS,2000003460,49109.03,#,EC1A 2FG
Department for Transport,Department for Transport,20/05/2015,Legal Consultancy,Major Projects & Growth,HOGAN LOVELLS,2000003460,27615.6,#,EC1A 2FG
Department for Transport,Department for Transport,20/05/2015,Legal Consultancy,Rail Franchising,ADDLESHAW GODDARD LIMITED,2000003459,892.8,#,M2 3AB
Department for Transport,Department for Transport,20/05/2015,Management Consultan,Group Procurement and Property,Crawford & Co Adjusters (UK) Ltd,2000003465,7099.2,#,B2 2PF
Department for Transport,Department for Transport,20/05/2015,Mobile Phone charges,RTL DG's Office,VODAFONE LTD,2000003455,1427.83,Vodafone - 132 mobiles - 13.05.2015,RG14 5FF
Department for Transport,Department for Transport,20/05/2015,Mobile Phone charges,ISE - DG's Office,VODAFONE LTD,2000003455,7771.51,Vodafone - 356 mobiles - 13.05.2015,RG14 5FF
Department for Transport,Department for Transport,20/05/2015,Mobile Phone charges,Group Finance,VODAFONE LTD,2000003455,17996.21,Vodafone - 928 mobiles - 13.05.2015,RG14 5FF
Department for Transport,Department for Transport,20/05/2015,Mobile Phone charges,Group Finance,VODAFONE LTD,2000003455,6551.31,Vodafone - 368 mobiles - 13.05.2015,RG14 5FF
Department for Transport,Department for Transport,20/05/2015,Other Professional F,Group Human Resource,COMPUTERSHARE VOUCHER SERVICES,2000003438,705.31,#,WS13 8SX
Department for Transport,Department for Transport,20/05/2015,Recruitment,Local,OFFICE FOR NATIONAL STATISTICS,2000003470,3286,Recruitment of Fast Stream Statistician,NP10 8XG
Department for Transport,Department for Transport,20/05/2015,Recruitment Fees,Group Human Resource,Green Park Interim & Executive Ltd,2000003457,1680,#,W1B 1PT
Department for Transport,Department for Transport,20/05/2015,Small Software,Aviation,CONNECT INTERNET SOLUTIONS LTD,2000003444,900,#,L2 6SG
Department for Transport,Department for Transport,20/05/2015,Support Services,Group Procurement and Property,DWP SHARED SERVICES,2000003469,1219.07,#,CF14 3UW
Department for Transport,Department for Transport,20/05/2015,Support Services,Group Procurement and Property,DWP SHARED SERVICES,2000003469,2438.15,#,CF14 3UW
Department for Transport,Department for Transport,20/05/2015,Training,Aviation,Hays Accountancy & Finance,100005548,-1939.5,#,KT3 4JQ
Department for Transport,Department for Transport,20/05/2015,Training,Aviation,Hays Accountancy & Finance,100005548,-2909.25,#,KT3 4JQ
Department for Transport,Department for Transport,20/05/2015,Training,Aviation,Hays Accountancy & Finance,100005548,-4848.75,#,KT3 4JQ
Department for Transport,Department for Transport,20/05/2015,Training,Aviation,Hays Accountancy & Finance,100005548,-4848.75,#,KT3 4JQ
Department for Transport,Department for Transport,20/05/2015,Training,Aviation,Hays Accountancy & Finance,100005548,1939.5,#,KT3 4JQ
Department for Transport,Department for Transport,20/05/2015,Training,Aviation,Hays Accountancy & Finance,100005548,4848.75,#,KT3 4JQ
Department for Transport,Department for Transport,20/05/2015,Training,Aviation,Hays Accountancy & Finance,100005548,2909.25,#,KT3 4JQ
Department for Transport,Department for Transport,20/05/2015,Training,Aviation,Hays Accountancy & Finance,100005548,4848.75,#,KT3 4JQ
Department for Transport,Department for Transport,20/05/2015,Training,Marine Accident Investigation Branch,ECDIS LTD,2000003462,859.2,#,PO15 7AN
Department for Transport,Department for Transport,20/05/2015,Training,Major Projects & Growth,Hays Accountancy & Finance,100005548,-969.75,#,KT3 4JQ
Department for Transport,Department for Transport,20/05/2015,Training,Major Projects & Growth,Hays Accountancy & Finance,100005548,-4848.75,#,KT3 4JQ
Department for Transport,Department for Transport,20/05/2015,Training,Major Projects & Growth,Hays Accountancy & Finance,100005548,4848.75,#,KT3 4JQ
Department for Transport,Department for Transport,20/05/2015,Training,Major Projects & Growth,Hays Accountancy & Finance,100005548,969.75,#,KT3 4JQ
Department for Transport,Department for Transport,20/05/2015,Transport  Consult,Group Human Resource,KIS Solutions Ltd,2000003449,4875,#,GU8 5UA
Department for Transport,Department for Transport,20/05/2015,Transport  Consult,Major Projects & Growth,FIRST CLASS PARTNERSHIPS LTD,2000003458,29826,#,YO10 3EB
Department for Transport,Department for Transport,20/05/2015,Transport  Consult,Major Projects & Growth,FIRST CLASS PARTNERSHIPS LTD,2000003458,9900,#,YO10 3EB
Department for Transport,Department for Transport,20/05/2015,Transport  Consult,Major Projects & Growth,FIRST CLASS PARTNERSHIPS LTD,2000003458,4500,#,YO10 3EB
Department for Transport,Department for Transport,20/05/2015,Transport  Consult,Aviation,xxxxxx,2000003468,2100,#,xxxxxx
Department for Transport,Department for Transport,20/05/2015,Travel Expenses UK,Marine Accident Investigation Branch,Clyde Travel Management,2000003443,832.06,Clyde - 19.05.2015,G52 4JQ
Department for Transport,Department for Transport,21/05/2015,Agency Staff Costs,Air Accident Investigation Branch,BROOK STREET (UK) LIMITED,2000003519,507.28,#,AL1 4JB
Department for Transport,Department for Transport,21/05/2015,Agency Staff Costs,Integrated Delivery,NETWORKERS INTERNATIONAL (UK) PLC,2000003525,7460.77,#,BR1 1HP
Department for Transport,Department for Transport,21/05/2015,Agency Staff Costs,Major Projects & Growth,Experis Ltd,2000003513,923.11,#,EC2M 2RB
Department for Transport,Department for Transport,21/05/2015,Agency Staff Costs,Major Projects & Growth,Experis Ltd,2000003513,4793.46,#,EC2M 2RB
Department for Transport,Department for Transport,21/05/2015,Agency Staff Costs,Rail Commercial & Programme Office,Experis Ltd,2000003513,3423.9,#,EC2M 2RB
Department for Transport,Department for Transport,21/05/2015,Agency Staff Costs,Integrated Delivery,Badenoch & Clark c/o Lauren Rogers,2000003510,4231.02,#,B37 7YE
Department for Transport,Department for Transport,21/05/2015,Agency Staff Costs,Integrated Delivery,Badenoch & Clark c/o Lauren Rogers,2000003510,3384.82,#,B37 7YE
Department for Transport,Department for Transport,21/05/2015,Agency Staff Costs,Integrated Delivery,Badenoch & Clark c/o Lauren Rogers,2000003510,4231.02,#,B37 7YE
Department for Transport,Department for Transport,21/05/2015,Agency Staff Costs,Integrated Delivery,Badenoch & Clark c/o Lauren Rogers,2000003510,2538.61,#,B37 7YE
Department for Transport,Department for Transport,21/05/2015,Agency Staff Costs,Environment & International Transport Analysis,CAPITA BUSINESS SERVICES LTD,2000003506,13424.41,#,DL1 9HN
Department for Transport,Department for Transport,21/05/2015,Agency Staff Costs,Project Sponsorship,Experis Ltd,2000003513,4108.68,#,EC2M 2RB
Department for Transport,Department for Transport,21/05/2015,Building Service Cha,Group Procurement and Property,Amey Community Ltd,2000003537,11441.57,#,OX4 4DQ
Department for Transport,Department for Transport,21/05/2015,Cars Maintenance,Motoring Services,CAMBRIA AUTOMOBILES SOUTH EAST LTD,2000003534,708,#,CR2 6EE
Department for Transport,Department for Transport,21/05/2015,CurrGrtPriSec-P&NPIS,"Energy, Technology and International",SMMT,2000003533,329076.84,SMMT ULEV grant Feb- Mar 2015,SW1P 2BN
Department for Transport,Department for Transport,21/05/2015,Grant Payments,Rail Commercial & Programme Office,Transport for Greater Manchester,2000003523,3659029.14,1602 Wk3 Northern IFA 2015-16 Franchise Subsidy +,M1 3BG
Department for Transport,Department for Transport,21/05/2015,Grant Payments,Rail Commercial & Programme Office,MERSEYTRAVEL,2000003520,727223.44,1602 Wk3 Northern IFA 2015-16 Franchise Subsidy +,L3 2AN
Department for Transport,Department for Transport,21/05/2015,Grant Payments,Rail Commercial & Programme Office,NEXUS (TYNE & WEAR),2000003521,216297.29,1602 Wk3 Northern IFA 2015-16 Franchise Subsidy +,NE1 4AX
Department for Transport,Department for Transport,21/05/2015,Grant Payments,Rail Commercial & Programme Office,SOUTH YORKSHIRE PTE,2000003522,1387907.6,1602 Wk3 Northern IFA 2015-16 Franchise Subsidy +,S2 5YT
Department for Transport,Department for Transport,21/05/2015,Grant Payments,Rail Commercial & Programme Office,WEST YORKSHIRE PTA,2000003524,69279.79,1602 Wk3 Admin Grant 15-16_P1602 - West Yorkshire,LS1 2DE
Department for Transport,Department for Transport,21/05/2015,Grant Payments,Rail Commercial & Programme Office,WEST YORKSHIRE PTA,2000003524,3334583.2,1602 Wk3 Northern IFA 2015-16 Franchise Subsidy +,LS1 2DE
Department for Transport,Department for Transport,21/05/2015,Legal Consultancy,Major Projects & Growth,HOGAN LOVELLS,100005580,41698.8,#,EC1A 2FG
Department for Transport,Department for Transport,21/05/2015,Legal Consultancy,Major Projects & Growth,HOGAN LOVELLS,100005580,38062.8,#,EC1A 2FG
Department for Transport,Department for Transport,21/05/2015,Legal Consultancy,Major Projects & Growth,HOGAN LOVELLS,100005580,-41698.8,#,EC1A 2FG
Department for Transport,Department for Transport,21/05/2015,Legal Consultancy,Major Projects & Growth,HOGAN LOVELLS,100005580,-38062.8,#,EC1A 2FG
Department for Transport,Department for Transport,21/05/2015,Manual Handling Equi,Rail Accident Investigation Branch,Peli Products (UK) Ltd,2000003536,2335.83,#,SK13 6LQ
Department for Transport,Department for Transport,21/05/2015,OffEquip (Non-Cap),Group Communications,AVAT LIMITED,2000003530,1749.6,#,RG26 5BH
Department for Transport,Department for Transport,21/05/2015,Other Advertising,Local,PENNA COMMUNICATIONS,2000003527,8079.12,#,EC4M 7RD
Department for Transport,Department for Transport,21/05/2015,Other Professional F,Motoring Services,GOVERNMENT ACTUARY'S DEPARTMENT,2000003500,3196.29,#,EC4A 1AB
Department for Transport,Department for Transport,21/05/2015,Prog&ProjMgmt Consul,Project Sponsorship,ERNST & YOUNG LLP,2000003514,217485,#,SE1 2AF
Department for Transport,Department for Transport,21/05/2015,Pte Cost Of Servs Ch,Rail Commercial & Programme Office,Transport for Greater Manchester,2000003523,115638.39,1602 Wk3 Admin Grant 15-16_P1602 - Transport for G,M1 3BG
Department for Transport,Department for Transport,21/05/2015,Pte Cost Of Servs Ch,Rail Commercial & Programme Office,NEXUS (TYNE & WEAR),2000003521,19720.48,1602 Wk3 Admin Grant 15-16_P1602 - Nexus,NE1 4AX
Department for Transport,Department for Transport,21/05/2015,Pte Cost Of Servs Ch,Rail Commercial & Programme Office,SOUTH YORKSHIRE PTE,2000003522,95091.93,1602 Wk3 Admin Grant 15-16_P1602 - South Yorkshire,S2 5YT
Department for Transport,Department for Transport,21/05/2015,Services prov by OGD,Strategic Roads & Smart Ticketing,Driver & Vehicle Licensing Agency,2000003512,2281453.91,#,SA6 7JL
Department for Transport,Department for Transport,21/05/2015,Small Software,Motoring Services,SOFTWARE BOX LTD,2000003516,7362.97,#,YO61 1ET
Department for Transport,Department for Transport,21/05/2015,Support Services,Aviation,NORWICH AIRPORT LTD,2000003515,30378,#,NR6 6JA
Department for Transport,Department for Transport,21/05/2015,Support Services,"Energy, Technology and International",DEFRA,2000003507,15000,#,YO1 7PX
Department for Transport,Department for Transport,21/05/2015,Support Services,Group Procurement and Property,Thompsons Solicitors,2000003535,80995.7,Industrial Injury Claims,HA1 3AP
Department for Transport,Department for Transport,21/05/2015,Telephone charges,Motoring Services,BT Payment SVCS Ltd (T/phone Bills),2000003518,6235.77,BT - Call Charges - 12.05.2015,DH98 1BT
Department for Transport,Department for Transport,21/05/2015,Telephone charges,Motoring Services,BT Payment SVCS Ltd (T/phone Bills),2000003518,1763.7,BT - Call Charges - May 2015 Account 33182170,DH98 1BT
Department for Transport,Department for Transport,21/05/2015,Telephone charges,Transport Security Co-ordination and Response,AIRWAVE SOLUTIONS LTD,2000003509,3189.12,#,SL1 2EJ
Department for Transport,Department for Transport,21/05/2015,Training,General Counsel's Office,PRIVACY & DATA PROTECTION LTD,2000003505,2094,#,SW4 0JY
Department for Transport,Department for Transport,21/05/2015,Transport  Consult,Rail Commercial & Programme Office,Directly Operated Railways Ltd,2000003528,17955.76,#,EC4A 1BL
Department for Transport,Department for Transport,22/05/2015,Agency Staff Costs,Strategic Roads & Smart Ticketing,BROOK STREET (UK) LIMITED,2000003590,545.05,#,AL1 4JB
Department for Transport,Department for Transport,22/05/2015,Agency Staff Costs,Rail Commercial & Programme Office,CAPITA BUSINESS SERVICES LTD,2000003575,79605.3,#,DL1 9HN
Department for Transport,Department for Transport,22/05/2015,Agency Staff Costs,Rail Commercial & Programme Office,Experis Ltd,2000003582,1369.56,#,EC2M 2RB
Department for Transport,Department for Transport,22/05/2015,Agency Staff Costs,Group Finance,Allen Lane,2000003577,1481.29,#,SW1Y 6RJ
Department for Transport,Department for Transport,22/05/2015,Agency Staff Costs,Group Finance,Allen Lane,2000003577,2468.82,#,SW1Y 6RJ
Department for Transport,Department for Transport,22/05/2015,Agency Staff Costs,Group Finance,Allen Lane,2000003577,1975.06,#,SW1Y 6RJ
Department for Transport,Department for Transport,22/05/2015,Agency Staff Costs,Group Finance,CAPITA BUSINESS SERVICES LTD,2000003575,2143.44,#,DL1 9HN
Department for Transport,Department for Transport,22/05/2015,Agency Staff Costs,Group Finance,Insight MSC Limited,2000003607,47919.67,#,WC1H 9LT
Department for Transport,Department for Transport,22/05/2015,Agency Staff Costs,Rail Infrastructure Safety & Security,BROOK STREET (UK) LIMITED,2000003590,670.32,#,AL1 4JB
Department for Transport,Department for Transport,22/05/2015,Agency Staff Costs,Rail Franchising,Experis Ltd,2000003582,9792.29,#,EC2M 2RB
Department for Transport,Department for Transport,22/05/2015,Cap Grt Pri Sec-Cos.,"Energy, Technology and International",BYD,2000003608,75000,"""OLEV PiCG February & March 2015 #75,000""",NW1 5QT
Department for Transport,Department for Transport,22/05/2015,Cap Grt Pri Sec-Cos.,"Energy, Technology and International",NISSAN MOTOR GB LTD,2000003595,4383175.95,"""PiCG Nissan April 2015 #4,383,175.95""",WD3 9YS
Department for Transport,Department for Transport,22/05/2015,Cap Grt Pri Sec-Cos.,"Energy, Technology and International",VAUXHALL MOTORS,2000003597,25000,"""PiCG Vauxhall April 2015 #25,000""",LU1 3YT
Department for Transport,Department for Transport,22/05/2015,CurrGrt Las in AEF/A,Local,SURREY COUNTY COUNCIL,2000003616,100572,LSTF Case Studies Q4 2014-15,KT1 2DN
Department for Transport,Department for Transport,22/05/2015,Grt Aid to NDPBs,Strategic Roads & Smart Ticketing,RAIL PASSENGER COUNCIL,2000003609,148263,Transport Focus - Road User Representation,M1 1LQ
Department for Transport,Department for Transport,22/05/2015,Grt Aid to NDPBs,Network Rail Sponsorship,Network Rail Istre (Capital Grants),2000003592,295019785.5,NR Network Grant Payment,NW1 2DN
Department for Transport,Department for Transport,22/05/2015,Investigation Servic,Motoring Services,CH&I Associates Ltd,2000003600,613.08,#,SK11 8AA
Department for Transport,Department for Transport,22/05/2015,Investigation Servic,Motoring Services,Procordia Ltd,2000003601,2346.5,#,TN39 4SR
Department for Transport,Department for Transport,22/05/2015,IT Consultancy,Rail Strategy & Funding,CAPITA PROPERTY & INFRASTRUCTURE,2000003580,15132.78,#,CA6 4SJ
Department for Transport,Department for Transport,22/05/2015,IT Ser Running Costs,Group Communications,Kainos Software Ltd,2000003584,1134,#,BT7 1NT
Department for Transport,Department for Transport,22/05/2015,Legal Consultancy,Major Projects & Growth,WINCKWORTH SHERWOOD,2000003589,2649.24,#,SE1 9BB
Department for Transport,Department for Transport,22/05/2015,Legal Consultancy,Rail Franchising,Eversheds LLP,2000003594,1256.34,#,EC2V 7WS
Department for Transport,Department for Transport,22/05/2015,Printing,"Motoring, Freight & London",PRINT STATION (HASTINGS) LTD,2000003586,532.8,#,TN39 3PB
Department for Transport,Department for Transport,22/05/2015,Research,Environment & International Transport Analysis,ATKINS LTD (TRANSPORT PLANNING),2000003579,20500,#,WR5 1TX
Department for Transport,Department for Transport,22/05/2015,Research,Environment & International Transport Analysis,Element Energy Ltd,2000003596,32847.5,#,CB2 1NL
Department for Transport,Department for Transport,22/05/2015,Subsidies Private Se,Local,CUMBRIA COACHES LTD,2000003574,699.21,CUMBRIA COACHES LTD,CA1 3NQ
Department for Transport,Department for Transport,22/05/2015,Support Services,"Motoring, Freight & London",Highways England Company Ltd,2000003610,4307.25,#,B1 1RN
Department for Transport,Department for Transport,22/05/2015,Support Services,Rail Infrastructure Safety & Security,DEPARTMENT OF ENERGY&CLIMATE CHANGE,2000003593,3883.15,#,SW1A 2HD
Department for Transport,Department for Transport,22/05/2015,Support Services,Group Procurement and Property,Thompsons Solicitors (Scotland),2000003602,106705,Industrial Injury Claims,EH2 4EQ
Department for Transport,Department for Transport,22/05/2015,Transport  Consult,Major Projects & Growth,FIRST CLASS PARTNERSHIPS LTD,2000003591,10800,#,YO10 3EB
Department for Transport,Department for Transport,22/05/2015,Transport  Consult,Aviation,xxxxxx,2000003605,8050,#,xxxxxx
Department for Transport,Department for Transport,22/05/2015,Transport  Consult,Rail Franchising,ERNST & YOUNG LLP,2000003583,13909.92,#,SE1 2AF
Department for Transport,Department for Transport,22/05/2015,Transport  Consult,Rail Franchising,TRANSPORT RESEARCH LABORATORY,2000003588,43235.68,#,RG40 3GA
Department for Transport,Department for Transport,22/05/2015,Transport  Consult,Rail Franchising,TRANSPORT RESEARCH LABORATORY,2000003588,25266.37,#,RG40 3GA
Department for Transport,Department for Transport,23/05/2015,NLF Interest pay,Harbour Authorities,HM TREASURY - NATIONAL LOANS FUND,2000003611,464.85,NLF HA Loan Repayment May 2015 - Interest,SW1A 2HQ
Department for Transport,Department for Transport,23/05/2015,NLF Principal Paid,Harbour Authorities,HM TREASURY - NATIONAL LOANS FUND,2000003611,3151.08,NLF HA Loan Repayment May 2015 - Principal,SW1A 2HQ
Department for Transport,Department for Transport,25/05/2015,Cap Grt Loc Auth,Local,DERBYSHIRE COUNTY COUNCIL,2000003614,3879654,Cycling Ambitions National Parks Q4 2014-15,DE4 3AH
Department for Transport,Department for Transport,25/05/2015,Cap Grt Loc Auth,Local,DEVON COUNTY COUNCIL,2000003615,1579600,Cycling Ambitions National Parks Q4 2014-15,EX2 4QJ
Department for Transport,Department for Transport,25/05/2015,Cap Grt Loc Auth,Local,NORWICH CITY COUNCIL,2000003612,715000,Cycling Ambitions National Parks Q4 2014-15,NR2 1NH
Department for Transport,Department for Transport,25/05/2015,CurrGrt Las in AEF/A,Local,Birmingham City Council,2000003613,28302,Cycling Ambition Monitoring & Evaluation 2014-15,B2 2AJ
Department for Transport,Department for Transport,26/05/2015,Agency Staff Costs,Integrated Delivery,MICHAEL PAGE INTERNATIONAL,2000003670,3594,#,SL1 3SA
Department for Transport,Department for Transport,26/05/2015,Agency Staff Costs,Major Projects & Growth,Experis Ltd,2000003659,6040.02,#,EC2M 2RB
Department for Transport,Department for Transport,26/05/2015,Agency Staff Costs,Integrated Delivery,CAPITA BUSINESS SERVICES LTD,2000003655,4459.26,#,DL1 9HN
Department for Transport,Department for Transport,26/05/2015,Agency Staff Costs,Group Finance,CAPITA BUSINESS SERVICES LTD,2000003655,1093.5,#,DL1 9HN
Department for Transport,Department for Transport,26/05/2015,Agency Staff Costs,Group Finance,Experis Ltd,2000003659,3850.32,#,EC2M 2RB
Department for Transport,Department for Transport,26/05/2015,Agency Staff Costs,Rail Franchising,Experis Ltd,2000003659,5526.72,#,EC2M 2RB
Department for Transport,Department for Transport,26/05/2015,Agency Staff Costs,Rail Commercial & Programme Office,MICHAEL PAGE INTERNATIONAL,2000003670,720,#,SL1 3SA
Department for Transport,Department for Transport,26/05/2015,Cap Grt Pri Sec-Cos.,"Energy, Technology and International",BMW UK Ltd,2000003683,1620000,"""PiCG BMW April 2015 #1,620,000""",RG12 8TA
Department for Transport,Department for Transport,26/05/2015,Cap Grt Pri Sec-Cos.,"Policy, Legislation and Funding",Eversheds LLP,2000003684,492165.15,#,CF10 5BT
Department for Transport,Department for Transport,26/05/2015,Cap Grt Pri Sec-Cos.,"Policy, Legislation and Funding",Eversheds LLP,2000003684,1488176.9,#,CF10 5BT
Department for Transport,Department for Transport,26/05/2015,Cap Grt Pri Sec-Cos.,"Policy, Legislation and Funding",Eversheds LLP,2000003684,475000,#,CF10 5BT
Department for Transport,Department for Transport,26/05/2015,Cap Grt Pri Sec-Cos.,"Energy, Technology and International",RENAULT,2000003677,509471.37,"""OLEV PiCG April (2) 2015 #509,471.37""",WD3 9YS
Department for Transport,Department for Transport,26/05/2015,Cap Grt Pri Sec-Cos.,"Energy, Technology and International",Tesla Motors Limited GBP,2000003687,555000,4018011 Tesla Motors Limited,UB7 8JD
Department for Transport,Department for Transport,26/05/2015,Cap Grt Pri Sec-Cos.,"Energy, Technology and International",TOYOTA (GB) PLC,2000003679,660000,"""PiCG Toyota April 2015 #660,000""",KT18 5XS
Department for Transport,Department for Transport,26/05/2015,CurrGrt Las in AEF/A,Rail Strategy & Funding,MERSEY TRAVEL,2000003671,6616146.02,Mersey Rail Grant,L3   2AN
Department for Transport,Department for Transport,26/05/2015,Eu Receipts,"Energy, Technology and International",Innovation & Networks Executive,2000003692,1036125.37,Return of Funds to EU Agency,1049
Department for Transport,Department for Transport,26/05/2015,Financial Consultanc,Group Procurement and Property,Crawford & Co Adjusters (UK) Ltd,2000003682,17401.2,#,B2 2PF
Department for Transport,Department for Transport,26/05/2015,IT Ser Running Costs,"Motoring, Freight & London",TRAFFICMASTER PLC,2000003666,53487,#,MK43 0TR
Department for Transport,Department for Transport,26/05/2015,IT Ser Running Costs,General Counsel's Office,Actica Consulting Limited,2000003673,6120,#,GU1 4AF
Department for Transport,Department for Transport,26/05/2015,Legal Consultancy,"Policy, Legislation and Funding",xxxxxx,2000003680,13170,#,xxxxxx
Department for Transport,Department for Transport,26/05/2015,Prog&ProjMgmt Consul,Group Procurement and Property,MACE Limited,2000003688,11779.8,#,EC2M 6X
Department for Transport,Department for Transport,26/05/2015,Publications for Res,Maritime,CREATIVE CHOICE CIC,2000003675,500,#,SW1H 0DJ
Department for Transport,Department for Transport,26/05/2015,Recruitment Fees,Group Human Resource,HM REVENUE & CUSTOMS,2000003689,3360.77,#,BN12 4XH
Department for Transport,Department for Transport,26/05/2015,Recruitment Fees,Group Human Resource,HM REVENUE & CUSTOMS,2000003689,4017.01,#,BN12 4XH
Department for Transport,Department for Transport,26/05/2015,Recruitment Fees,Group Human Resource,HM REVENUE & CUSTOMS,2000003689,1111.85,#,BN12 4XH
Department for Transport,Department for Transport,26/05/2015,Recruitment Fees,Group Human Resource,HM REVENUE & CUSTOMS,2000003689,5097.44,#,BN12 4XH
Department for Transport,Department for Transport,26/05/2015,Research,"Motoring, Freight & London",TWI Ltd,2000003681,10000,#,CB21 6AL
Department for Transport,Department for Transport,26/05/2015,Subsidies Private Se,"Motoring, Freight & London",xxxxxx,2000003669,74516,MSRS Grant,xxxxxx
Department for Transport,Department for Transport,26/05/2015,Support Services,"Motoring, Freight & London",Environmental Scientifics Group,2000003656,4836,#,OX9 3SZ
Department for Transport,Department for Transport,26/05/2015,Support Services,Strategic Roads & Smart Ticketing,Highways England Company Ltd,2000003691,84228.92,#,B1 1RN
Department for Transport,Department for Transport,26/05/2015,Support Services,Group Human Resource,DRIVER & VEHICLE LICENSING AGENCY,2000003690,15189.4,#,SA6 7JL
Department for Transport,Department for Transport,26/05/2015,Training,Air Accident Investigation Branch,OTTERSHAW AVIATION LTD,2000003678,2376,OTTERSHAW NGB TRAINING KRC 01/05 & 08/05,KT16 0HD
Department for Transport,Department for Transport,26/05/2015,Training,Maritime,REDLINE AVIATION SECURITY LTD,2000003663,750,#,DN9 3RH
Department for Transport,Department for Transport,26/05/2015,Translation Services,Marine Accident Investigation Branch,K INTERNATIONAL PLC,2000003660,535.6,#,MK5 8PL
Department for Transport,Department for Transport,26/05/2015,Transport  Consult,Rail Strategy & Funding,MOTT MACDONALD,2000003661,1200,#,CR9 2UL
Department for Transport,Department for Transport,26/05/2015,Transport  Consult,Rail Commercial & Programme Office,PARSONS BRINCKERHOFF LTD,2000003662,1275.36,#,NE4 7YQ
Department for Transport,Department for Transport,26/05/2015,Transport  Consult,Rail Franchising,TRANSPORT RESEARCH LABORATORY,2000003667,81700.06,#,RG40 3GA
Department for Transport,Department for Transport,27/05/2015,Agency Staff Costs,Group Communications,MICHAEL PAGE INTERNATIONAL,2000003952,2288.16,#,SL1 3SA
Department for Transport,Department for Transport,27/05/2015,Agency Staff Costs,Integrated Delivery,MICHAEL PAGE INTERNATIONAL,2000003952,5472,#,SL1 3SA
Department for Transport,Department for Transport,27/05/2015,Agency Staff Costs,Integrated Delivery,MICHAEL PAGE INTERNATIONAL,2000003952,3240,#,SL1 3SA
Department for Transport,Department for Transport,27/05/2015,Agency Staff Costs,Group Finance,Allen Lane,2000003946,2175.5,#,SW1Y 6RJ
Department for Transport,Department for Transport,27/05/2015,Agency Staff Costs,Group Finance,CAPITA BUSINESS SERVICES LTD,2000003944,2679.3,#,DL1 9HN
Department for Transport,Department for Transport,27/05/2015,Agency Staff Costs,Group Finance,Insight MSC Limited,2000003969,74529.84,#,WC1H 9LT
Department for Transport,Department for Transport,27/05/2015,Agency Staff Costs,Integrated Delivery,CAPITA BUSINESS SERVICES LTD,2000003944,11330.7,#,DL1 9HN
Department for Transport,Department for Transport,27/05/2015,Agency Staff Costs,Integrated Delivery,CAPITA BUSINESS SERVICES LTD,2000003944,4459.26,#,DL1 9HN
Department for Transport,Department for Transport,27/05/2015,Agency Staff Costs,Integrated Delivery,CAPITA BUSINESS SERVICES LTD,2000003944,5226.06,#,DL1 9HN
Department for Transport,Department for Transport,27/05/2015,Agency Staff Costs,Integrated Delivery,CAPITA BUSINESS SERVICES LTD,2000003944,2160.54,#,DL1 9HN
Department for Transport,Department for Transport,27/05/2015,Agency Staff Costs,Integrated Delivery,CAPITA BUSINESS SERVICES LTD,2000003944,2680.14,#,DL1 9HN
Department for Transport,Department for Transport,27/05/2015,Agency Staff Costs,Network Rail Sponsorship,CAPITA BUSINESS SERVICES LTD,2000003944,1456.92,#,DL1 9HN
Department for Transport,Department for Transport,27/05/2015,Agency Staff Costs,Integrated Delivery,CAPITA BUSINESS SERVICES LTD,2000003944,2266.14,#,DL1 9HN
Department for Transport,Department for Transport,27/05/2015,Agency Staff Costs,Integrated Delivery,CAPITA BUSINESS SERVICES LTD,2000003944,4833.9,#,DL1 9HN
Department for Transport,Department for Transport,27/05/2015,Agency Staff Costs,Project Sponsorship,SPRING TECHNOLOGY LTD  ALSO T/A,2000003959,2790,#,B37 7YE
Department for Transport,Department for Transport,27/05/2015,Agency Staff Costs,Project Sponsorship,SPRING TECHNOLOGY LTD  ALSO T/A,2000003959,4200,#,B37 7YE
Department for Transport,Department for Transport,27/05/2015,Basic Franchise Pay,Rail Commercial & Programme Office,LONDON MIDLAND RAILWAY,2000003958,3593516.95,1602 Wk3 Franchise Subsidy 2015-16_P1602 - LONDON,B2 4JB
Department for Transport,Department for Transport,27/05/2015,Basic Franchise Pay,Rail Commercial & Programme Office,LONDON MIDLAND RAILWAY,2000003958,255589.29,1602 Wk3 Franchise Subsidy 2015-16_Wash-up_P1601 -,B2 4JB
Department for Transport,Department for Transport,27/05/2015,Basic Franchise Pay,Rail Commercial & Programme Office,LONDON MIDLAND RAILWAY,2000003958,66480.87,1602 Wk3 RPI+0 adjustment 15-16_P1602 - LONDON MID,B2 4JB
Department for Transport,Department for Transport,27/05/2015,Basic Franchise Pay,Rail Commercial & Programme Office,FIRST KEOLIS TRANSPENNINE,2000003956,2058715.91,1602 Wk3 TPE DA_Franchise Subsidy 2015-16_P1602 -,M1 6LT
Department for Transport,Department for Transport,27/05/2015,Basic Franchise Pay,Rail Commercial & Programme Office,NORTHERN RAIL LTD,2000003957,8981733.19,1602 Wk3 Northern IFA 2015-16 Subsidy_P1602 - NORT,YO1 6HT
Department for Transport,Department for Transport,27/05/2015,Basic Franchise Rec,Rail Commercial & Programme Office,Govia Thameslink Railway Limited,2000003967,70337195.74,1602 Wk3 Basic Franchise Payment P1602 - GOVIA THA,EC1V 9QS
Department for Transport,Department for Transport,27/05/2015,Basic Franchise Rec,Rail Commercial & Programme Office,Govia Thameslink Railway Limited,2000003967,-2343037,1602 Wk3 P1601 PAR Reconcilliatiom Amount Due - GO,EC1V 9QS
Department for Transport,Department for Transport,27/05/2015,Basic Franchise Rec,Rail Commercial & Programme Office,Govia Thameslink Railway Limited,2000003967,-49109317.64,1602 Wk3 PAR Period 2 - GOVIA THAMESLINK RAILWAY L,EC1V 9QS
Department for Transport,Department for Transport,27/05/2015,Cap Grt Pri Sec-Cos.,"Energy, Technology and International",Doyle Electrical Services Ltd,2000003971,889.2,Doyle Elec Apr 15 #889.20,IP5 3RY
Department for Transport,Department for Transport,27/05/2015,Cap Grt Pri Sec-Cos.,"Energy, Technology and International",Starfish Installations Ltd,2000003970,899.99,Starfish Apr 2015 #899.99,NR13 5FH
Department for Transport,Department for Transport,27/05/2015,Car Hire and Leasing,Motoring Services,LEX AUTOLEASE LTD,2000003943,760.1,#,BL9 8RT
Department for Transport,Department for Transport,27/05/2015,Car Hire and Leasing,Motoring Services,LEX AUTOLEASE LTD,2000003943,878.8,#,BL9 8RT
Department for Transport,Department for Transport,27/05/2015,Car Tax & Insurance,Rail Accident Investigation Branch,WILLIS LTD,2000003945,1556.08,#,BS8 1BQ
Department for Transport,Department for Transport,27/05/2015,Computer equipment,Air Accident Investigation Branch,SOFTWARE BOX LTD,2000003940,1772.98,SBL NON ETHOS 2 WINDOWS LICENCES 08/05,YO61 1ET
Department for Transport,Department for Transport,27/05/2015,CurrGrt Las in AEF/A,Local,COVENTRY CITY COUNCIL,2000003902,25888.27,Coventry County Council (Special Needs Transport),CV3 4AR
Department for Transport,Department for Transport,27/05/2015,CurrGrt Las in AEF/A,Local,Echo Centre,2000003927,599.4,Cornwall Council - Echo Centre,PL14 6AY
Department for Transport,Department for Transport,27/05/2015,CurrGrt Las in AEF/A,Local,ELMBRIDGE BC,2000003784,3680.87,ELMBRIDGE BOROUGH COUNCIL,KT10 9SD
Department for Transport,Department for Transport,27/05/2015,CurrGrt Las in AEF/A,Local,KENT COUNTY COUNCIL,2000003809,990.09,Kent County Council - Crawford Centre,CT5 3SS
Department for Transport,Department for Transport,27/05/2015,CurrGrt Las in AEF/A,Local,REDDITCH DIAL-A-RIDE,2000003832,4092.25,REDDITCH DIAL-A-RIDE,B98 8AH
Department for Transport,Department for Transport,27/05/2015,CurrGrt Las in AEF/A,Local,Voluntary Transport for,2000003881,502.32,VOLUNTARY TRANSPORT FOR THE DISABLED,WS13 6BH
Department for Transport,Department for Transport,27/05/2015,Electricity,Air Accident Investigation Branch,MINISTRY OF DEFENCE,2000003955,2186.71,MOD - AAIB - 05.03.2015 - 01.04.2015,L2 3YL
Department for Transport,Department for Transport,27/05/2015,Electricity,Air Accident Investigation Branch,MINISTRY OF DEFENCE,2000003955,3142.9,MOD - AAIB - 01.04.2015 - 01.05.2015,L2 3YL
Department for Transport,Department for Transport,27/05/2015,Financial Consultanc,Group Finance,Valuation Office Agency,2000003935,2450,#,W1D 5BU
Department for Transport,Department for Transport,27/05/2015,Indexation Receipts,Rail Commercial & Programme Office,Govia Thameslink Railway Limited,2000003967,635141.67,1602 Wk3 Franchise Payment Indexation P1602 - GOVI,EC1V 9QS
Department for Transport,Department for Transport,27/05/2015,IT Equip Cap Cost,Motoring Services,SOFTWARE BOX LTD,2000003949,5473.2,#,YO61 1ET
Department for Transport,Department for Transport,27/05/2015,IT Ser Running Costs,Group Communications,ROAD SAFETY GB,2000003947,43200,#,EN11 8QF
Department for Transport,Department for Transport,27/05/2015,IT Ser Running Costs,Group Finance,NTT Data UK Limited,2000003968,16530,#,EC3V 3DG
Department for Transport,Department for Transport,27/05/2015,IT Ser Running Costs,Group Finance,NTT Data UK Limited,2000003968,43320,#,EC3V 3DG
Department for Transport,Department for Transport,27/05/2015,IT Ser Running Costs,Group Finance,NTT Data UK Limited,2000003968,5022,#,EC3V 3DG
Department for Transport,Department for Transport,27/05/2015,Maintenance Other,"Motoring, Freight & London",TDC SYSTEMS LIMITED,2000003950,5195,#,BS24 9BP
Department for Transport,Department for Transport,27/05/2015,Maintenance Other,"Motoring, Freight & London",TDC SYSTEMS LIMITED,2000003950,2220,#,BS24 9BP
Department for Transport,Department for Transport,27/05/2015,Maintenance Other,"Motoring, Freight & London",TDC SYSTEMS LIMITED,2000003950,2470,#,BS24 9BP
Department for Transport,Department for Transport,27/05/2015,Maintenance Other,"Motoring, Freight & London",TDC SYSTEMS LIMITED,2000003950,515,#,BS24 9BP
Department for Transport,Department for Transport,27/05/2015,Maintenance Other,"Motoring, Freight & London",TDC SYSTEMS LIMITED,2000003950,2470,#,BS24 9BP
Department for Transport,Department for Transport,27/05/2015,Maintenance Other,"Motoring, Freight & London",TDC SYSTEMS LIMITED,2000003950,515,#,BS24 9BP
Department for Transport,Department for Transport,27/05/2015,Non Stock Machine Co,Motoring Services,XMA LIMITED GOSC,2000003963,2076.84,A33K150 Konica Minolta Bizhub C224e /C28,NG11 7EP
Department for Transport,Department for Transport,27/05/2015,Sch4 Supp Variable -,Rail Commercial & Programme Office,Govia Thameslink Railway Limited,2000003967,-533852,1602 Wk3 Schedule 4 Pass Through - GOVIA THAMESLIN,EC1V 9QS
Department for Transport,Department for Transport,27/05/2015,Sch8 Variable Perf -,Rail Commercial & Programme Office,Govia Thameslink Railway Limited,2000003967,-428948,1602 Wk3 Schedule 8 Pass Through - GOVIA THAMESLIN,EC1V 9QS
Department for Transport,Department for Transport,27/05/2015,Services prov by OGD,Resource & Strategy Directorate Office,COMMUNITIES AND LOCAL GOVERNMENT,2000003934,14238.94,#,HP2 4XN
Department for Transport,Department for Transport,27/05/2015,Small Software,Marine Accident Investigation Branch,TRUSTMARQUE SOLUTIONS LTD,100005711,1713.72,#,YO32 9WN
Department for Transport,Department for Transport,27/05/2015,Small Software,Marine Accident Investigation Branch,TRUSTMARQUE SOLUTIONS LTD,100005711,-1713.72,#,YO32 9WN
Department for Transport,Department for Transport,27/05/2015,Small Software,Rail Franchising,SOFTWARE AG (UK) LTD,2000003942,2400,#,DE24 8HS
Department for Transport,Department for Transport,27/05/2015,Sprs Indexation Pay-,Rail Commercial & Programme Office,LONDON MIDLAND RAILWAY,2000003958,-84074.61,1602 Wk3 Franchise Subsidy Indexation 2015-16_P160,B2 4JB
Department for Transport,Department for Transport,27/05/2015,Sprs Indexation Pay-,Rail Commercial & Programme Office,LONDON MIDLAND RAILWAY,2000003958,66482,1602 Wk3 Franchise Subsidy Indexation 2015-16_Wash,B2 4JB
Department for Transport,Department for Transport,27/05/2015,Sprs Indexation Pay-,Rail Commercial & Programme Office,FIRST KEOLIS TRANSPENNINE,2000003956,-3698.98,1602 Wk3 TPE DA_Franchise Subsidy Indexation 2015-,M1 6LT
Department for Transport,Department for Transport,27/05/2015,Sprs Indexation Pay-,Rail Commercial & Programme Office,NORTHERN RAIL LTD,2000003957,208917.7,1602 Wk3 Northern IFA 2015-16 Subsidy Indexation_P,YO1 6HT
Department for Transport,Department for Transport,27/05/2015,Stationery (Non-stk),Rail Franchising,Banner Business Services Ltd,2000003962,93.1,0510149 Rapesco AV-79 210 Sheet Stapler,NR3 1QU
Department for Transport,Department for Transport,27/05/2015,Stationery (Non-stk),Rail Franchising,Banner Business Services Ltd,2000003962,3.46,0570010 Rapesco 9 / (23) / 8 Staples X40,NR3 1QU
Department for Transport,Department for Transport,27/05/2015,Stationery (Non-stk),Rail Franchising,Banner Business Services Ltd,2000003962,3.65,0570011 Rapesco 9 / (23) / 10 Staples X4,NR3 1QU
Department for Transport,Department for Transport,27/05/2015,Stationery (Non-stk),Rail Franchising,Banner Business Services Ltd,2000003962,19.85,1230106 Envelope 110x220 Naturale Wallet,NR3 1QU
Department for Transport,Department for Transport,27/05/2015,Stationery (Non-stk),Rail Franchising,Banner Business Services Ltd,2000003962,23.76,1230521 Bright Id Wallets A4 Assorted X5,NR3 1QU
Department for Transport,Department for Transport,27/05/2015,Stationery (Non-stk),Rail Franchising,Banner Business Services Ltd,2000003962,152.64,5000504 Graffico A4 Polypropylene Notebo,NR3 1QU
Department for Transport,Department for Transport,27/05/2015,Stationery (Non-stk),Rail Franchising,Banner Business Services Ltd,2000003962,83.52,5000505 Graffico A5 Polypropylene Notebo,NR3 1QU
Department for Transport,Department for Transport,27/05/2015,Stationery (Non-stk),Rail Franchising,Banner Business Services Ltd,2000003962,7.84,7020200 Safewrap 100 Litre Shredder Bag,NR3 1QU
Department for Transport,Department for Transport,27/05/2015,Stationery (Non-stk),Rail Franchising,Banner Business Services Ltd,2000003962,11.09,9090009 A4 Refill Pad Headbound Punched,NR3 1QU
Department for Transport,Department for Transport,27/05/2015,Stationery (Non-stk),Rail Franchising,Banner Business Services Ltd,2000003962,12.1,9090024 Banner Brilliant Page Marker 38,NR3 1QU
Department for Transport,Department for Transport,27/05/2015,Stationery (Non-stk),Rail Franchising,Banner Business Services Ltd,2000003962,1.91,9095019 SELF-STICK NOTES 38 X 51MM PALE,NR3 1QU
Department for Transport,Department for Transport,27/05/2015,Stationery (Non-stk),Rail Franchising,Banner Business Services Ltd,2000003962,11.66,9095021 SELF-STICK NOTES 76 X 127MM PALE,NR3 1QU
Department for Transport,Department for Transport,27/05/2015,Stationery (Non-stk),Rail Franchising,Banner Business Services Ltd,2000003962,43.2,9230004 Pavo Security Name Badge 60 x 90,NR3 1QU
Department for Transport,Department for Transport,27/05/2015,Stationery (Non-stk),Rail Franchising,Banner Business Services Ltd,2000003962,43.68,9240027 Banner Rubber Grip Gel Ink Pen B,NR3 1QU
Department for Transport,Department for Transport,27/05/2015,Stationery (Non-stk),Rail Franchising,Banner Business Services Ltd,2000003962,43.68,9240028 Banner Rubber Grip Gel Ink Pen B,NR3 1QU
Department for Transport,Department for Transport,27/05/2015,Stationery (Non-stk),Rail Franchising,Banner Business Services Ltd,2000003962,1.22,9300003 Clear Plastic Ruler 300mm,NR3 1QU
Department for Transport,Department for Transport,27/05/2015,Stationery (Non-stk),Rail Franchising,Banner Business Services Ltd,2000003962,6.53,9310109 Easy Tear Adhesive Tape 24mmx66M,NR3 1QU
Department for Transport,Department for Transport,27/05/2015,Stationery (Non-stk),Rail Franchising,Banner Business Services Ltd,2000003962,1.15,9372003 Banner Medium Glue Stick 20g,NR3 1QU
Department for Transport,Department for Transport,27/05/2015,Stationery (Non-stk),Rail Franchising,Banner Business Services Ltd,2000003962,4.32,9410005 A4 Plastic Pockets Multi Punched,NR3 1QU
Department for Transport,Department for Transport,27/05/2015,Stationery (Non-stk),Rail Franchising,Banner Business Services Ltd,2000003962,13.58,9410403 Banner A4 Mediumweight Cut Flush,NR3 1QU
Department for Transport,Department for Transport,27/05/2015,Stationery (Non-stk),Rail Franchising,Banner Business Services Ltd,2000003962,5.02,9670019 LABEL WHITE RECTANGULAR (101 X 2,NR3 1QU
Department for Transport,Department for Transport,27/05/2015,Stationery (Non-stk),Rail Franchising,Banner Business Services Ltd,2000003962,2.51,9670020 Banner Multi-Purpose Label 64 x,NR3 1QU
Department for Transport,Department for Transport,27/05/2015,Subscriptions to Pro,"Energy, Technology and International",EURO NCAP,2000003936,21899.52,#,1050
Department for Transport,Department for Transport,27/05/2015,Subsidies Private Se,Local,Ace Travel (North West) Ltd,2000003730,78191.05,ACE TRAVEL (NORTH WEST) LTD,CH49 0TS
Department for Transport,Department for Transport,27/05/2015,Subsidies Private Se,Local,BLACKPOOL TRANSPORT SERVICES LTD,2000003752,113247.76,BLACKPOOL TRANSPORT SERVICES LTD,FY1 5DD
Department for Transport,Department for Transport,27/05/2015,Subsidies Private Se,Local,BRIAN JONES COACHES,2000003901,11993.97,BRIAN JONES COACHES,DA12 2RS
Department for Transport,Department for Transport,27/05/2015,Subsidies Private Se,Local,BRIJAN TOURS LTD,2000003756,9364.17,BRIJAN TOURS LTD,SO30 2DY
Department for Transport,Department for Transport,27/05/2015,Subsidies Private Se,Local,COURTNEY COACHES LTD,2000003774,36624.29,COURTNEY COACHES LTD,RG12 1QS
Department for Transport,Department for Transport,27/05/2015,Subsidies Private Se,Local,CT Plus Community Interest Company,2000003919,13036.59,CT Plus Community Interest Company,BS3 5RB
Department for Transport,Department for Transport,27/05/2015,Subsidies Private Se,Local,CUCKMERE COMMUNITY BUS,2000003775,752.32,CUCKMERE COMMUNITY BUS,BN26 5RB
Department for Transport,Department for Transport,27/05/2015,Subsidies Private Se,Local,DARWEN COACH SERVICES,2000003776,14260.67,DARWEN COACH SERVICES,BB3 0DW
Department for Transport,Department for Transport,27/05/2015,Subsidies Private Se,Local,ENSIGN BUS COMPANY LTD,2000003785,55088.17,Ensign Bus Company Ltd,RM15 4YF
Department for Transport,Department for Transport,27/05/2015,Subsidies Private Se,Local,First Beeline Buses Ltd,2000003791,82469.3,FIRST BEELINE BUSES LTD,SA5 7BN
Department for Transport,Department for Transport,27/05/2015,Subsidies Private Se,Local,FIRST EASTERN COUNTIES BUSES LTD,2000003792,581.79,FIRST EASTERN COUNTIES BUSES LTD,LE4 0DA
Department for Transport,Department for Transport,27/05/2015,Subsidies Private Se,Local,FLEET BUZZ LTD,2000003773,9690.8,Fleet Buzz Ltd,PO19 8DG
Department for Transport,Department for Transport,27/05/2015,Subsidies Private Se,Local,GRAND PRIX SERVICES,2000003798,5313.56,GRAND PRIX SERVICES,CA17 4AY
Department for Transport,Department for Transport,27/05/2015,Subsidies Private Se,Local,Grayline Coaches,2000003799,3766.67,GRAYLINE COACHES,OX25 1TL
Department for Transport,Department for Transport,27/05/2015,Subsidies Private Se,Local,H Semmence & Co Ltd,2000003801,1377.58,H SEMMENCE & CO. LTD.,NR18 0QH
Department for Transport,Department for Transport,27/05/2015,Subsidies Private Se,Local,J S B TRAVEL,2000003806,3461.37,JSB TRAVEL,DL14 8LL
Department for Transport,Department for Transport,27/05/2015,Subsidies Private Se,Local,JOHN FISHWICK & SONS,2000003807,9419.38,JOHN FISHWICK & SONS,PR25 3LE
Department for Transport,Department for Transport,27/05/2015,Subsidies Private Se,Local,K & H Doyle (Diesel),2000003808,4934.12,K & H DOYLE (DIESEL),NG1 6EE
Department for Transport,Department for Transport,27/05/2015,Subsidies Private Se,Local,Midland Red (North) Ltd,2000003816,543639.58,ARRIVA MIDLANDS NORTH LTD,LE4 8PH
Department for Transport,Department for Transport,27/05/2015,Subsidies Private Se,Local,NATIONAL EXPRESS LTD,2000003822,124759.15,NATIONAL EXPRESS LTD (CAMBRIDGE COACH SERVICES),B5 6DD
Department for Transport,Department for Transport,27/05/2015,Subsidies Private Se,Local,OXFORD BUS CO,2000003827,500821.01,City of Oxford Motor Sevices Ltd,OX4 6GA
Department for Transport,Department for Transport,27/05/2015,Subsidies Private Se,Local,PRESTON BUS LIMITED,2000003829,130936.95,Preston Bus Limited,PR1 6NY
Department for Transport,Department for Transport,27/05/2015,Subsidies Private Se,Local,REAYS COACHES LTD,2000003831,9254.64,REAYS COACHES LTD,CA7 9NE
Department for Transport,Department for Transport,27/05/2015,Subsidies Private Se,Local,ROAD RUNNER BUS AND COACH,2000003918,4544.36,Roadrunner Bus and Coach,YO26 8BE
Department for Transport,Department for Transport,27/05/2015,Subsidies Private Se,Local,ROYAL BUSES,2000003921,3512.63,Royal Buses,TR26 1GD
Department for Transport,Department for Transport,27/05/2015,Subsidies Private Se,Local,Shire Community Services Ltd,2000003931,5265.87,Shire Community Services Ltd,NN8 1AF
Department for Transport,Department for Transport,27/05/2015,Subsidies Private Se,Local,Stagecoach Devon Ltd,2000003778,463657.87,Stagecoach Devon Ltd,EX1 2LB
Department for Transport,Department for Transport,27/05/2015,Subsidies Private Se,Local,STAGECOACH IN PORTMOUTH & S DOWNS,2000003852,165122.65,STAGECOACH IN PORTSMOUTH AND THE SOUTH DOWNS,SK3 0DU
Department for Transport,Department for Transport,27/05/2015,Subsidies Private Se,Local,STAGECOACH SOUTH EAST,2000003853,102041.76,STAGECOACH SOUTH,SK3 0DU
Department for Transport,Department for Transport,27/05/2015,Subsidies Private Se,Local,SW COACHES LTD,2000003857,29099.76,SOUTH WEST COACHES LTD,BA9 9EB
Department for Transport,Department for Transport,27/05/2015,Subsidies Private Se,Local,SWANAGE TAXIS LTD,2000003859,739.07,SWANAGE TAXIS LTD,BH19 3EB
Department for Transport,Department for Transport,27/05/2015,Subsidies Private Se,Local,YORKSHIRE TRACTION CO LTD,2000003878,5086.65,STAGECOACH YORKSHIRE,SK3 0DU
Department for Transport,Department for Transport,27/05/2015,Subsidies Private Se,Local,Accessible Transport 4U CIC Ltd,2000003925,2841.44,ACCESSIBLE TRANSPORT 4 U,BS16 5BS
Department for Transport,Department for Transport,27/05/2015,Subsidies Private Se,Local,AGE CONCERN FAVERSHAM,2000003734,2557.84,AGE UK FAVERSHAM AND SITTINGBOURNE,ME13 7AJ
Department for Transport,Department for Transport,27/05/2015,Subsidies Private Se,Local,AGE CONCERN SHREWSBURY MINIBUS,2000003743,884.64,Age Concern Shrewsbury,SY5 0AG
Department for Transport,Department for Transport,27/05/2015,Subsidies Private Se,Local,AGE UK BLACKBURN WITH DARWEN,2000003895,656.31,AGE UK BLACKBURN WITH DARWEN,BB2 2DH
Department for Transport,Department for Transport,27/05/2015,Subsidies Private Se,Local,Age UK Lincolnshire,2000003739,1436.97,AGE UK NORTH LINCOLNSHIRE,DN15 6SF
Department for Transport,Department for Transport,27/05/2015,Subsidies Private Se,Local,Age UK Sheppey,2000003742,652.22,Age UK Sheppey,ME12 2PF
Department for Transport,Department for Transport,27/05/2015,Subsidies Private Se,Local,AGE UK STAFFORD & DISTRICT,2000003744,2474.5,AGE UK STAFFORD & DISTRICT,ST16 3RS
Department for Transport,Department for Transport,27/05/2015,Subsidies Private Se,Local,Alzheimers & Dementia Support,2000003903,649.68,ALZHEIMERS & DEMENTIA SUPPORT SERVICES,DA11 8JY
Department for Transport,Department for Transport,27/05/2015,Subsidies Private Se,Local,ALZHEIMERS SOCIETY  COVENTRY BRANCH,2000003885,535.55,COVENTRY ALZHEIMERS SOCIETY,CV2 4PH
Department for Transport,Department for Transport,27/05/2015,Subsidies Private Se,Local,ARRC Ltd,2000003907,1597.89,ARRCC,TN31 7LS
Department for Transport,Department for Transport,27/05/2015,Subsidies Private Se,Local,ARUN COORDINATED COMMUNITY TSPT,2000003747,1382.05,ARUN CO-ORDINATED COMMUNITY TRANSPORT,BN18 0BD
Department for Transport,Department for Transport,27/05/2015,Subsidies Private Se,Local,BASINGSTOKE DIAL-A-RIDE,2000003748,5023.91,BASINGSTOKE DIAL A RIDE,RG21 5UT
Department for Transport,Department for Transport,27/05/2015,Subsidies Private Se,Local,BLUEBIRD COMMUNITY PARTNERSHIP,2000003753,4728.55,BLUEBIRD COMMUNITY PARTNERSHIP,BN8 4EH
Department for Transport,Department for Transport,27/05/2015,Subsidies Private Se,Local,C T for Town & County,2000003746,19502.03,COMMUNITY TRANSPORT FOR TOWN AND COUNTY,DE5 8JN
Department for Transport,Department for Transport,27/05/2015,Subsidies Private Se,Local,CAREBUS VOLUNTEER GROUP,2000003758,728.87,Carebus Volunteer Group,RG7 5JR
Department for Transport,Department for Transport,27/05/2015,Subsidies Private Se,Local,CASTLE DONNINGTON VOLUNTEER CENTRE,2000003759,1637.97,CASTLE DONINGTON VOLUNTEER CENTRE,DE74 2LA
Department for Transport,Department for Transport,27/05/2015,Subsidies Private Se,Local,CENTRAL LANCS DIAL-A-RIDE LTD,2000003760,2585.86,CENTRAL LANCS DIAL A RIDE LTD,PR6 9AR
Department for Transport,Department for Transport,27/05/2015,Subsidies Private Se,Local,CENTRE 81,2000003761,9129.09,CENTRE 81,NR30 1QR
Department for Transport,Department for Transport,27/05/2015,Subsidies Private Se,Local,CHESTER LE STREET & DIS VOL WELFARE,2000003762,527.51,CHESTER LE STREET & DISTRICT WELFARE COMMITTEE,DH2 2DN
Department for Transport,Department for Transport,27/05/2015,Subsidies Private Se,Local,COMMBUS PROJECT,2000003767,782.46,THE COMMBUS PROJECT,LE19 2EL
Department for Transport,Department for Transport,27/05/2015,Subsidies Private Se,Local,COMMUNITY LINK STAFFORD & DISTRICT,2000003768,4418.95,COMMUNITY LINK - STAFFORD & DISTRICT,ST16 3EL
Department for Transport,Department for Transport,27/05/2015,Subsidies Private Se,Local,COMMUNITY TRANSPORT SWADLINCOTE,2000003769,10379.22,COMMUNITY TRANSPORT (SWADLINCOTE),DE11 9DF
Department for Transport,Department for Transport,27/05/2015,Subsidies Private Se,Local,COMPAID TRUST,2000003770,5909.81,COMPAID,TN12 6BU
Department for Transport,Department for Transport,27/05/2015,Subsidies Private Se,Local,COMPASS COMMUNITY TRANSPORT,2000003771,8911.62,COMPASS COMMUNITY TRANSPORT,SR2 9TP
Department for Transport,Department for Transport,27/05/2015,Subsidies Private Se,Local,Dial A Ride,2000003779,6716.17,Dial A Ride (Scarborough & District),YO12 5AF
Department for Transport,Department for Transport,27/05/2015,Subsidies Private Se,Local,DONCASTER COMMUNITY TRANSPORT,2000003899,19493.02,Doncaster Community Transport,DN1 2SW
Department for Transport,Department for Transport,27/05/2015,Subsidies Private Se,Local,DORE COMMUNITY TRANSPORT,2000003912,1043.58,Dore Community Transport,HR3 6AB
Department for Transport,Department for Transport,27/05/2015,Subsidies Private Se,Local,Durham Communicare Ltd,2000003782,2208.12,DURHAM COMMUNICARE LTD,SR8 2RD
Department for Transport,Department for Transport,27/05/2015,Subsidies Private Se,Local,EXMOUTH & DISTRICT COMMUNITY,2000003786,1136.45,Exmouth District Community Transport Group,EX8 4RS
Department for Transport,Department for Transport,27/05/2015,Subsidies Private Se,Local,Fenland Assoc for,2000003790,18914.84,FENLAND ASSOCIATION FOR COMMUNITY TRANSPORT LTD,PE15 0AY
Department for Transport,Department for Transport,27/05/2015,Subsidies Private Se,Local,FROGMORE DAY CARE CENTRE,2000003797,653.09,FROGMORE DAY CARE CENTRE,GU46 6AG
Department for Transport,Department for Transport,27/05/2015,Subsidies Private Se,Local,GOOD NEIGHBOURS COMMUNITY TRANSPORT,2000003887,806.55,Good Neighbours Community Transport,YO21 3BA
Department for Transport,Department for Transport,27/05/2015,Subsidies Private Se,Local,Grimsby Cleethorpes Dial-A-Ride,2000003800,9113.72,GRIMSBY CLEETHORPE AND DISTRICT DIAL A RIDE,DN32 7QN
Department for Transport,Department for Transport,27/05/2015,Subsidies Private Se,Local,HACT,2000003924,5150.12,Huntingdonshire for Community transport Ltd,PE15 0AY
Department for Transport,Department for Transport,27/05/2015,Subsidies Private Se,Local,HARWICH CONNEXIONS TRANSPORT,2000003914,790.06,HARWICH CONNEXIONS TRANSPORT CO-OP (DIESEL),CO12 3NS
Department for Transport,Department for Transport,27/05/2015,Subsidies Private Se,Local,HEALTH FOR ALL (LEEDS) LTD,2000003847,1081.18,HEALTH FOR ALL (LEEDS) LTD,LS10 4HX
Department for Transport,Department for Transport,27/05/2015,Subsidies Private Se,Local,HITCHIN HELPING HANDS,2000003908,671.08,Hitchin Helping Hands,SG4 7QH
Department for Transport,Department for Transport,27/05/2015,Subsidies Private Se,Local,HOUNSLOW COMMUNITY TRANSPORT,2000003804,1252.78,HOUNSLOW COMMUNITY TRANSPORT,TW3 1JY
Department for Transport,Department for Transport,27/05/2015,Subsidies Private Se,Local,ILFRACOMBE & DISTRICT,2000003805,814.06,Ilfracombe & District Community Transport Assoc,EX34 9AT
Department for Transport,Department for Transport,27/05/2015,Subsidies Private Se,Local,LEONARD CHESHIRE DISABILITY,2000003811,711.34,LEONARD CHESHIRE SERVICES (AMPTHILL) DIESEL,MK45 2HX
Department for Transport,Department for Transport,27/05/2015,Subsidies Private Se,Local,LUNE VALLEY TRANSPORT ENTERPRISE,2000003813,3898.21,LUNE VALLEY TRANSPORT ENTERPRISE LTD,LA3 3EN
Department for Transport,Department for Transport,27/05/2015,Subsidies Private Se,Local,MANOR COMMUNITY TRANSPORT,2000003911,567.58,Manor Community Transport,S2 1LB
Department for Transport,Department for Transport,27/05/2015,Subsidies Private Se,Local,MULTIPLE SCLEROSIS THERAPY CENTRE,2000003819,649.85,MULTIPLE SCLEROSIS THERAPY CENTRE,MK41 9RX
Department for Transport,Department for Transport,27/05/2015,Subsidies Private Se,Local,Nafferton Millenium Committee,2000003821,536.47,NAFFERTON MILLENNIUM COMMITTEE,YO25 4QA
Department for Transport,Department for Transport,27/05/2015,Subsidies Private Se,Local,NEWBURY HANDYBUS,2000003823,600.51,NEWBURY HANDYBUS,RG14 1AJ
Department for Transport,Department for Transport,27/05/2015,Subsidies Private Se,Local,NEWCASTLE COMMUNITY TRANSPORT,2000003824,666.54,NEWCASTLE COMMUNITY TRANSPORT,ST5 2AD
Department for Transport,Department for Transport,27/05/2015,Subsidies Private Se,Local,North Dorset Community,2000003820,13126.91,NORTH DORSET COMMUNITY ACCESSIBLE TRANSPORT,DT10 1AZ
Department for Transport,Department for Transport,27/05/2015,Subsidies Private Se,Local,OPEN COUNTRY,2000003826,711.28,OPEN COUNTRY,HG1 5LT
Department for Transport,Department for Transport,27/05/2015,Subsidies Private Se,Local,PRESTON COMMUNITY TRANSPORT LTD,2000003830,2528.02,PRESTON COMMUNITY TRANSPORT LTD,PR1 2AU
Department for Transport,Department for Transport,27/05/2015,Subsidies Private Se,Local,RICHMOND & KINGSTON ACCESS TRANS,2000003833,3372.72,RICHMOND AND KINGSTON ACCESSIBLE TRANSPORT,KT2 5PE
Department for Transport,Department for Transport,27/05/2015,Subsidies Private Se,Local,RINGWOOD & DISTRICT COMM ASSOC,2000003834,2398.69,RINGWOOD & DISTRICT COMMUNITY ASSOCIATION,BH24 1DW
Department for Transport,Department for Transport,27/05/2015,Subsidies Private Se,Local,Riverside Community Resource,2000003932,619.41,RIVERSIDE COMMUNITY RESOURCE CENTRE,DA12 2JY
Department for Transport,Department for Transport,27/05/2015,Subsidies Private Se,Local,RUSHMOOR VOLUNTARY TRAVEL,2000003879,1381.43,RUSHMOOR VOLUNTARY SERVICES,GU14 7LE
Department for Transport,Department for Transport,27/05/2015,Subsidies Private Se,Local,RUSHMOOR VOLUNTARY TRAVEL,2000003879,982.74,RUSHMOOR VOLUNTARY SERVICES(HART SCHEME),GU14 7LE
Department for Transport,Department for Transport,27/05/2015,Subsidies Private Se,Local,RYDER'S GREEN METHODIST CHURCH,2000003838,622.83,Ryder's Green Methodist Day Centre,DY4 7JE
Department for Transport,Department for Transport,27/05/2015,Subsidies Private Se,Local,RYE & DISTRICT COMMUNITY TRANSPORT,2000003839,693.65,RYE AND DISTRICT COMMUNITY TRANSPORT,TN31 7TE
Department for Transport,Department for Transport,27/05/2015,Subsidies Private Se,Local,SCOPE ON TEESSIDE,2000003841,1479.53,TEESIDE ABILITY SUPPORT CENTRE,TS5 4EG
Department for Transport,Department for Transport,27/05/2015,Subsidies Private Se,Local,SELSEY VENTURE CLUB,2000003844,575.54,Selsey Venture Club,PO20 0RP
Department for Transport,Department for Transport,27/05/2015,Subsidies Private Se,Local,SHIPPLEY & BINGLEY,2000003889,748.37,Shipley & Bingley Voluntary Services,BD16 2TA
Department for Transport,Department for Transport,27/05/2015,Subsidies Private Se,Local,SHREWSBURY DIAL-A-RIDE,2000003845,3291.49,SHREWSBURY COMMUNITY TRANSPORT INITIATIVE,SY1 4NS
Department for Transport,Department for Transport,27/05/2015,Subsidies Private Se,Local,SUDBURY & DISTRICT,2000003856,696.12,SUDBURY TOWN AREA RURAL TRANSPORT,CO10 2FT
Department for Transport,Department for Transport,27/05/2015,Subsidies Private Se,Local,SUFFOLK ACRE SERVICES LTD,2000003917,778.28,Community Action Suffolk,IP2 0HH
Department for Transport,Department for Transport,27/05/2015,Subsidies Private Se,Local,SW Herts Community Transport Scheme,2000003858,1189.71,SOUTH WEST HERTS COMMUNITY TRANSPORT,WD3 1DP
Department for Transport,Department for Transport,27/05/2015,Subsidies Private Se,Local,TAVISTOCK DISTRICT TRANSPORT PSHIP,2000003860,814.38,Tavistock & District Local Transport Partnership,PL19 8AJ
Department for Transport,Department for Transport,27/05/2015,Subsidies Private Se,Local,Tendring Eldercare,2000003787,851.7,TENDRING ELDERCARE,CO15 1SD
Department for Transport,Department for Transport,27/05/2015,Subsidies Private Se,Local,TENTERDEN AND DISTRICT DAY CENTRE,2000003880,1675.61,Tenterden & District Day Centre,TN30 6AT
Department for Transport,Department for Transport,27/05/2015,Subsidies Private Se,Local,Test Valley Community Services,2000003861,2731.91,TEST VALLEY COMMUNITY SERVICES,SP10 1QP
Department for Transport,Department for Transport,27/05/2015,Subsidies Private Se,Local,The Chilterns Dial-A-Ride Ltd,2000003763,1787.51,THE CHILTERNS DIAL-A-RIDE LTD,HP5 1TU
Department for Transport,Department for Transport,27/05/2015,Subsidies Private Se,Local,THE ENTERPRISE CLUB FOR,2000003905,741.24,The Enterprise Club for Disabled People,CV2 3GL
Department for Transport,Department for Transport,27/05/2015,Subsidies Private Se,Local,The Royal Voluntary Services,2000003894,542.88,THE ROYAL VOLUNTARY SERVICE,B60 2JG
Department for Transport,Department for Transport,27/05/2015,Subsidies Private Se,Local,TISBURY & DISTRICT COM MINIBUS LTD,2000003865,661.07,TISBURY AND DISTRICT COMMUNITY MINIBUS,SP3 6DG
Department for Transport,Department for Transport,27/05/2015,Subsidies Private Se,Local,TIVERTON & DISTRICT COMM TRANS,2000003866,837.69,TIVERTON AND DISTRICT COMMUNITY TRANSPORT ASSOCIAT,EX16 6NB
Department for Transport,Department for Transport,27/05/2015,Subsidies Private Se,Local,WALSALL COMMUNITY TRANSPORT,2000003906,8803.33,WALSALL COMMUNITY TRANSPORT,WS3 3DH
Department for Transport,Department for Transport,27/05/2015,Subsidies Private Se,Local,WCVB WORCESTER WHEELS,2000003870,1451.92,WORCESTER WHEELS (WCVB),WR1 1JL
Department for Transport,Department for Transport,27/05/2015,Subsidies Private Se,Local,WEST LANCASHIRE DIAL A RIDE ASSOC,2000003871,3165.24,WEST LANCASHIRE DIAL,L40 8JS
Department for Transport,Department for Transport,27/05/2015,Subsidies Private Se,Local,WEST MIDS SPECIAL NEEDS TRANSPORT,2000003873,293390.82,WEST MIDLANDS SPECIAL NEEDS TRANSPORT LTD,B6 5PL
Department for Transport,Department for Transport,27/05/2015,Subsidies Private Se,Local,YORK WHEELS,2000003877,1884.65,YORK WHEELS,YO31 8HE
Department for Transport,Department for Transport,27/05/2015,Support Services,"Motoring, Freight & London",Highways England Company Ltd,2000003937,4568.87,#,B1 1RN
Department for Transport,Department for Transport,27/05/2015,Support Services,Group Finance,DD ACCRAILWAY PENS TRUSTEE,2000003953,1166.39,#,DL3 6XR
Department for Transport,Department for Transport,27/05/2015,Training,Group Human Resource,OPP Ltd,2000003939,2890,#,OX2 8EP
Department for Transport,Department for Transport,27/05/2015,Training,Group Human Resource,Capita Business Services Ltd,2000003938,7386.36,#,B1 3RB
Department for Transport,Department for Transport,27/05/2015,Training,Group Human Resource,RED E4 CONSULTING LIMITED,2000003961,960,#,WC1B 3AU
Department for Transport,Department for Transport,27/05/2015,Transport  Consult,Major Projects & Growth,FIRST CLASS PARTNERSHIPS LTD,2000003954,47754,#,YO10 3EB
Department for Transport,Department for Transport,28/05/2015,Agency Staff Costs,Air Accident Investigation Branch,BROOK STREET (UK) LIMITED,2000004067,636.25,#,AL1 4JB
Department for Transport,Department for Transport,28/05/2015,Agency Staff Costs,Integrated Delivery,MICHAEL PAGE INTERNATIONAL,2000004078,3594,#,SL1 3SA
Department for Transport,Department for Transport,28/05/2015,Agency Staff Costs,Integrated Delivery,MICHAEL PAGE INTERNATIONAL,2000004078,3240,#,SL1 3SA
Department for Transport,Department for Transport,28/05/2015,Agency Staff Costs,Rail Commercial & Programme Office,CAPITA BUSINESS SERVICES LTD,2000004059,6013.87,#,DL1 9HN
Department for Transport,Department for Transport,28/05/2015,Agency Staff Costs,Rail Infrastructure Safety & Security,BROOK STREET (UK) LIMITED,2000004067,823.2,#,AL1 4JB
Department for Transport,Department for Transport,28/05/2015,Agency Staff Costs,Integrated Delivery,CAPITA BUSINESS SERVICES LTD,2000004059,10044.2,#,DL1 9HN
Department for Transport,Department for Transport,28/05/2015,Agency Staff Costs,Rail Franchising,CAPITA BUSINESS SERVICES LTD,2000004059,30240,#,DL1 9HN
Department for Transport,Department for Transport,28/05/2015,Agency Staff Costs,Rail Franchising,CAPITA BUSINESS SERVICES LTD,2000004059,4999.54,#,DL1 9HN
Department for Transport,Department for Transport,28/05/2015,Agency Staff Costs,Rail Franchising,CAPITA BUSINESS SERVICES LTD,2000004059,3614.65,#,DL1 9HN
Department for Transport,Department for Transport,28/05/2015,Agency Staff Costs,Integrated Delivery,CAPITA BUSINESS SERVICES LTD,2000004059,-5286.42,#,DL1 9HN
Department for Transport,Department for Transport,28/05/2015,Agency Staff Costs,Rail Commercial & Programme Office,CAPITA BUSINESS SERVICES LTD,2000004059,2312.11,#,DL1 9HN
Department for Transport,Department for Transport,28/05/2015,Agency Staff Costs,Rail Commercial & Programme Office,CAPITA BUSINESS SERVICES LTD,2000004059,2452.8,#,DL1 9HN
Department for Transport,Department for Transport,28/05/2015,Agency Staff Costs,Rail Commercial & Programme Office,CAPITA BUSINESS SERVICES LTD,2000004059,2923.49,#,DL1 9HN
